{"text_format":"1","workbook":"xlsx","n_sheets":14,"sheets":["Saisie des données + guide","Bulletin n°1","Bulletin n°2","Bulletin n°3","Bulletin n°4","Bulletin n°5","Bulletin n°6","Bulletin n°7","Bulletin n°8","Bulletin n°9","Bulletin n°10","Fiche récapitulative","Autres fonds","Modalités des versements"],"not_rendered":{"charts":0,"images":6,"macros":1,"external_links":0,"defined_names":36,"comments":11,"pivot_tables":0},"unopened":[],"bounds":{"document_bytes":16777216,"sheet_cells":100000,"rows_first":2000,"rows_last":500,"rows_between":2000,"halvings":0,"cell_chars":16384,"cell_head_chars":4096},"cells_cut":0,"cells_raw":0,"read":"whole","date_system":"1900"}

{"sheet":"Saisie des données + guide","index":0,"n_rows":152,"n_cols":62,"rows_kept":152,"cut":false,"hidden":false,"merged":[[147,1,148,58],[133,45,133,55],[139,31,139,40],[139,45,139,55],[141,2,141,11],[141,17,141,26],[141,31,141,40],[141,45,141,55],[135,17,135,26],[135,45,135,55],[137,17,137,26],[137,45,137,55],[133,17,133,26],[139,2,139,11],[139,17,139,26],[143,2,143,10],[10,9,10,14],[28,31,28,34],[12,9,12,33],[70,4,70,55],[16,9,16,33],[20,19,21,28],[68,4,68,56],[33,17,33,58],[47,31,47,52],[43,24,43,52],[36,3,36,13],[37,3,37,57],[47,20,47,29],[47,1,47,19],[65,4,65,58],[43,53,43,54],[99,45,99,54],[96,19,96,28],[95,45,95,55],[96,45,96,54],[95,31,95,41],[96,31,96,41],[99,19,99,28],[23,19,23,28],[14,9,14,33],[19,19,19,28],[28,24,28,30],[60,24,60,57],[34,17,34,58],[29,12,29,57],[28,35,28,41],[20,29,21,58],[28,42,28,49],[32,17,32,23],[25,12,26,58],[28,17,28,23],[32,35,32,41],[32,25,32,29],[32,30,32,34],[79,53,79,54],[76,3,76,57],[72,4,72,56],[32,43,32,49],[28,12,28,16],[32,12,32,16],[0,41,0,53],[94,19,94,29],[0,54,0,58],[90,32,90,37],[116,13,116,16],[111,24,111,28],[111,13,111,17],[90,29,90,31],[114,13,114,16],[114,25,114,28],[10,27,10,33],[98,31,98,41],[95,19,95,28],[74,4,74,55],[79,26,79,52],[98,45,98,55],[94,31,94,40],[112,13,112,17],[98,19,98,28],[90,24,90,28],[118,18,118,20],[99,31,99,41],[118,11,118,15],[112,24,112,28],[114,35,114,38],[96,1,96,18],[99,1,99,18],[143,17,143,26],[143,31,143,40],[143,45,143,55],[146,1,146,57],[119,11,119,15]]}
["Comment remplir le bulletin individuel de versements ?",null,null,null,null,null,null,null,null,null,null,null,null,null,null,null,null,null,null,null,null,null,null,null,null,null,null,null,null,null,null,null,null,null,null,null,null,null,null,null,null,"Version PEE-PERCO",null,null,null,null,null,null,null,null,null,null,null,null,2025]
[]
[]
["Pour l'Entreprise"]
[]
[]
[]
[]
[null,null,"1.","Identification :"]
[]
[null,null,null,"Code entreprise"]
[]
[null,null,null,"Raison sociale"]
[]
[null,null,null,"Contact"]
[]
[null,null,null,"E-mail"]
[null,null,null,null,null,null,null,null,null,null,null,null,null,null,null,null,null,null,null,null,null,null,null,null,null,null,null,null,null,null,null,null,null,null,null,null,null,null,null,null,null,null,null,null,null,null,null,null,null,null,null,null,null,null,null,null,null,null,null,null,null,"X"]
[]
[null,null,"2.","Origine des versements : ",null,null,null,null,null,null,null,null,null,null,null,null,null,null,null,"Épargne personnelle",null,null,null,null,null,null,null,null,null,"     Cliquez sur la cellule pour afficher les autres origines de versements"]
[null,null,null,null,null,null,null,null,null,null,null,null,null,null,null,null,null,null,null,null,null,null,null,null,null,null,null,null,null,{"$f":"+IF($T$20=\"Intéressement\",\"La prime d'intéressement, versée en 2024 sur l'exercice fiscal 2023, est limitée à 75% du PASS 2023 (soit 32 994 €).\",IF($T$20=\"Participation\",\"La prime de participation, versée en 2024 sur l'exercice fiscal 2023, est limitée à 75% du PASS 2023 (soit 32 994 €).\",IF($T$20=\"Prime de partage de la valeur\",\"Le versement de la PPV est limité à 3 000€ (ou 6 000 € si vous avez un accord d'intéressement ou un accord de participation volontaire dans votre entreprise). Voir le détail du calcul de la CSG/CRDS plus bas.\",IF($T$20=\"Abondement unilatéral\",\"Le versement de l'abondement unilatéral est limité à 3 000€ (ou 6 000 € si vous avez un accord d'intéressement ou un accord de participation volontaire dans votre entreprise).\",IF($T$20=\"Épargne personnelle\",\"Les versements volontaires du PEE et du PERCO sont plafonnés à 25% de votre rémunération brute annuelle.\",IF($T$20=\"Jours de repos non pris / CET\",\"La monétisation est limitée à 10 jours par an sauf accord plus restrictif de l'entreprise.\",\"\"))))))","v":"Les versements volontaires du PEE et du PERCO sont plafonnés à 25% de votre rémunération brute annuelle."}]
[]
[]
[null,null,"3.","Gamme de fonds :",null,null,null,null,null,null,null,null,null,null,null,null,null,null,null,"Gamme GER",null,null,null,null,null,null,null,null,null,"     Cliquez sur la cellule pour afficher les autres gammes de fonds"]
[]
[null,null,"4.","Taux d'abondement : ",null,null,null,null,null,null,null,null,"Les taux de référence pour le calcul de l’abondement sont ceux qui figurent dans l’accord de l’entreprise ou sur le bulletin d’adhésion au PESI."]
[]
[]
[null,null,null,null,null,null,null,null,null,null,null,null,"PEE",null,null,null,null,null,null,null,null,null,null,null,{"$f":"IF(R29>300%,\"ERREUR TAUX\",\"\")","v":""},null,null,null,null,null,null,"PERCO",null,null,null,null,null,null,null,null,null,null,{"$f":"IF(AJ29>300%,\"ERREUR TAUX\",\"\")","v":""}]
[null,null,null,null,null,null,null,null,null,null,null,null,{"$f":"+IF(Y29=\"ERREUR TAUX\",\"ATTENTION : Le taux d'abondement doit être inférieur ou égal à 300% par tranche de 5%\",IF(AQ29=\"ERREUR TAUX\",\"ATTENTION : Le taux d'abondement doit être inférieur ou égal à 300% par tranche de 5%\",\"\"))","v":""}]
[null,null,"5.","Plafond d'abondement : ",null,null,null,null,null,null,null,null,null,"En cas de plafonnement DIFFÉRENT du PASS (Plafond Annuel de la Sécurité Sociale) indiquez-le ci-dessous :"]
[]
[null,null,null,null,null,null,null,null,null,null,null,null,"PEE",null,null,null,null,null,null,null,null,null,null,null,"€",{"$f":"IF(R33>T100,\"ERREUR PLAFOND\",\"\")","v":""},null,null,null,null,"PERCO",null,null,null,null,null,null,null,null,null,null,null,"€",{"$f":"IF(AJ33>AF100,\"ERREUR PLAFOND\",\"\")","v":""}]
[null,null,null,null,null,null,null,null,null,null,null,null,null,null,null,null,null,{"$f":"+IF(Z33=\"ERREUR PLAFOND\",\"ATTENTION : Le plafond d'abondement PEE/PEI doit être inférieur ou égal à 3 768 €\",\"\")","v":""}]
[null,null,null,null,null,null,null,null,null,null,null,null,null,null,null,null,null,{"$f":"+IF(AR33=\"ERREUR PLAFOND\",\"ATTENTION : Le plafond d'abondement PERCO/PERCOI doit être inférieur ou égal à 7 536 €\",\"\")","v":""}]
[null,null,"6.","Si CSG-CRDS non précomptées pour le salarié, cochez la case :",null,null,null,null,null,null,null,null,null,null,null,null,null,null,null,null,null,null,null,null,null,null,null,null,null,null,null,null,"¡","Cliquez sur la cellule pour sélectionner la coche"]
[null,null,null,"À savoir :"]
[null,null,null,"Le montant que Groupama Épargne Salariale doit investir est le montant net de CSG-CRDS (les prélèvements sociaux étant payés directement par vos soins). Si vous cochez cette case, cela signifie que vous souhaitez par dérogation nous adresser un montant brut de CSG-CRDS et que vous aurez prélevé sur la fiche de paie de chacun des salariés concernés la CSG-CRDS relative à l'opération réalisée. Cette dérogation n'est pas possible si l'abondement est à calculer par Groupama Épargne Salariale."]
[]
[null,null,"7.","La fiche récapitulative"]
[null,null,null,"Elle s'incrémente automatiquement et reprend les données importantes des versements."]
[]
[]
[null,null,null,null,null,null,null,null,null,null,null,null,null,null,null,null,null,null,null,null,null,null,null,null,"Pour aller directement à la fiche récapitulative cliquez",null,null,null,null,null,null,null,null,null,null,null,null,null,null,null,null,null,null,null,null,null,null,null,null,null,null,null,null,"ICI"]
[]
["Informations complémentaires"]
[]
[null,"Exercice fiscal de référence\n(obligatoire pour la participation et l'intéressement)",null,null,null,null,null,null,null,null,null,null,null,null,null,null,null,null,null,null,null,null,null,null,null,null,null,null,null,null,null," format mmaaaa exemple : 122024 pour décembre 2024"]
[]
[]
[]
["Pour chaque Épargnant",null,null,null,null,null,null,null,null,null,null,null,"(1 bulletin par épargnant)"]
[]
[null,null,null,"Informations de l'épargnant : "]
[null,null,null,"Ê"," Nom, prénom"]
[null,null,null,"Ê"," N° Sécurité Sociale"]
[null,null,null,"Ê"," L'adresse postale"]
[null,null,null,"Ê"," L'adresse e-mail"]
[null,null,null,"Ê"," Le calcul des taxes liées à l'abondement est déterminé par le statut de l'épargnant. Sélectionnez le statut Salarié ou Non salarié."]
[]
[null,null,null,"Montants à investir :"]
[null,null,null,"Ê"," Dans la case A et B, inscrire le montant du versement personnel à investir dans PEE et/ou PERCO"]
[]
[null,null,null,"Ê"," Le total des montants investis hors abondement se calcule automatiquement"]
[]
[null,null,null,"Ê","L'abondement sera investi sur les mêmes fonds que ceux du versement de l'épargnant. \nexemple : 500€ sur le fonds monétaire et 500€ sur le fonds dynamique, l'abondement sera de 50% monétaire et 50% dynamique sur les même fonds"]
[]
[null,null,null,"Répartition de l'épargne :"]
[null,null,null,null,"Vous pouvez choisir les 2 modes de gestion pour votre épargne :"]
[]
[null,null,null,"Ê","La Gestion Libre (pour le PEE et le PERCO) : vous choisissez les supports d'investissement sur lesquels investir.\nPour cela, répartissez votre investissement sur un ou plusieurs fonds de votre choix.\nVous pouvez changer la répartition des montants sur les fonds disponibles à tout moment sur votre espace sécurisé épargnant.\n\n"]
[]
[null,null,null,"Ê","La Gestion Pilotée (uniquement pour le PERCO) : elle permet la répartition du versement selon une grille d’allocation. Elle consiste à bénéficier d'arbitrages automatiques en fonction de l'âge théorique du départ en retraite (par défaut 65 ans) pour désensibiliser ses avoirs au risque financier. "]
[]
[null,null,null,null,"Si vous choisissez l'option gestion pilotée, indiquez \"oui\" dans la case dédiée et choisissez l'un des 3 profils de gestion.\nDès lors que cette option est choisie elle perdurera jusqu'à la fin de votre contrat sauf si vous décidez de changer d'avis, il vous suffira de nous le spécifier."]
[]
[null,null,null,"En l'absence de choix de fonds, les sommes seront investies :\n- sur le fonds par défaut dans le PEE\n- selon le mode de gestion pilotée dans le PERCO : \n          - soit le profil Prudent s'il s'agit de votre premier versement ou si vous aviez opté pour la gestion libre lors de précédent versement,\n          - soit avec le même profil de gestion pilotée précédemment choisi."]
[]
[]
[]
[]
[]
[]
["Comment est calculé l'abondement ?"]
[]
[]
[null,"Le montant du Plafond Annuel de la Sécurité Sociale (PASS) détermine les montants maximums pouvant être versés au titre de l’abondement. "]
[null,"L'abondement du PEE est plafonné à 8% du PASS et celui du PERCO à 16% du PASS."]
[null,"Pour les salariés, l'abondement est soumis à la CSG/CRDS de 9,7%."]
[]
[null,null,null,null,null,null,null,null,null,null,null,null,null,null,null,null,null,null,"Le PASS pour l'année",null,null,null,null,null,2025,null,null,null,null,"est de",null,null,47100]
[]
[]
[]
[null,null,null,null,null,null,null,null,null,null,null,null,null,null,null,null,null,null,null,"PEE",null,null,null,null,null,null,null,null,null,null,null,"PERCO",null,null,null,null,null,null,null,null,null,null,null,null,null,"PERCO abondement unilatéral"]
[]
[null,"Plafonds pour un Travailleur Salarié (TS)",null,null,null,null,null,null,null,null,null,null,null,null,null,null,null,null,null,{"$f":"+'Saisie des données + guide'!Y112","v":3402.5},null,null,null,null,null,null,null,null,null,null,null,{"$f":"+'Saisie des données + guide'!Y113","v":6805.01},null,null,null,null,null,null,null,null,null,null,null,null,null,{"$f":"ROUND(6000*90.3%,2)","v":5418}]
[]
[]
[null,"Plafonds pour un Travailleur Non Salarié (TNS)",null,null,null,null,null,null,null,null,null,null,null,null,null,null,null,null,null,{"$f":"+'Saisie des données + guide'!N112","v":3768},null,null,null,null,null,null,null,null,null,null,null,{"$f":"+'Saisie des données + guide'!N113","v":7536},null,null,null,null,null,null,null,null,null,null,null,null,null,6000]
[]
[]
[]
[]
[]
[]
[]
[null,null,null,"DONNEES INTERVENANT DANS LES FEUILLES DE CALCUL :"]
[]
[]
[null,null,null,null,"Montant maximum d'abondement :"]
[null,null,null,null,null,null,null,"-  pour le PEE",null,null,null,null,null,{"$f":"MIN(ROUND(8%*PASS,2),R33)","v":3768},null,null,null,null,"d’où un net salarié",null,null,null,null,null,{"$f":"ROUND(Plafond_PEE*(1-CSG_CRDS),2)","v":3402.5}]
[null,null,null,null,null,null,null,"-  pour le PERCO",null,null,null,null,null,{"$f":"MIN(ROUND(16%*PASS,2),AJ33)","v":7536},null,null,null,null,"d’où un net salarié",null,null,null,null,null,{"$f":"ROUND(Plafond_PERCO*(1-CSG_CRDS),2)","v":6805.01}]
[]
[null,null,null,null,"CSG-CRDS (salarié)",null,null,null,null,null,null,null,null,{"$f":"9.7%","v":9.6999999999999989E-2},null,null,null,"sur une base de ",null,null,null,null,null,null,null,1,null,null,null,null,"soit un taux de",null,null,null,null,{"$f":"N115*Z115","v":9.6999999999999989E-2}]
[]
[null,null,null,null,"CSG-CRDS (TNS)",null,null,null,null,null,null,null,null,{"$f":"9.7%","v":9.6999999999999989E-2}]
[]
[null,null,null,null,"Forfait social PEE",null,null,null,null,null,null,0.2]
[null,null,null,null,"Forfait social PERCO",null,null,null,null,null,null,0.16]
[null,null,null,null,"Origine des versements :",null,null,null,null,null,null,null,null,null,null,null,null,null,null,null,null,"Épargne personnelle",null,null,null,null,null,null,null,null,null,null,null,null,null,null,null,null,null,"Gamme GER"]
[null,null,null,null,null,null,null,null,null,null,null,null,null,null,null,null,null,null,null,null,null,"Intéressement",null,null,null,null,null,null,null,null,null,null,null,null,null,null,null,null,null,"Gamme TESORUS"]
[null,null,null,null,null,null,null,null,null,null,null,null,null,null,null,null,null,null,null,null,null,"Participation"]
[null,null,null,null,null,null,null,null,null,null,null,null,null,null,null,null,null,null,null,null,null,"Prime de partage de la valeur"]
[null,null,null,null,null,null,null,null,null,null,null,null,null,null,null,null,null,null,null,null,null,"Jours de repos non pris / CET"]
[null,null,null,null,null,null,null,null,null,null,null,null,null,null,null,null,null,null,null,null,null,"Abondement unilatéral"]
[null,null,null,null,"Salaire",null,null,null,null,null,null,null,null,null,null,null,null,null,null,null,null,"Taille de l'entreprise",null,null,null,null,null,"- 50 salariés"]
[null,null,null,null,null,null,null,null,null,null,"- 3 SMIC",null,null,null,null,null,null,null,null,null,null,null,null,null,null,null,null,"+ 50 salariés"]
[null,null,null,null,null,null,null,null,null,null,"+ 3 SMIC"]
[]
["Comment calculer la prime de partage de la valeur (PPV) ?"]
[]
[]
[null,null,null,null,null,null,null,null,null,null,null,null,null,null,null,null,null,"BRUT vers NET",null,null,null,null,null,null,null,null,null,null,null,null,null,null,null,null,null,null,null,null,null,null,null,null,null,null,null,"NET vers BRUT"]
[]
[null,null,"Taille de l'entreprise",null,null,null,null,null,null,null,null,null,null,null,null,null,null,"- de 50 salariés",null,null,null,null,null,null,null,null,null,null,null,null,null,"Taille de l'entreprise",null,null,null,null,null,null,null,null,null,null,null,null,null,"- de 50 salariés"]
[]
[null,null,"Montant brut de la PPV",null,null,null,null,null,null,null,null,null,null,null,null,null,null,null,null,null,null,null,null,null,null,null,null,null,null,null,null,"Montant net de la PPV"]
[]
[null,null,"Montant net de la PPV\npour un salarié percevant\n- de 3 SMIC",null,null,null,null,null,null,null,null,null,null,null,null,null,null,{"$f":"IF($R$136=\"- de 50 salariés\",$R$138,$R$138-$R$138*(1-1.75%)*9.7%)","v":0},null,null,null,null,null,null,null,null,null,null,null,null,null,"Montant brut de la PPV\npour un salarié percevant\n- de 3 SMIC",null,null,null,null,null,null,null,null,null,null,null,null,null,{"$f":"IF($AT$136=\"- de 50 salariés\",$AT$138,$AT$138/(1-(9.7%*98.25%)))","v":0}]
[]
[null,null,"Montant net de la PPV\npour un salarié percevant\nentre 3 SMIC et 4 PASS (15 700 €/mois)",null,null,null,null,null,null,null,null,null,null,null,null,null,null,{"$f":"$R$138 - $R$138 *  (1-1.75%) * 9.7%","v":0},null,null,null,null,null,null,null,null,null,null,null,null,null,"Montant brut de la PPV\npour un salarié percevant\n+ de 3 SMIC",null,null,null,null,null,null,null,null,null,null,null,null,null,{"$f":" $AT$138 / (1 - (9.7% * 98.25% ))","v":0}]
[]
[null,null,"Montant net de la PPV\npour un salarié percevant\n+ de 4 PASS (15 700 €/mois)",null,null,null,null,null,null,null,null,null,null,null,null,null,null,{"$f":"$R$138 - $R$138 *  9.7%","v":0},null,null,null,null,null,null,null,null,null,null,null,null,null,"Montant net de la PPV\npour un salarié percevant\n+ de 4 PASS (15 700 €/mois)",null,null,null,null,null,null,null,null,null,null,null,null,null,{"$f":"$AT$138/(1-(9.7%))","v":0}]
[]
[]
[null,"La CSG/CRDS de 9,7% s'applique sur la base de 98,25% du montant de la PPV sauf si le bénéficiaire appartient à une entreprise de moins de 50 salariés et perçoit moins de 3 SMIC.\nPour les salariés percevant plus de 4 PASS, la CSG/CRDS s'applique sur 100% de la PPV quelle que soit la taille de l'entreprise."]
[null,"La PPV peut aller jusqu’à 6 000 € (au lieu de 3000 €), par an et par bénéficiaire, à condition qu’il existe dans l’entreprise, au moment du versement :\n• un accord d’intéressement et/ou de participation lorsque l’entreprise n’est pas soumise à la participation obligatoire\n• un accord d’intéressement lorsqu’elle est soumise à la participation obligatoire"]
[]
[]
[null,"- de 50 salariés"]
[null,"+ de 50 salariés"]

{"sheet":"Bulletin n°1","index":1,"n_rows":104,"n_cols":63,"rows_kept":104,"cut":false,"hidden":false,"merged":[[56,14,56,15],[56,17,56,23],[56,24,56,25],[56,27,56,34],[53,17,53,23],[53,24,53,25],[53,27,53,34],[54,2,54,13],[54,14,54,15],[54,17,54,23],[54,24,54,25],[54,27,54,34],[55,2,55,13],[55,14,55,15],[55,17,55,23],[55,24,55,25],[55,27,55,34],[50,17,50,23],[50,24,50,25],[50,27,50,34],[51,2,51,13],[51,14,51,15],[51,17,51,23],[51,24,51,25],[51,27,51,34],[52,2,52,13],[52,14,52,15],[52,17,52,23],[52,24,52,25],[52,27,52,34],[5,6,5,10],[5,13,5,16],[9,6,9,10],[9,15,9,16],[9,25,9,34],[62,38,64,68],[65,38,68,68],[46,27,46,34],[65,30,65,34],[45,17,45,23],[44,27,44,34],[46,24,46,25],[45,27,45,34],[45,24,45,25],[44,24,44,25],[46,38,60,69],[60,2,60,13],[27,57,27,67],[36,27,37,34],[22,45,22,62],[24,26,24,34],[60,27,60,34],[42,27,43,34],[60,17,60,23],[17,87,17,105],[35,14,35,15],[42,14,43,15],[36,24,37,25],[42,24,43,25],[21,21,21,27],[21,28,21,29],[36,14,37,15],[36,16,37,16],[38,57,38,67],[22,63,22,68],[38,53,38,56],[32,14,32,23],[32,24,32,34],[33,50,33,53],[24,38,24,47],[22,21,22,31],[35,17,35,23],[42,26,43,26],[23,38,23,47],[35,24,35,25],[35,27,35,34],[27,40,27,45],[27,50,27,53],[82,10,82,15],[82,16,82,21],[82,22,82,27],[67,2,67,34],[75,7,75,8],[60,24,60,25],[72,20,72,34],[73,2,73,4],[62,11,62,12],[66,17,66,23],[75,10,75,12],[73,20,75,34],[60,14,60,15],[73,5,73,18],[63,11,63,16],[68,2,69,34],[71,3,71,34],[62,24,63,25],[62,26,63,26],[62,27,63,34],[62,17,63,22],[65,14,65,15],[70,2,70,34],[63,3,64,10],[0,1,0,58],[0,62,0,67],[71,38,74,69],[75,44,75,69],[39,38,41,53],[42,38,43,52],[42,57,43,67],[34,57,34,67],[30,38,30,42],[30,45,30,62],[30,63,30,68],[31,38,31,47],[31,48,31,68],[32,50,32,53],[32,54,32,68],[33,40,33,45],[33,47,33,48],[33,57,33,67],[36,68,36,69],[32,38,32,47],[7,44,7,68],[9,44,9,68],[22,38,22,42],[24,2,24,3],[2,38,2,68],[2,1,2,35],[21,30,21,34],[24,55,24,68],[11,6,11,16],[15,25,15,34],[15,6,15,16],[11,25,11,34],[7,25,7,34],[5,25,5,34],[7,6,7,16],[15,2,15,3],[5,44,5,49],[5,62,5,68],[16,62,16,68],[15,55,15,61],[13,6,13,10],[17,6,17,16],[23,48,23,68],[21,14,21,19],[23,22,23,34],[13,25,13,34],[11,44,11,68],[23,4,23,10],[24,4,24,10],[24,12,24,13],[24,14,24,20],[24,22,24,25],[25,50,26,53],[28,40,28,45],[28,50,28,53],[36,56,36,67],[24,50,24,53],[28,57,28,67],[25,57,26,67],[25,56,26,56],[36,17,37,23],[36,26,37,26],[33,24,34,34],[33,14,34,23],[34,40,34,45],[32,2,35,13],[36,2,37,13],[25,40,26,45],[25,47,25,48],[38,17,38,23],[42,17,43,23],[44,17,44,23],[42,16,43,16],[39,14,41,15],[39,17,41,23],[39,16,41,16],[19,38,20,69],[13,62,13,68],[34,50,34,53],[38,24,38,25],[38,27,38,34],[23,14,23,20],[39,24,41,25],[17,25,17,34],[47,2,47,13],[58,2,58,13],[59,2,59,13],[57,2,57,13],[38,14,38,15],[47,14,47,15],[57,14,57,15],[58,14,58,15],[59,14,59,15],[38,2,38,13],[39,2,41,13],[42,2,43,13],[44,2,44,13],[45,2,45,13],[46,2,46,13],[48,2,48,13],[48,14,48,15],[49,2,49,13],[49,14,49,15],[50,2,50,13],[50,14,50,15],[53,2,53,13],[53,14,53,15],[56,2,56,13],[46,17,46,23],[44,14,44,15],[46,14,46,15],[45,14,45,15],[47,27,47,34],[57,27,57,34],[58,27,58,34],[59,27,59,34],[39,27,41,34],[39,26,41,26],[47,24,47,25],[57,24,57,25],[58,24,58,25],[59,24,59,25],[47,17,47,23],[57,17,57,23],[58,17,58,23],[59,17,59,23],[48,17,48,23],[48,24,48,25],[48,27,48,34],[49,17,49,23],[49,24,49,25],[49,27,49,34]]}
[null,"BULLETIN INDIVIDUEL DE VERSEMENTS SUR VOTRE PLAN D’ÉPARGNE SALARIALE                                              ",null,null,null,null,null,null,null,null,null,null,null,null,null,null,null,null,null,null,null,null,null,null,null,null,null,null,null,null,null,null,null,null,null,null,null,null,null,null,null,null,null,null,null,null,null,null,null,null,null,null,null,null,null,null,null,null,null,null,null,null,{"$f":"'Saisie des données + guide'!BC1","v":2025}]
[]
[null," INFORMATIONS ÉPARGNANT",null,null,null,null,null,null,null,null,null,null,null,null,null,null,null,null,null,null,null,null,null,null,null,null,null,null,null,null,null,null,null,null,null,null,null,null,"INFORMATIONS ENTREPRISE"]
[]
[]
[null,null,"Civilité ",null,null,null,null,null,null,null,null,null,"Nom",null,null,null,null,null,"Prénom",null,null,null,null,null,null,null,null,null,null,null,null,null,null,null,null,null,null,null,"Code entreprise",null,null,null,null,null,{"$f":"+'Saisie des données + guide'!$J$11","v":0},null,null,null,null,null,null,null,null,"Exercice fiscal de référence",null,null,null,null,null,null,null,null,{"$f":"'Saisie des données + guide'!$U$48","v":0}]
[]
[null,null,"N° Sécurité sociale",null,null,null,null,null,null,null,null,null,null,null,null,null,null,null,"Nom de naissance",null,null,null,null,null,null,null,null,null,null,null,null,null,null,null,null,null,null,null,"Raison sociale",null,null,null,null,null,{"$f":"+'Saisie des données + guide'!$J$13","v":0}]
[]
[null,null,"Date de naissance",null,null,null,null,null,null,null,null,"Département de naissance",null,null,null,null,null,null,"Ville de naissance",null,null,null,null,null,null,null,null,null,null,null,null,null,null,null,null,null,null,null,"Contact",null,null,null,null,null,{"$f":"+'Saisie des données + guide'!$J$15","v":0}]
[]
[null,null,"Adresse",null,null,null,null,null,null,null,null,null,null,null,null,null,null,null,"Pays de naissance",null,null,null,null,null,null,null,null,null,null,null,null,null,null,null,null,null,null,null,"E-mail",null,null,null,null,null,{"$f":"+'Saisie des données + guide'!$J$17","v":0}]
[]
[null,null,"Code postal",null,null,null,null,null,null,null,null,null,null,null,null,null,null,null,"Téléphone portable "]
[]
[null,null,"Ville",null,null,null,null,null,null,null,null,null,null,null,null,null,null,null,"E-mail",null,null,null,null,null,null,null,null,null,null,null,null,null,null,null,null,null,null,null,"Le Plafond Annuel de la Sécurité Sociale (PASS) est de :",null,null,null,null,null,null,null,null,null,null,null,null,null,null,null,null,{"$f":"PASS","v":47100}]
[]
[null,null,"Statut",null,null,null,null,null,null,null,null,null,null,null,null,null,null,null,"Salaire",null,null,null,null,null,null,null,null,null,null,null,null,null,null,null,null,null,null,null,"Si CSG-CRDS non précomptées pour le salarié",null,null,null,null,null,null,null,null,null,null,null,null,null,null,null,null,{"$f":"+'Saisie des données + guide'!AF36","v":0}]
[null,null,null,null,null,null,null,null,null,null,null,null,null,null,null,null,null,null,null,null,null,null,null,null,null,"À renseigner si versement d'une prime de partage de la valeur"]
[null,null,null,null,null,null,{"$f":"+IF(AND($V$22=\"Prime de partage de la valeur\",G18=\"Non salarié\"),\"La prime de partage de la valeur n’est pas accessible aux travailleurs non-salariés.\",\"\")","v":""},null,null,null,null,null,null,null,null,null,null,null,null,null,null,null,null,null,null,null,null,null,null,null,null,null,null,null,null,null,null,null,{"$f":"+'Saisie des données + guide'!D38","v":"Le montant que Groupama Épargne Salariale doit investir est le montant net de CSG-CRDS (les prélèvements sociaux étant payés directement par vos soins). Si vous cochez cette case, cela signifie que vous souhaitez par dérogation nous adresser un montant brut de CSG-CRDS et que vous aurez prélevé sur la fiche de paie de chacun des salariés concernés la CSG-CRDS relative à l'opération réalisée. Cette dérogation n'est pas possible si l'abondement est à calculer par Groupama Épargne Salariale."}]
[]
[null,null,"MONTANTS À INVESTIR",null,null,null,null,null,null,null,null,null,null,null,"Origine des versements :",null,null,null,null,null,null,{"$f":"'Saisie des données + guide'!T20","v":"Épargne personnelle"},null,null,null,null,null,null,{"$f":"IF(V22=\"Abondement unilatéral\", \"C =\", \"\")","v":""}]
[null,null,null,null,null,null,null,null,null,null,null,null,null,null,null,null,null,null,null,null,null,null,null,null,null,null,null,null,null,null,null,null,null,null,null,null,null,null,"PEE"]
[null,null,null,null,"PEE",null,null,null,null,null,null,null,null,null,"PERCO",null,null,null,null,null,null,null,"MONTANT TOTAL"]
[null,null,"A =",null,null,null,null,null,null,null,null,null,"B =",null,null,null,null,null,null,null,null,null,"A + B =",null,null,null,{"$f":"E25+O25","v":0},null,null,null,null,null,null,null,null,null,null,null,{"$f":"V22","v":"Épargne personnelle"},null,null,null,null,null,null,null,null,null,null,null,"Taux",null,null,null,null,{"$f":"\"Abondement sur \"&$V$22&\"\"","v":"Abondement sur Épargne personnelle"}]
[null,null,null,null,null,null,null,null,null,null,null,null,null,null,null,null,null,null,null,null,null,null,null,null,null,null,null,null,null,null,null,null,null,null,null,null,null,null,null,null,{"$f":"E25","v":0},null,null,null,null,null,null,"x",null,null,{"$f":"+'Saisie des données + guide'!R29","v":0},null,null,null,null,null,"A' =",{"$f":"IF(ISBLANK(E25),\"\",IF(AND(G18=J94,ISBLANK('Saisie des données + guide'!AF36)),MIN(Plafond_PEE_net,E25*AY26*(1-CSG_CRDS)),MIN(Plafond_PEE,E25*AY26)))","v":""}]
[]
[null,null,null,null,null,null,null,null,null,null,null,null,null,null,null,null,null,null,null,null,null,null,null,null,null,null,null,null,null,null,null,null,null,null,null,null,null,null,null,null,"A",null,null,null,null,null,null,null,null,null,"T",null,null,null,null,null,null,{"$f":"IF(AND(G18=J94,ISBLANK('Saisie des données + guide'!AF36)),\"plafonné à \" &Plafond_PEE_net&\" € pour \"&J94,IF(G18=J94,\"plafonné à \" &Plafond_PEE&\" € pour \"&J94,\"plafonné à \" &Plafond_PEE&\" € pour \"&J95))","v":"plafonné à 3768 € pour Non salarié"}]
[null,null,"RÉPARTITION DE L'ÉPARGNE"]
[null,null,null,"A. Gestion Libre"]
[null,null,null,"valable pour le PEE et/ou le PERCO",null,null,null,null,null,null,null,null,null,null,null,null,null,null,null,null,null,null,null,null,null,null,null,null,null,null,null,null,null,null,null,null,null,null,"PERCO"]
[]
[null,null,"NOM DES FONDS\n\n    N'hésitez pas à consulter l'onglet \"Autres fonds\" pour ajouter d'autres supports de placement présents dans votre contrat.",null,null,null,null,null,null,null,null,null,null,null,"PEE",null,null,null,null,null,null,null,null,null,"PERCO",null,null,null,null,null,null,null,null,null,null,null,null,null,{"$f":"$V$22","v":"Épargne personnelle"},null,null,null,null,null,null,null,null,null,null,null,"Taux",null,null,null,{"$f":"IF($V$22=\"Épargne personnelle\",\"Abondement sur Épargne personnelle\",IF($V$22=\"Intéressement\",\"Abondement sur Intéressement\",IF($V$22=\"Participation\",\"Abondement sur Participation\",IF($V$22=\"Jours de repos non pris / CET\",\"Abondement sur Jours de repos non pris / CET\",IF($V$22=\"Prime de partage de la valeur\",\"Abondement sur Prime de partage de la valeur\",IF($V$22=\"Abondement unilatéral\",\"Abondement unilatéral\"))))))","v":"Abondement sur Épargne personnelle"}]
[null,null,null,null,null,null,null,null,null,null,null,null,null,null,{"$f":"+IF(SUM(R37:X61)>E25,\"ERREUR SAISIE\",IF(R36=0,\"\",\"Reste à répartir sur les fonds suivants\"))","v":""},null,null,null,null,null,null,null,null,null,{"$f":"+IF(SUM(AB37:AI64)>(O25+AE22),\"ERREUR SAISIE\",IF(AB36=0,\"\",\"Reste à répartir sur les fonds suivants\"))","v":""},null,null,null,null,null,null,null,null,null,null,null,null,null,null,null,{"$f":"$O$25","v":0},null,null,null,null,null,null,"x",null,null,{"$f":"+'Saisie des données + guide'!$AJ$29","v":0},null,null,null,null,null,{"$f":"IF(V22=\"abondement unilatéral\", \" C' = \",\"B' = \")","v":"B' = "},{"$f":"IF(AND(ISBLANK(O25),ISBLANK(AE22)),\"\",IF(AND(V22=\"Abondement unilatéral\",G18=J94,ISBLANK('Saisie des données + guide'!AF36)),MIN(Plafond_uni_TS,AE22*0.903),IF(AND(V22=\"Abondement unilatéral\",G18=J95),MIN(Plafond_uni_TNS,AE22),IF(AND(V22<>\"Abondement unilatéral\",G18=J94,ISBLANK('Saisie des données + guide'!AF36)),MIN(Plafond_PERCO_net,(1-CSG_CRDS)*AY34*O25),IF(AND(V22<>\"Abondement unilatéral\",G18=J95,ISBLANK('Saisie des données + guide'!AF36)),MIN(Plafond_PERCO,AY34*O25),IF(AND(V22<>\"Abondement unilatéral\",G18=J94,'Saisie des données + guide'!AF36=\"X\"),MIN(Plafond_PERCO,AY34*O25),IF(AND(V22<>\"Abondement unilatéral\",G18=J95,'Saisie des données + guide'!AF36=\"X\"),MIN(Plafond_PERCO,AY34*O25),IF(AND(V22=\"Abondement unilatéral\",G18=J95,'Saisie des données + guide'!AF36=\"X\"),MIN(Plafond_uni_TNS,AE22),IF(AND(V22=\"Abondement unilatéral\",G18=J94,'Saisie des données + guide'!AF36=\"X\"),MIN(Plafond_uni_TNS,AE22))))))))))","v":""}]
[null,null,null,null,null,null,null,null,null,null,null,null,null,null,null,null,null,null,null,null,null,null,null,null,null,null,null,null,null,null,null,null,null,null,null,null,null,null,null,null,"B",null,null,null,null,null,null,null,null,null,"T'",null,null,null,null,null,null,{"$f":"IF(AND(ISBLANK(O25),ISBLANK(AE22)),\"\",IF(AND(V22=\"Abondement unilatéral\",G18=J94,ISBLANK('Saisie des données + guide'!AF36)),\"plafonné à \"&Plafond_uni_TS&\" € pour \"&J94,IF(AND(V22=\"Abondement unilatéral\",G18=J95),\"plafonné à \"&Plafond_uni_TNS&\" € pour \"&J95,IF(AND(V22<>\"Abondement unilatéral\",G18=J94,ISBLANK('Saisie des données + guide'!AF36)),\"plafonné à \"&Plafond_PERCO_net&\" € pour \"&J94,IF(AND(V22<>\"Abondement unilatéral\",G18=J95,ISBLANK('Saisie des données + guide'!AF36)),\"plafonné à \"&Plafond_PERCO&\" € pour \"&J95,IF(AND(V22<>\"Abondement unilatéral\",G18=J94,'Saisie des données + guide'!AF36=\"X\"),\"plafonné à \"&Plafond_PERCO&\" € pour \"&J94,IF(AND(V22<>\"Abondement unilatéral\",G18=J95,'Saisie des données + guide'!AF36=\"X\"),\"plafonné à \"&Plafond_PERCO&\" € pour \"&J95,IF(AND(V22=\"Abondement unilatéral\",G18=J95,'Saisie des données + guide'!AF36=\"X\"),\"plafonné à \"&Plafond_uni_TNS&\" € pour \"&J95,IF(AND(V22=\"Abondement unilatéral\",G18=J94,'Saisie des données + guide'!AF36=\"X\"),\"plafonné à \"&Plafond_uni_TNS&\" € pour \"&J94)))))))))","v":""}]
[null,null,null,null,null,null,null,null,null,null,null,null,null,null,{"$f":"100-(SUM(O37:P64))","v":100},null,{"$f":"IF(O36>1, \"%\", \"\")","v":"%"},{"$f":"E25-SUM(R37:X61)","v":0},null,null,null,null,null,null,{"$f":"100-(SUM(Y37:Z64))","v":100},null,{"$f":"IF(Y36<>0,\"%\",\" \")","v":"%"},{"$f":"(O25+AE22)-SUM(AB37:AI64)","v":0}]
[null,null,{"$f":"+IF('Saisie des données + guide'!T24=\"Gamme GER\",\"84289 - GER Monétaire\",IF('Saisie des données + guide'!T24=\"Gamme TESORUS\",\"82659 - TESORUS Monétaire\",IF('Saisie des données + guide'!T24=\"Gamme Fonds Directs\",\"15719 - Oblifonds\",IF('Saisie des données + guide'!T24=\"Gamme Finama\",\"\",\"\"))))","v":"84289 - GER Monétaire"},null,null,null,null,null,null,null,null,null,null,null,null,null,"%",{"$f":"IF(O37=\"\",\"--------------\",+E$25*O37/100)","v":"--------------"},null,null,null,null,null,null,null,null,"%",{"$f":"IF(Y37=\"\",\"--------------\",+(O$25+$AE$22)*Y37/100)","v":"--------------"}]
[]
[null,null,{"$f":"+IF('Saisie des données + guide'!T24=\"Gamme GER\",\"84309 - GER Prudence\",IF('Saisie des données + guide'!T24=\"Gamme TESORUS\",\"82719 - TESORUS Prudence\",IF('Saisie des données + guide'!T24=\"Gamme Fonds Directs\",\"4939 - Diversifonds\",\"\")))","v":"84309 - GER Prudence"},null,null,null,null,null,null,null,null,null,null,null,null,null,"%",{"$f":"IF(O39=\"\",\"--------------\",+E$25*O39/100)","v":"--------------"},null,null,null,null,null,null,null,null,"%",{"$f":"IF(Y39=\"\",\"--------------\",+(O$25+$AE$22)*Y39/100)","v":"--------------"},null,null,null,null,null,null,null,null,null,null,"VERSEMENT TOTAL DE L'ENTREPRISE",null,null,null,null,null,null,null,null,null,null,null,null,null,null,{"$f":"IF(V22=\"abondement unilatéral\", \" C' = \",\"A'+ B' = \")","v":"A'+ B' = "},null,null,null,{"$f":"MAX(BF26,0)+MAX(BF34,0)","v":0}]
[null,null,{"$f":"+IF('Saisie des données + guide'!T24=\"Gamme GER\",\"84329 - GER Equilibre\",IF('Saisie des données + guide'!T24=\"Gamme TESORUS\",\"82669 - TESORUS Equilibre\",IF('Saisie des données + guide'!T24=\"Gamme Fonds Directs\",\"2459 - Foncival\",\"\")))","v":"84329 - GER Equilibre"},null,null,null,null,null,null,null,null,null,null,null,null,null,"%",{"$f":"IF(O40=\"\",\"--------------\",+E$25*O40/100)","v":"--------------"},null,null,null,null,null,null,null,null,"%",{"$f":"IF(Y40=\"\",\"--------------\",+(O$25+$AE$22)*Y40/100)","v":"--------------"},null,null,null,null,null,null,null,null,null,null,{"$f":"IF(V20=\"abondement unilatéral\", \"\",\"Le versement de l'abondement s'effectue sur les mêmes fonds que le versement personnel.\")","v":"Le versement de l'abondement s'effectue sur les mêmes fonds que le versement personnel."}]
[]
[]
[null,null,{"$f":"+IF('Saisie des données + guide'!T24=\"Gamme GER\",\"84349 - GER Dynamique\",IF('Saisie des données + guide'!T24=\"Gamme TESORUS\",\"82689 - TESORUS Dynamique\",\"\"))","v":"84349 - GER Dynamique"},null,null,null,null,null,null,null,null,null,null,null,null,null,"%",{"$f":"IF(O43=\"\",\"--------------\",+E$25*O43/100)","v":"--------------"},null,null,null,null,null,null,null,null,"%",{"$f":"IF(Y43=\"\",\"--------------\",+(O$25+$AE$22)*Y43/100)","v":"--------------"},null,null,null,null,null,null,null,null,null,null,"VERSEMENT TOTAL INVESTI",null,null,null,null,null,null,null,null,null,null,null,null,null,null,null,null,null,null,{"$f":"+AA25+BF39","v":0}]
[]
[null,null,{"$f":"+IF('Saisie des données + guide'!T24=\"Gamme GER\",\"84369 - GER Solidaire\",IF('Saisie des données + guide'!T24=\"Gamme TESORUS\",\"87649 - TESORUS Solidaire\",\"\"))","v":"84369 - GER Solidaire"},null,null,null,null,null,null,null,null,null,null,null,null,null,"%",{"$f":"IF(O45=\"\",\"--------------\",+E$25*O45/100)","v":"--------------"},null,null,null,null,null,null,null,null,"%",{"$f":"IF(Y45=\"\",\"--------------\",+(O$25+$AE$22)*Y45/100)","v":"--------------"}]
[null,null,{"$f":"IF($C$37<>\"\",\"110429 - Finama Épargne Court Terme\",\" \")","v":"110429 - Finama Épargne Court Terme"},null,null,null,null,null,null,null,null,null,null,null,null,null,"%",{"$f":"IF(O46=\"\",\"--------------\",+E$25*O46/100)","v":"--------------"},null,null,null,null,null,null,null,null,"%",{"$f":"IF(Y46=\"\",\"--------------\",+(O$25+$AE$22)*Y46/100)","v":"--------------"}]
[null,null,{"$f":"IF($C$37<>\"\",\"79139 - Finama Actions Internationales\",\" \")","v":"79139 - Finama Actions Internationales"},null,null,null,null,null,null,null,null,null,null,null,null,null,"%",{"$f":"IF(O47=\"\",\"--------------\",+E$25*O47/100)","v":"--------------"},null,null,null,null,null,null,null,null,"%",{"$f":"IF(Y47=\"\",\"--------------\",+(O$25+$AE$22)*Y47/100)","v":"--------------"}]
[null,null,{"$f":"IF($C$37<>\"\",\"116119 - Groupama Sélection PME-ETI\",\" \")","v":"116119 - Groupama Sélection PME-ETI"},null,null,null,null,null,null,null,null,null,null,null,null,null,"%",{"$f":"IF(O48=\"\",\"--------------\",+E$25*O48/100)","v":"--------------"},null,null,null,null,null,null,null,null,"%",{"$f":"IF(Y48=\"\",\"--------------\",+(O$25+$AE$22)*Y48/100)","v":"--------------"}]
[null,null,null,null,null,null,null,null,null,null,null,null,null,null,null,null,"%",{"$f":"IF(O49=\"\",\"--------------\",+E$25*O49/100)","v":"--------------"},null,null,null,null,null,null,null,null,"%",{"$f":"IF(Y49=\"\",\"--------------\",+(O$25+$AE$22)*Y49/100)","v":"--------------"}]
[null,null,null,null,null,null,null,null,null,null,null,null,null,null,null,null,"%","--------------",null,null,null,null,null,null,null,null,"%","--------------"]
[null,null,null,null,null,null,null,null,null,null,null,null,null,null,null,null,"%",{"$f":"IF(O51=\"\",\"--------------\",+E$25*O51/100)","v":"--------------"},null,null,null,null,null,null,null,null,"%",{"$f":"IF(Y51=\"\",\"--------------\",+(O$25+$AE$22)*Y51/100)","v":"--------------"}]
[null,null,null,null,null,null,null,null,null,null,null,null,null,null,null,null,"%","--------------",null,null,null,null,null,null,null,null,"%","--------------"]
[null,null,null,null,null,null,null,null,null,null,null,null,null,null,null,null,"%","--------------",null,null,null,null,null,null,null,null,"%","--------------"]
[null,null,null,null,null,null,null,null,null,null,null,null,null,null,null,null,"%","--------------",null,null,null,null,null,null,null,null,"%","--------------"]
[null,null,null,null,null,null,null,null,null,null,null,null,null,null,null,null,"%","--------------",null,null,null,null,null,null,null,null,"%","--------------"]
[null,null,null,null,null,null,null,null,null,null,null,null,null,null,null,null,"%","--------------",null,null,null,null,null,null,null,null,"%","--------------"]
[null,null,null,null,null,null,null,null,null,null,null,null,null,null,null,null,"%","--------------",null,null,null,null,null,null,null,null,"%","--------------"]
[null,null,null,null,null,null,null,null,null,null,null,null,null,null,null,null,"%","--------------",null,null,null,null,null,null,null,null,"%","--------------"]
[null,null,null,null,null,null,null,null,null,null,null,null,null,null,null,null,"%","--------------",null,null,null,null,null,null,null,null,"%","--------------"]
[null,null,null,null,null,null,null,null,null,null,null,null,null,null,null,null,"%","--------------",null,null,null,null,null,null,null,null,"%","--------------"]
[null,null,null,null,null,null,null,null,null,null,null,null,null,null,null,null,"%",{"$f":"IF(O61=\"\",\"--------------\",+E$25*O61/100)","v":"--------------"},null,null,null,null,null,null,null,null,"%","--------------"]
[]
[null,null,null,"B. Gestion Pilotée",null,null,null,null,null,null,null,null,null,null,null,null,null,null,null,null,null,null,null,null,null,null,"%",{"$f":"IF(Y63=\"\",\"--------------\",+(O25+$AE$22)*Y63/100)","v":"--------------"},null,null,null,null,null,null,null,null,null,null,"Tous les chèques sont à libeller à l’ordre de GROUPAMA ÉPARGNE SALARIALE\net à envoyer à l'adresse :"]
[null,null,null,"valable uniquement sur le PERCO",null,null,null,null,null,null,null,{"$f":"IF(L63=\"Oui\",\"Préciser la grille d'allocation\",\"\")","v":""}]
[]
[null,null,null," Pour plus de renseignements sur la gestion pilotée >",null,null,null,null,null,null,null,null,null,null,"cliquez ici",null,null,null,null,null,null,null,null,null,null,null,null,null,null,null,null,null,null,null,null,null,null,null,"GROUPAMA ÉPARGNE SALARIALE\nService Clients\n46 rue Jules Méline\n53098 LAVAL Cedex 9"]
[]
[null,null,"Je déclare avoir pris connaissance du règlement du plan, des documents d'information clés (DIC/KID) des fonds remis par mon entreprise et téléchargeables sur www.groupama-es.fr, ainsi que des modalités de fonctionnement des versements individuels jointes au présent bulletin. \n\nConformément au contrat d’épargne salariale mis en place par votre entreprise, des frais de versements d’un maximum de 4 % peuvent s’appliquer. Nous vous invitons à contacter votre employeur pour obtenir le montant de ces frais."]
[null,null,"En l'absence de choix de fonds, les sommes seront investies sur le fonds par défaut dans le PEE ou selon le mode de gestion pilotée dans le PERCO : soit le profil Prudent s'il s'agit de votre premier versement ou si vous aviez opté pour la gestion libre lors de précédent versement, soit avec le même profil de gestion pilotée précédemment choisi."]
[]
[null,null,"Pour tout versement volontaire à partir de 8 000 €, une copie de votre pièce d'identité devra être fournie, accompagnée du dernier avis d'imposition pour un versement d’un montant de\n15 000 € et plus. "]
[null,null,null,"J’atteste sur l’honneur que mon versement est conforme à la réglementation, notamment qu'il provient bien de mes avoirs personnels et que l’ensemble de mes versements de l’année au PEE/PERCO ne dépasse pas 25 % de ma rémunération annuelle brute.",null,null,null,null,null,null,null,null,null,null,null,null,null,null,null,null,null,null,null,null,null,null,null,null,null,null,null,null,null,null,null,null,null,null,"Le numéro de Sécurité sociale est recueilli pour identifier l’épargnant en cas de risque d’homonymie.\nConformément au règlement général sur la protection des données n°2016/679 du 27 avril 2016, vos données personnelles sont traitées par Groupama Épargne Salariale aux fins de tenue des comptes d'épargne salariale. Elles sont destinées aux membres du personnel dûment habilités de Groupama Épargne Salariale ainsi qu’à ses sous-traitants. Elles sont conservées par Groupama Épargne Salariale pendant une durée maximale de trente ans à compter de la disponibilité des avoirs.Vous pouvez demander l’accès, la rectification, l'effacement et la portabilité de vos données personnelles ainsi que limiter ou vous opposer, pour motif légitime, au traitement en écrivant au Délégué Relais à la Protection des Données de Groupama Épargne Salariale – Service du Contrôle interne – 2 boulevard de Pesaro – 92000 Nanterre ou par email : controleinterne@groupama-es.fr.\n"]
[null,null,null,null,null,null,null,null,null,null,null,null,null,null,null,null,null,null,null,null,"SIGNATURE ÉPARGNANT"]
[null,null,"Fait à :"]
[]
[null,null,"le",null,null,null,null,null,null,null,{"$f":"'Saisie des données + guide'!BC1","v":2025},null,null,null,null,null,null,null,null,null,null,null,null,null,null,null,null,null,null,null,null,null,null,null,null,null,null,null,null,null,null,null,null,null,"Groupama Épargne Salariale - Entreprise d'investissement agréée par l'ACPR, Teneur de compte - conservateur de parts - Société Anonyme au capital de 8.709.015 € - Siège social : 2 boulevard de Pesaro 92000 Nanterre - 428 768 352 RCS Nanterre - Réf. : BIV-01-01-2025"]
[]
[]
[]
[]
[]
[]
[]
[]
[]
[]
[]
[null,null,null,null,"3 options dans ce BIV :"]
[]
[null,null,null,null,null,null,"Ouverture compte :"]
[null,null,null,null,null,null,null,null,null,null,null,null,"X"]
[]
[null,null,null,null,null,null,"Statut :"]
[null,null,null,null,null,null,null,null,null,"Salarié"]
[null,null,null,null,null,null,null,null,null,"Non salarié"]
[]
[null,null,null,null,null,null,"Gestion pilotée :"]
[]
[null,null,null,null,null,null,null,null,null,null,"Grille Prudente"]
[null,null,null,null,null,null,null,null,null,null,"Grille Équilibre"]
[null,null,null,null,null,null,null,null,null,null,"Grille Dynamique"]
[]
[null,null,null,null,null,null,null,null,null,null,null,"Oui"]
[null,null,null,null,null,null,null,null,null,null,null,"Non"]

{"sheet":"Bulletin n°2","index":2,"n_rows":104,"n_cols":63,"rows_kept":104,"cut":false,"hidden":false,"merged":[[7,6,7,16],[7,25,7,34],[7,44,7,68],[9,6,9,10],[9,15,9,16],[9,25,9,34],[9,44,9,68],[0,1,0,58],[0,62,0,67],[2,1,2,35],[2,38,2,68],[5,6,5,10],[5,13,5,16],[5,25,5,34],[5,44,5,49],[5,62,5,68],[15,2,15,3],[15,6,15,16],[15,25,15,34],[15,55,15,61],[16,62,16,68],[17,6,17,16],[17,25,17,34],[11,6,11,16],[11,25,11,34],[11,44,11,68],[13,6,13,10],[13,25,13,34],[13,62,13,68],[22,63,22,68],[23,4,23,10],[23,14,23,20],[23,22,23,34],[23,38,23,47],[23,48,23,68],[17,87,17,105],[19,38,20,69],[21,14,21,19],[21,21,21,27],[21,28,21,29],[21,30,21,34],[24,2,24,3],[24,4,24,10],[24,12,24,13],[24,14,24,20],[24,22,24,25],[24,26,24,34],[22,21,22,31],[22,38,22,42],[22,45,22,62],[27,40,27,45],[27,50,27,53],[27,57,27,67],[28,40,28,45],[28,50,28,53],[28,57,28,67],[24,38,24,47],[24,50,24,53],[24,55,24,68],[25,40,26,45],[25,47,25,48],[25,50,26,53],[25,56,26,56],[25,57,26,67],[30,38,30,42],[30,45,30,62],[30,63,30,68],[31,38,31,47],[31,48,31,68],[32,2,35,13],[32,14,32,23],[32,24,32,34],[32,38,32,47],[32,50,32,53],[32,54,32,68],[33,14,34,23],[33,24,34,34],[33,40,33,45],[33,47,33,48],[33,50,33,53],[33,57,33,67],[34,40,34,45],[34,50,34,53],[34,57,34,67],[35,14,35,15],[35,17,35,23],[35,24,35,25],[35,27,35,34],[36,2,37,13],[36,14,37,15],[36,16,37,16],[36,17,37,23],[36,24,37,25],[36,26,37,26],[36,27,37,34],[36,56,36,67],[36,68,36,69],[38,2,38,13],[38,14,38,15],[38,17,38,23],[38,24,38,25],[38,27,38,34],[38,53,38,56],[38,57,38,67],[42,57,43,67],[44,2,44,13],[44,14,44,15],[44,17,44,23],[44,24,44,25],[44,27,44,34],[39,27,41,34],[39,38,41,53],[42,2,43,13],[42,14,43,15],[42,16,43,16],[42,17,43,23],[42,24,43,25],[42,26,43,26],[42,27,43,34],[42,38,43,52],[39,2,41,13],[39,14,41,15],[39,16,41,16],[39,17,41,23],[39,24,41,25],[39,26,41,26],[45,2,45,13],[45,14,45,15],[45,17,45,23],[45,24,45,25],[45,27,45,34],[46,2,46,13],[46,14,46,15],[46,17,46,23],[46,24,46,25],[46,27,46,34],[48,27,48,34],[49,2,49,13],[49,14,49,15],[49,17,49,23],[49,24,49,25],[49,27,49,34],[46,38,60,69],[47,2,47,13],[47,14,47,15],[47,17,47,23],[47,24,47,25],[47,27,47,34],[48,2,48,13],[48,14,48,15],[48,17,48,23],[48,24,48,25],[50,2,50,13],[50,14,50,15],[50,17,50,23],[50,24,50,25],[50,27,50,34],[51,2,51,13],[51,14,51,15],[51,17,51,23],[51,24,51,25],[51,27,51,34],[52,2,52,13],[52,14,52,15],[52,17,52,23],[52,24,52,25],[52,27,52,34],[53,2,53,13],[53,14,53,15],[53,17,53,23],[53,24,53,25],[53,27,53,34],[54,2,54,13],[54,14,54,15],[54,17,54,23],[54,24,54,25],[54,27,54,34],[55,2,55,13],[55,14,55,15],[55,17,55,23],[55,24,55,25],[55,27,55,34],[56,2,56,13],[56,14,56,15],[56,17,56,23],[56,24,56,25],[56,27,56,34],[57,2,57,13],[57,14,57,15],[57,17,57,23],[57,24,57,25],[57,27,57,34],[58,2,58,13],[58,14,58,15],[58,17,58,23],[58,24,58,25],[58,27,58,34],[59,2,59,13],[59,14,59,15],[59,17,59,23],[59,24,59,25],[59,27,59,34],[60,2,60,13],[60,14,60,15],[60,17,60,23],[60,24,60,25],[60,27,60,34],[62,11,62,12],[62,17,63,22],[62,24,63,25],[62,26,63,26],[62,27,63,34],[62,38,64,68],[63,3,64,10],[63,11,63,16],[65,14,65,15],[65,30,65,34],[65,38,68,68],[66,17,66,23],[67,2,67,34],[68,2,69,34],[82,10,82,15],[82,16,82,21],[82,22,82,27],[70,2,70,34],[71,3,71,34],[71,38,74,69],[72,20,72,34],[73,2,73,4],[73,5,73,18],[73,20,75,34],[75,7,75,8],[75,10,75,12],[75,44,75,69]]}
[null,"BULLETIN INDIVIDUEL DE VERSEMENTS SUR VOTRE PLAN D’ÉPARGNE SALARIALE                                              ",null,null,null,null,null,null,null,null,null,null,null,null,null,null,null,null,null,null,null,null,null,null,null,null,null,null,null,null,null,null,null,null,null,null,null,null,null,null,null,null,null,null,null,null,null,null,null,null,null,null,null,null,null,null,null,null,null,null,null,null,{"$f":"'Saisie des données + guide'!BC1","v":2025}]
[]
[null," INFORMATIONS ÉPARGNANT",null,null,null,null,null,null,null,null,null,null,null,null,null,null,null,null,null,null,null,null,null,null,null,null,null,null,null,null,null,null,null,null,null,null,null,null,"INFORMATIONS ENTREPRISE"]
[]
[]
[null,null,"Civilité ",null,null,null,null,null,null,null,null,null,"Nom",null,null,null,null,null,"Prénom",null,null,null,null,null,null,null,null,null,null,null,null,null,null,null,null,null,null,null,"Code entreprise",null,null,null,null,null,{"$f":"+'Saisie des données + guide'!$J$11","v":0},null,null,null,null,null,null,null,null,"Exercice fiscal de référence",null,null,null,null,null,null,null,null,{"$f":"'Saisie des données + guide'!$U$48","v":0}]
[]
[null,null,"N° Sécurité sociale",null,null,null,null,null,null,null,null,null,null,null,null,null,null,null,"Nom de naissance",null,null,null,null,null,null,null,null,null,null,null,null,null,null,null,null,null,null,null,"Raison sociale",null,null,null,null,null,{"$f":"+'Saisie des données + guide'!$J$13","v":0}]
[]
[null,null,"Date de naissance",null,null,null,null,null,null,null,null,"Département de naissance",null,null,null,null,null,null,"Ville de naissance",null,null,null,null,null,null,null,null,null,null,null,null,null,null,null,null,null,null,null,"Contact",null,null,null,null,null,{"$f":"+'Saisie des données + guide'!$J$15","v":0}]
[]
[null,null,"Adresse",null,null,null,null,null,null,null,null,null,null,null,null,null,null,null,"Pays de naissance",null,null,null,null,null,null,null,null,null,null,null,null,null,null,null,null,null,null,null,"E-mail",null,null,null,null,null,{"$f":"+'Saisie des données + guide'!$J$17","v":0}]
[]
[null,null,"Code postal",null,null,null,null,null,null,null,null,null,null,null,null,null,null,null,"Téléphone portable "]
[]
[null,null,"Ville",null,null,null,null,null,null,null,null,null,null,null,null,null,null,null,"E-mail",null,null,null,null,null,null,null,null,null,null,null,null,null,null,null,null,null,null,null,"Le Plafond Annuel de la Sécurité Sociale (PASS) est de :",null,null,null,null,null,null,null,null,null,null,null,null,null,null,null,null,{"$f":"PASS","v":47100}]
[]
[null,null,"Statut",null,null,null,null,null,null,null,null,null,null,null,null,null,null,null,"Salaire",null,null,null,null,null,null,null,null,null,null,null,null,null,null,null,null,null,null,null,"Si CSG-CRDS non précomptées pour le salarié",null,null,null,null,null,null,null,null,null,null,null,null,null,null,null,null,{"$f":"+'Saisie des données + guide'!AF36","v":0}]
[null,null,null,null,null,null,null,null,null,null,null,null,null,null,null,null,null,null,null,null,null,null,null,null,null,"À renseigner si versement d'une prime de partage de la valeur"]
[null,null,null,null,null,null,{"$f":"+IF(AND($V$22=\"Prime de partage de la valeur\",G18=\"Non salarié\"),\"La prime de partage de la valeur n’est pas accessible aux travailleurs non-salariés.\",\"\")","v":""},null,null,null,null,null,null,null,null,null,null,null,null,null,null,null,null,null,null,null,null,null,null,null,null,null,null,null,null,null,null,null,{"$f":"+'Saisie des données + guide'!D38","v":"Le montant que Groupama Épargne Salariale doit investir est le montant net de CSG-CRDS (les prélèvements sociaux étant payés directement par vos soins). Si vous cochez cette case, cela signifie que vous souhaitez par dérogation nous adresser un montant brut de CSG-CRDS et que vous aurez prélevé sur la fiche de paie de chacun des salariés concernés la CSG-CRDS relative à l'opération réalisée. Cette dérogation n'est pas possible si l'abondement est à calculer par Groupama Épargne Salariale."}]
[]
[null,null,"MONTANTS À INVESTIR",null,null,null,null,null,null,null,null,null,null,null,"Origine des versements :",null,null,null,null,null,null,{"$f":"'Saisie des données + guide'!T20","v":"Épargne personnelle"},null,null,null,null,null,null,{"$f":"IF(V22=\"Abondement unilatéral\", \"C =\", \"\")","v":""}]
[null,null,null,null,null,null,null,null,null,null,null,null,null,null,null,null,null,null,null,null,null,null,null,null,null,null,null,null,null,null,null,null,null,null,null,null,null,null,"PEE"]
[null,null,null,null,"PEE",null,null,null,null,null,null,null,null,null,"PERCO",null,null,null,null,null,null,null,"MONTANT TOTAL"]
[null,null,"A =",null,null,null,null,null,null,null,null,null,"B =",null,null,null,null,null,null,null,null,null,"A + B =",null,null,null,{"$f":"E25+O25","v":0},null,null,null,null,null,null,null,null,null,null,null,{"$f":"V22","v":"Épargne personnelle"},null,null,null,null,null,null,null,null,null,null,null,"Taux",null,null,null,null,{"$f":"\"Abondement sur \"&$V$22&\"\"","v":"Abondement sur Épargne personnelle"}]
[null,null,null,null,null,null,null,null,null,null,null,null,null,null,null,null,null,null,null,null,null,null,null,null,null,null,null,null,null,null,null,null,null,null,null,null,null,null,null,null,{"$f":"E25","v":0},null,null,null,null,null,null,"x",null,null,{"$f":"+'Saisie des données + guide'!R29","v":0},null,null,null,null,null,"A' =",{"$f":"IF(ISBLANK(E25),\"\",IF(AND(G18=J94,ISBLANK('Saisie des données + guide'!AF36)),MIN(Plafond_PEE_net,E25*AY26*(1-CSG_CRDS)),MIN(Plafond_PEE,E25*AY26)))","v":""}]
[]
[null,null,null,null,null,null,null,null,null,null,null,null,null,null,null,null,null,null,null,null,null,null,null,null,null,null,null,null,null,null,null,null,null,null,null,null,null,null,null,null,"A",null,null,null,null,null,null,null,null,null,"T",null,null,null,null,null,null,{"$f":"IF(AND(G18=J94,ISBLANK('Saisie des données + guide'!AF36)),\"plafonné à \" &Plafond_PEE_net&\" € pour \"&J94,IF(G18=J94,\"plafonné à \" &Plafond_PEE&\" € pour \"&J94,\"plafonné à \" &Plafond_PEE&\" € pour \"&J95))","v":"plafonné à 3768 € pour Non salarié"}]
[null,null,"RÉPARTITION DE L'ÉPARGNE"]
[null,null,null,"A. Gestion Libre"]
[null,null,null,"valable pour le PEE et/ou le PERCO",null,null,null,null,null,null,null,null,null,null,null,null,null,null,null,null,null,null,null,null,null,null,null,null,null,null,null,null,null,null,null,null,null,null,"PERCO"]
[]
[null,null,"NOM DES FONDS\n\n    N'hésitez pas à consulter l'onglet \"Autres fonds\" pour ajouter d'autres supports de placement présents dans votre contrat.",null,null,null,null,null,null,null,null,null,null,null,"PEE",null,null,null,null,null,null,null,null,null,"PERCO",null,null,null,null,null,null,null,null,null,null,null,null,null,{"$f":"$V$22","v":"Épargne personnelle"},null,null,null,null,null,null,null,null,null,null,null,"Taux",null,null,null,{"$f":"IF($V$22=\"Épargne personnelle\",\"Abondement sur Épargne personnelle\",IF($V$22=\"Intéressement\",\"Abondement sur Intéressement\",IF($V$22=\"Participation\",\"Abondement sur Participation\",IF($V$22=\"Jours de repos non pris / CET\",\"Abondement sur Jours de repos non pris / CET\",IF($V$22=\"Prime de partage de la valeur\",\"Abondement sur Prime de partage de la valeur\",IF($V$22=\"Abondement unilatéral\",\"Abondement unilatéral\"))))))","v":"Abondement sur Épargne personnelle"}]
[null,null,null,null,null,null,null,null,null,null,null,null,null,null,{"$f":"+IF(SUM(R37:X61)>E25,\"ERREUR SAISIE\",IF(R36=0,\"\",\"Reste à répartir sur les fonds suivants\"))","v":""},null,null,null,null,null,null,null,null,null,{"$f":"+IF(SUM(AB37:AI64)>(O25+AE22),\"ERREUR SAISIE\",IF(AB36=0,\"\",\"Reste à répartir sur les fonds suivants\"))","v":""},null,null,null,null,null,null,null,null,null,null,null,null,null,null,null,{"$f":"$O$25","v":0},null,null,null,null,null,null,"x",null,null,{"$f":"+'Saisie des données + guide'!$AJ$29","v":0},null,null,null,null,null,{"$f":"IF(V22=\"abondement unilatéral\", \" C' = \",\"B' = \")","v":"B' = "},{"$f":"IF(AND(ISBLANK(O25),ISBLANK(AE22)),\"\",IF(AND(V22=\"Abondement unilatéral\",G18=J94,ISBLANK('Saisie des données + guide'!AF36)),MIN(Plafond_uni_TS,AE22*0.903),IF(AND(V22=\"Abondement unilatéral\",G18=J95),MIN(Plafond_uni_TNS,AE22),IF(AND(V22<>\"Abondement unilatéral\",G18=J94,ISBLANK('Saisie des données + guide'!AF36)),MIN(Plafond_PERCO_net,(1-CSG_CRDS)*AY34*O25),IF(AND(V22<>\"Abondement unilatéral\",G18=J95,ISBLANK('Saisie des données + guide'!AF36)),MIN(Plafond_PERCO,AY34*O25),IF(AND(V22<>\"Abondement unilatéral\",G18=J94,'Saisie des données + guide'!AF36=\"X\"),MIN(Plafond_PERCO,AY34*O25),IF(AND(V22<>\"Abondement unilatéral\",G18=J95,'Saisie des données + guide'!AF36=\"X\"),MIN(Plafond_PERCO,AY34*O25),IF(AND(V22=\"Abondement unilatéral\",G18=J95,'Saisie des données + guide'!AF36=\"X\"),MIN(Plafond_uni_TNS,AE22),IF(AND(V22=\"Abondement unilatéral\",G18=J94,'Saisie des données + guide'!AF36=\"X\"),MIN(Plafond_uni_TNS,AE22))))))))))","v":""}]
[null,null,null,null,null,null,null,null,null,null,null,null,null,null,null,null,null,null,null,null,null,null,null,null,null,null,null,null,null,null,null,null,null,null,null,null,null,null,null,null,"B",null,null,null,null,null,null,null,null,null,"T'",null,null,null,null,null,null,{"$f":"IF(AND(ISBLANK(O25),ISBLANK(AE22)),\"\",IF(AND(V22=\"Abondement unilatéral\",G18=J94,ISBLANK('Saisie des données + guide'!AF36)),\"plafonné à \"&Plafond_uni_TS&\" € pour \"&J94,IF(AND(V22=\"Abondement unilatéral\",G18=J95),\"plafonné à \"&Plafond_uni_TNS&\" € pour \"&J95,IF(AND(V22<>\"Abondement unilatéral\",G18=J94,ISBLANK('Saisie des données + guide'!AF36)),\"plafonné à \"&Plafond_PERCO_net&\" € pour \"&J94,IF(AND(V22<>\"Abondement unilatéral\",G18=J95,ISBLANK('Saisie des données + guide'!AF36)),\"plafonné à \"&Plafond_PERCO&\" € pour \"&J95,IF(AND(V22<>\"Abondement unilatéral\",G18=J94,'Saisie des données + guide'!AF36=\"X\"),\"plafonné à \"&Plafond_PERCO&\" € pour \"&J94,IF(AND(V22<>\"Abondement unilatéral\",G18=J95,'Saisie des données + guide'!AF36=\"X\"),\"plafonné à \"&Plafond_PERCO&\" € pour \"&J95,IF(AND(V22=\"Abondement unilatéral\",G18=J95,'Saisie des données + guide'!AF36=\"X\"),\"plafonné à \"&Plafond_uni_TNS&\" € pour \"&J95,IF(AND(V22=\"Abondement unilatéral\",G18=J94,'Saisie des données + guide'!AF36=\"X\"),\"plafonné à \"&Plafond_uni_TNS&\" € pour \"&J94)))))))))","v":""}]
[null,null,null,null,null,null,null,null,null,null,null,null,null,null,{"$f":"100-(SUM(O37:P64))","v":100},null,{"$f":"IF(O36>1, \"%\", \"\")","v":"%"},{"$f":"E25-SUM(R37:X61)","v":0},null,null,null,null,null,null,{"$f":"100-(SUM(Y37:Z64))","v":100},null,{"$f":"IF(Y36<>0,\"%\",\" \")","v":"%"},{"$f":"(O25+AE22)-SUM(AB37:AI64)","v":0}]
[null,null,{"$f":"+IF('Saisie des données + guide'!T24=\"Gamme GER\",\"84289 - GER Monétaire\",IF('Saisie des données + guide'!T24=\"Gamme TESORUS\",\"82659 - TESORUS Monétaire\",IF('Saisie des données + guide'!T24=\"Gamme Fonds Directs\",\"15719 - Oblifonds\",IF('Saisie des données + guide'!T24=\"Gamme Finama\",\"\",\"\"))))","v":"84289 - GER Monétaire"},null,null,null,null,null,null,null,null,null,null,null,null,null,"%",{"$f":"IF(O37=\"\",\"--------------\",+E$25*O37/100)","v":"--------------"},null,null,null,null,null,null,null,null,"%",{"$f":"IF(Y37=\"\",\"--------------\",+(O$25+$AE$22)*Y37/100)","v":"--------------"}]
[]
[null,null,{"$f":"+IF('Saisie des données + guide'!T24=\"Gamme GER\",\"84309 - GER Prudence\",IF('Saisie des données + guide'!T24=\"Gamme TESORUS\",\"82719 - TESORUS Prudence\",IF('Saisie des données + guide'!T24=\"Gamme Fonds Directs\",\"4939 - Diversifonds\",\"\")))","v":"84309 - GER Prudence"},null,null,null,null,null,null,null,null,null,null,null,null,null,"%",{"$f":"IF(O39=\"\",\"--------------\",+E$25*O39/100)","v":"--------------"},null,null,null,null,null,null,null,null,"%",{"$f":"IF(Y39=\"\",\"--------------\",+(O$25+$AE$22)*Y39/100)","v":"--------------"},null,null,null,null,null,null,null,null,null,null,"VERSEMENT TOTAL DE L'ENTREPRISE",null,null,null,null,null,null,null,null,null,null,null,null,null,null,{"$f":"IF(V22=\"abondement unilatéral\", \" C' = \",\"A'+ B' = \")","v":"A'+ B' = "},null,null,null,{"$f":"MAX(BF26,0)+MAX(BF34,0)","v":0}]
[null,null,{"$f":"+IF('Saisie des données + guide'!T24=\"Gamme GER\",\"84329 - GER Equilibre\",IF('Saisie des données + guide'!T24=\"Gamme TESORUS\",\"82669 - TESORUS Equilibre\",IF('Saisie des données + guide'!T24=\"Gamme Fonds Directs\",\"2459 - Foncival\",\"\")))","v":"84329 - GER Equilibre"},null,null,null,null,null,null,null,null,null,null,null,null,null,"%",{"$f":"IF(O40=\"\",\"--------------\",+E$25*O40/100)","v":"--------------"},null,null,null,null,null,null,null,null,"%",{"$f":"IF(Y40=\"\",\"--------------\",+(O$25+$AE$22)*Y40/100)","v":"--------------"},null,null,null,null,null,null,null,null,null,null,{"$f":"IF(V20=\"abondement unilatéral\", \"\",\"Le versement de l'abondement s'effectue sur les mêmes fonds que le versement personnel.\")","v":"Le versement de l'abondement s'effectue sur les mêmes fonds que le versement personnel."}]
[]
[]
[null,null,{"$f":"+IF('Saisie des données + guide'!T24=\"Gamme GER\",\"84349 - GER Dynamique\",IF('Saisie des données + guide'!T24=\"Gamme TESORUS\",\"82689 - TESORUS Dynamique\",\"\"))","v":"84349 - GER Dynamique"},null,null,null,null,null,null,null,null,null,null,null,null,null,null,{"$f":"IF(O43=\"\",\"--------------\",+E$25*O43/100)","v":"--------------"},null,null,null,null,null,null,null,null,"%",{"$f":"IF(Y43=\"\",\"--------------\",+(O$25+$AE$22)*Y43/100)","v":"--------------"},null,null,null,null,null,null,null,null,null,null,"VERSEMENT TOTAL INVESTI",null,null,null,null,null,null,null,null,null,null,null,null,null,null,null,null,null,null,{"$f":"+AA25+BF39","v":0}]
[]
[null,null,{"$f":"+IF('Saisie des données + guide'!T24=\"Gamme GER\",\"84369 - GER Solidaire\",IF('Saisie des données + guide'!T24=\"Gamme TESORUS\",\"87649 - TESORUS Solidaire\",\"\"))","v":"84369 - GER Solidaire"},null,null,null,null,null,null,null,null,null,null,null,null,null,"%",{"$f":"IF(O45=\"\",\"--------------\",+E$25*O45/100)","v":"--------------"},null,null,null,null,null,null,null,null,"%",{"$f":"IF(Y45=\"\",\"--------------\",+(O$25+$AE$22)*Y45/100)","v":"--------------"}]
[null,null,{"$f":"IF($C$37<>\"\",\"110429 - Finama Épargne Court Terme\",\" \")","v":"110429 - Finama Épargne Court Terme"},null,null,null,null,null,null,null,null,null,null,null,null,null,"%",{"$f":"IF(O46=\"\",\"--------------\",+E$25*O46/100)","v":"--------------"},null,null,null,null,null,null,null,null,"%",{"$f":"IF(Y46=\"\",\"--------------\",+(O$25+$AE$22)*Y46/100)","v":"--------------"}]
[null,null,{"$f":"IF($C$37<>\"\",\"79139 - Finama Actions Internationales\",\" \")","v":"79139 - Finama Actions Internationales"},null,null,null,null,null,null,null,null,null,null,null,null,null,"%",{"$f":"IF(O47=\"\",\"--------------\",+E$25*O47/100)","v":"--------------"},null,null,null,null,null,null,null,null,"%",{"$f":"IF(Y47=\"\",\"--------------\",+(O$25+$AE$22)*Y47/100)","v":"--------------"}]
[null,null,{"$f":"IF($C$37<>\"\",\"116119 - Groupama Sélection PME-ETI\",\" \")","v":"116119 - Groupama Sélection PME-ETI"},null,null,null,null,null,null,null,null,null,null,null,null,null,"%",{"$f":"IF(O48=\"\",\"--------------\",+E$25*O48/100)","v":"--------------"},null,null,null,null,null,null,null,null,"%",{"$f":"IF(Y48=\"\",\"--------------\",+(O$25+$AE$22)*Y48/100)","v":"--------------"}]
[null,null,null,null,null,null,null,null,null,null,null,null,null,null,null,null,"%","--------------",null,null,null,null,null,null,null,null,"%","--------------"]
[null,null,null,null,null,null,null,null,null,null,null,null,null,null,null,null,"%","--------------",null,null,null,null,null,null,null,null,"%","--------------"]
[null,null,null,null,null,null,null,null,null,null,null,null,null,null,null,null,"%","--------------",null,null,null,null,null,null,null,null,"%","--------------"]
[null,null,null,null,null,null,null,null,null,null,null,null,null,null,null,null,"%","--------------",null,null,null,null,null,null,null,null,"%","--------------"]
[null,null,null,null,null,null,null,null,null,null,null,null,null,null,null,null,"%","--------------",null,null,null,null,null,null,null,null,"%","--------------"]
[null,null,null,null,null,null,null,null,null,null,null,null,null,null,null,null,"%","--------------",null,null,null,null,null,null,null,null,"%","--------------"]
[null,null,null,null,null,null,null,null,null,null,null,null,null,null,null,null,"%","--------------",null,null,null,null,null,null,null,null,"%","--------------"]
[null,null,null,null,null,null,null,null,null,null,null,null,null,null,null,null,"%","--------------",null,null,null,null,null,null,null,null,"%","--------------"]
[null,null,null,null,null,null,null,null,null,null,null,null,null,null,null,null,"%","--------------",null,null,null,null,null,null,null,null,"%","--------------"]
[null,null,null,null,null,null,null,null,null,null,null,null,null,null,null,null,"%","--------------",null,null,null,null,null,null,null,null,"%","--------------"]
[null,null,null,null,null,null,null,null,null,null,null,null,null,null,null,null,"%","--------------",null,null,null,null,null,null,null,null,"%","--------------"]
[null,null,null,null,null,null,null,null,null,null,null,null,null,null,null,null,"%","--------------",null,null,null,null,null,null,null,null,"%","--------------"]
[null,null,null,null,null,null,null,null,null,null,null,null,null,null,null,null,"%","--------------",null,null,null,null,null,null,null,null,"%","--------------"]
[]
[null,null,null,"B. Gestion Pilotée",null,null,null,null,null,null,null,null,null,null,null,null,null,null,null,null,null,null,null,null,null,null,"%",{"$f":"IF(Y63=\"\",\"--------------\",+(O25+$AE$22)*Y63/100)","v":"--------------"},null,null,null,null,null,null,null,null,null,null,"Tous les chèques sont à libeller à l’ordre de GROUPAMA ÉPARGNE SALARIALE\net à envoyer à l'adresse :"]
[null,null,null,"valable uniquement sur le PERCO",null,null,null,null,null,null,null,{"$f":"IF(L63=\"Oui\",\"Préciser la grille d'allocation\",\"\")","v":""}]
[]
[null,null,null," Pour plus de renseignements sur la gestion pilotée >",null,null,null,null,null,null,null,null,null,null,"cliquez ici",null,null,null,null,null,null,null,null,null,null,null,null,null,null,null,null,null,null,null,null,null,null,null,"GROUPAMA ÉPARGNE SALARIALE\nService Clients\n46 rue Jules Méline\n53098 LAVAL Cedex 9"]
[]
[null,null,"Je déclare avoir pris connaissance du règlement du plan, des documents d'information clés (DIC/KID) des fonds remis par mon entreprise et téléchargeables sur www.groupama-es.fr, ainsi que des modalités de fonctionnement des versements individuels jointes au présent bulletin. \n\nConformément au contrat d’épargne salariale mis en place par votre entreprise, des frais de versements d’un maximum de 4 % peuvent s’appliquer. Nous vous invitons à contacter votre employeur pour obtenir le montant de ces frais."]
[null,null,"En l'absence de choix de fonds, les sommes seront investies sur le fonds par défaut dans le PEE ou selon le mode de gestion pilotée dans le PERCO : soit le profil Prudent s'il s'agit de votre premier versement ou si vous aviez opté pour la gestion libre lors de précédent versement, soit avec le même profil de gestion pilotée précédemment choisi."]
[]
[null,null,"Pour tout versement volontaire à partir de 8 000 €, une copie de votre pièce d'identité devra être fournie, accompagnée du dernier avis d'imposition pour un versement d’un montant de\n15 000 € et plus. "]
[null,null,null,"J’atteste sur l’honneur que mon versement est conforme à la réglementation, notamment qu'il provient bien de mes avoirs personnels et que l’ensemble de mes versements de l’année au PEE/PERCO ne dépasse pas 25 % de ma rémunération annuelle brute.",null,null,null,null,null,null,null,null,null,null,null,null,null,null,null,null,null,null,null,null,null,null,null,null,null,null,null,null,null,null,null,null,null,null,"Le numéro de Sécurité sociale est recueilli pour identifier l’épargnant en cas de risque d’homonymie.\nConformément au règlement général sur la protection des données n°2016/679 du 27 avril 2016, vos données personnelles sont traitées par Groupama Épargne Salariale aux fins de tenue des comptes d'épargne salariale. Elles sont destinées aux membres du personnel dûment habilités de Groupama Épargne Salariale ainsi qu’à ses sous-traitants. Elles sont conservées par Groupama Épargne Salariale pendant une durée maximale de trente ans à compter de la disponibilité des avoirs.Vous pouvez demander l’accès, la rectification, l'effacement et la portabilité de vos données personnelles ainsi que limiter ou vous opposer, pour motif légitime, au traitement en écrivant au Délégué Relais à la Protection des Données de Groupama Épargne Salariale – Service du Contrôle interne – 2 boulevard de Pesaro – 92000 Nanterre ou par email : controleinterne@groupama-es.fr.\n"]
[null,null,null,null,null,null,null,null,null,null,null,null,null,null,null,null,null,null,null,null,"SIGNATURE ÉPARGNANT"]
[null,null,"Fait à :"]
[]
[null,null,"le",null,null,null,null,null,null,null,{"$f":"'Saisie des données + guide'!BC1","v":2025},null,null,null,null,null,null,null,null,null,null,null,null,null,null,null,null,null,null,null,null,null,null,null,null,null,null,null,null,null,null,null,null,null,"Groupama Épargne Salariale - Entreprise d'investissement agréée par l'ACPR, Teneur de compte - conservateur de parts - Société Anonyme au capital de 8.709.015 € - Siège social : 2 boulevard de Pesaro 92000 Nanterre - 428 768 352 RCS Nanterre - Réf. : BIV-01-01-2025"]
[]
[]
[]
[]
[]
[]
[]
[]
[]
[]
[]
[null,null,null,null,"3 options dans ce BIV :"]
[]
[null,null,null,null,null,null,"Ouverture compte :"]
[null,null,null,null,null,null,null,null,null,null,null,null,"X"]
[]
[null,null,null,null,null,null,"Statut :"]
[null,null,null,null,null,null,null,null,null,"Salarié"]
[null,null,null,null,null,null,null,null,null,"Non salarié"]
[]
[null,null,null,null,null,null,"Gestion pilotée :"]
[]
[null,null,null,null,null,null,null,null,null,null,"Grille Prudente"]
[null,null,null,null,null,null,null,null,null,null,"Grille Équilibre"]
[null,null,null,null,null,null,null,null,null,null,"Grille Dynamique"]
[]
[null,null,null,null,null,null,null,null,null,null,null,"Oui"]
[null,null,null,null,null,null,null,null,null,null,null,"Non"]

{"sheet":"Bulletin n°3","index":3,"n_rows":104,"n_cols":63,"rows_kept":104,"cut":false,"hidden":false,"merged":[[7,6,7,16],[7,25,7,34],[7,44,7,68],[9,6,9,10],[9,15,9,16],[9,25,9,34],[9,44,9,68],[0,1,0,58],[0,62,0,67],[2,1,2,35],[2,38,2,68],[5,6,5,10],[5,13,5,16],[5,25,5,34],[5,44,5,49],[5,62,5,68],[15,2,15,3],[15,6,15,16],[15,25,15,34],[15,55,15,61],[16,62,16,68],[17,6,17,16],[17,25,17,34],[11,6,11,16],[11,25,11,34],[11,44,11,68],[13,6,13,10],[13,25,13,34],[13,62,13,68],[22,63,22,68],[23,4,23,10],[23,14,23,20],[23,22,23,34],[23,38,23,47],[23,48,23,68],[17,87,17,105],[19,38,20,69],[21,14,21,19],[21,21,21,27],[21,28,21,29],[21,30,21,34],[24,2,24,3],[24,4,24,10],[24,12,24,13],[24,14,24,20],[24,22,24,25],[24,26,24,34],[22,21,22,31],[22,38,22,42],[22,45,22,62],[27,40,27,45],[27,50,27,53],[27,57,27,67],[28,40,28,45],[28,50,28,53],[28,57,28,67],[24,38,24,47],[24,50,24,53],[24,55,24,68],[25,40,26,45],[25,47,25,48],[25,50,26,53],[25,56,26,56],[25,57,26,67],[30,38,30,42],[30,45,30,62],[30,63,30,68],[31,38,31,47],[31,48,31,68],[32,2,35,13],[32,14,32,23],[32,24,32,34],[32,38,32,47],[32,50,32,53],[32,54,32,68],[33,14,34,23],[33,24,34,34],[33,40,33,45],[33,47,33,48],[33,50,33,53],[33,57,33,67],[34,40,34,45],[34,50,34,53],[34,57,34,67],[35,14,35,15],[35,17,35,23],[35,24,35,25],[35,27,35,34],[36,2,37,13],[36,14,37,15],[36,16,37,16],[36,17,37,23],[36,24,37,25],[36,26,37,26],[36,27,37,34],[36,56,36,67],[36,68,36,69],[38,2,38,13],[38,14,38,15],[38,17,38,23],[38,24,38,25],[38,27,38,34],[38,53,38,56],[38,57,38,67],[42,57,43,67],[44,2,44,13],[44,14,44,15],[44,17,44,23],[44,24,44,25],[44,27,44,34],[39,27,41,34],[39,38,41,53],[42,2,43,13],[42,14,43,15],[42,16,43,16],[42,17,43,23],[42,24,43,25],[42,26,43,26],[42,27,43,34],[42,38,43,52],[39,2,41,13],[39,14,41,15],[39,16,41,16],[39,17,41,23],[39,24,41,25],[39,26,41,26],[45,2,45,13],[45,14,45,15],[45,17,45,23],[45,24,45,25],[45,27,45,34],[46,2,46,13],[46,14,46,15],[46,17,46,23],[46,24,46,25],[46,27,46,34],[48,27,48,34],[49,2,49,13],[49,14,49,15],[49,17,49,23],[49,24,49,25],[49,27,49,34],[46,38,60,69],[47,2,47,13],[47,14,47,15],[47,17,47,23],[47,24,47,25],[47,27,47,34],[48,2,48,13],[48,14,48,15],[48,17,48,23],[48,24,48,25],[50,2,50,13],[50,14,50,15],[50,17,50,23],[50,24,50,25],[50,27,50,34],[51,2,51,13],[51,14,51,15],[51,17,51,23],[51,24,51,25],[51,27,51,34],[52,2,52,13],[52,14,52,15],[52,17,52,23],[52,24,52,25],[52,27,52,34],[53,2,53,13],[53,14,53,15],[53,17,53,23],[53,24,53,25],[53,27,53,34],[54,2,54,13],[54,14,54,15],[54,17,54,23],[54,24,54,25],[54,27,54,34],[55,2,55,13],[55,14,55,15],[55,17,55,23],[55,24,55,25],[55,27,55,34],[56,2,56,13],[56,14,56,15],[56,17,56,23],[56,24,56,25],[56,27,56,34],[57,2,57,13],[57,14,57,15],[57,17,57,23],[57,24,57,25],[57,27,57,34],[58,2,58,13],[58,14,58,15],[58,17,58,23],[58,24,58,25],[58,27,58,34],[59,2,59,13],[59,14,59,15],[59,17,59,23],[59,24,59,25],[59,27,59,34],[60,2,60,13],[60,14,60,15],[60,17,60,23],[60,24,60,25],[60,27,60,34],[62,11,62,12],[62,17,63,22],[62,24,63,25],[62,26,63,26],[62,27,63,34],[62,38,64,68],[63,3,64,10],[63,11,63,16],[65,14,65,15],[65,30,65,34],[65,38,68,68],[66,17,66,23],[67,2,67,34],[68,2,69,34],[82,10,82,15],[82,16,82,21],[82,22,82,27],[70,2,70,34],[71,3,71,34],[71,38,74,69],[72,20,72,34],[73,2,73,4],[73,5,73,18],[73,20,75,34],[75,7,75,8],[75,10,75,12],[75,44,75,69]]}
[null,"BULLETIN INDIVIDUEL DE VERSEMENTS SUR VOTRE PLAN D’ÉPARGNE SALARIALE                                              ",null,null,null,null,null,null,null,null,null,null,null,null,null,null,null,null,null,null,null,null,null,null,null,null,null,null,null,null,null,null,null,null,null,null,null,null,null,null,null,null,null,null,null,null,null,null,null,null,null,null,null,null,null,null,null,null,null,null,null,null,{"$f":"'Saisie des données + guide'!BC1","v":2025}]
[]
[null," INFORMATIONS ÉPARGNANT",null,null,null,null,null,null,null,null,null,null,null,null,null,null,null,null,null,null,null,null,null,null,null,null,null,null,null,null,null,null,null,null,null,null,null,null,"INFORMATIONS ENTREPRISE"]
[]
[]
[null,null,"Civilité ",null,null,null,null,null,null,null,null,null,"Nom",null,null,null,null,null,"Prénom",null,null,null,null,null,null,null,null,null,null,null,null,null,null,null,null,null,null,null,"Code entreprise",null,null,null,null,null,{"$f":"+'Saisie des données + guide'!$J$11","v":0},null,null,null,null,null,null,null,null,"Exercice fiscal de référence",null,null,null,null,null,null,null,null,{"$f":"'Saisie des données + guide'!$U$48","v":0}]
[]
[null,null,"N° Sécurité sociale",null,null,null,null,null,null,null,null,null,null,null,null,null,null,null,"Nom de naissance",null,null,null,null,null,null,null,null,null,null,null,null,null,null,null,null,null,null,null,"Raison sociale",null,null,null,null,null,{"$f":"+'Saisie des données + guide'!$J$13","v":0}]
[]
[null,null,"Date de naissance",null,null,null,null,null,null,null,null,"Département de naissance",null,null,null,null,null,null,"Ville de naissance",null,null,null,null,null,null,null,null,null,null,null,null,null,null,null,null,null,null,null,"Contact",null,null,null,null,null,{"$f":"+'Saisie des données + guide'!$J$15","v":0}]
[]
[null,null,"Adresse",null,null,null,null,null,null,null,null,null,null,null,null,null,null,null,"Pays de naissance",null,null,null,null,null,null,null,null,null,null,null,null,null,null,null,null,null,null,null,"E-mail",null,null,null,null,null,{"$f":"+'Saisie des données + guide'!$J$17","v":0}]
[]
[null,null,"Code postal",null,null,null,null,null,null,null,null,null,null,null,null,null,null,null,"Téléphone portable "]
[]
[null,null,"Ville",null,null,null,null,null,null,null,null,null,null,null,null,null,null,null,"E-mail",null,null,null,null,null,null,null,null,null,null,null,null,null,null,null,null,null,null,null,"Le Plafond Annuel de la Sécurité Sociale (PASS) est de :",null,null,null,null,null,null,null,null,null,null,null,null,null,null,null,null,{"$f":"PASS","v":47100}]
[]
[null,null,"Statut",null,null,null,null,null,null,null,null,null,null,null,null,null,null,null,"Salaire",null,null,null,null,null,null,null,null,null,null,null,null,null,null,null,null,null,null,null,"Si CSG-CRDS non précomptées pour le salarié",null,null,null,null,null,null,null,null,null,null,null,null,null,null,null,null,{"$f":"+'Saisie des données + guide'!AF36","v":0}]
[null,null,null,null,null,null,null,null,null,null,null,null,null,null,null,null,null,null,null,null,null,null,null,null,null,"À renseigner si versement d'une prime de partage de la valeur"]
[null,null,null,null,null,null,{"$f":"+IF(AND($V$22=\"Prime de partage de la valeur\",G18=\"Non salarié\"),\"La prime de partage de la valeur n’est pas accessible aux travailleurs non-salariés.\",\"\")","v":""},null,null,null,null,null,null,null,null,null,null,null,null,null,null,null,null,null,null,null,null,null,null,null,null,null,null,null,null,null,null,null,{"$f":"+'Saisie des données + guide'!D38","v":"Le montant que Groupama Épargne Salariale doit investir est le montant net de CSG-CRDS (les prélèvements sociaux étant payés directement par vos soins). Si vous cochez cette case, cela signifie que vous souhaitez par dérogation nous adresser un montant brut de CSG-CRDS et que vous aurez prélevé sur la fiche de paie de chacun des salariés concernés la CSG-CRDS relative à l'opération réalisée. Cette dérogation n'est pas possible si l'abondement est à calculer par Groupama Épargne Salariale."}]
[]
[null,null,"MONTANTS À INVESTIR",null,null,null,null,null,null,null,null,null,null,null,"Origine des versements :",null,null,null,null,null,null,{"$f":"'Saisie des données + guide'!T20","v":"Épargne personnelle"},null,null,null,null,null,null,{"$f":"IF(V22=\"Abondement unilatéral\", \"C =\", \"\")","v":""}]
[null,null,null,null,null,null,null,null,null,null,null,null,null,null,null,null,null,null,null,null,null,null,null,null,null,null,null,null,null,null,null,null,null,null,null,null,null,null,"PEE"]
[null,null,null,null,"PEE",null,null,null,null,null,null,null,null,null,"PERCO",null,null,null,null,null,null,null,"MONTANT TOTAL"]
[null,null,"A =",null,null,null,null,null,null,null,null,null,"B =",null,null,null,null,null,null,null,null,null,"A + B =",null,null,null,{"$f":"E25+O25","v":0},null,null,null,null,null,null,null,null,null,null,null,{"$f":"V22","v":"Épargne personnelle"},null,null,null,null,null,null,null,null,null,null,null,"Taux",null,null,null,null,{"$f":"\"Abondement sur \"&$V$22&\"\"","v":"Abondement sur Épargne personnelle"}]
[null,null,null,null,null,null,null,null,null,null,null,null,null,null,null,null,null,null,null,null,null,null,null,null,null,null,null,null,null,null,null,null,null,null,null,null,null,null,null,null,{"$f":"E25","v":0},null,null,null,null,null,null,"x",null,null,{"$f":"+'Saisie des données + guide'!R29","v":0},null,null,null,null,null,"A' =",{"$f":"IF(ISBLANK(E25),\"\",IF(AND(G18=J94,ISBLANK('Saisie des données + guide'!AF36)),MIN(Plafond_PEE_net,E25*AY26*(1-CSG_CRDS)),MIN(Plafond_PEE,E25*AY26)))","v":""}]
[]
[null,null,null,null,null,null,null,null,null,null,null,null,null,null,null,null,null,null,null,null,null,null,null,null,null,null,null,null,null,null,null,null,null,null,null,null,null,null,null,null,"A",null,null,null,null,null,null,null,null,null,"T",null,null,null,null,null,null,{"$f":"IF(AND(G18=J94,ISBLANK('Saisie des données + guide'!AF36)),\"plafonné à \" &Plafond_PEE_net&\" € pour \"&J94,IF(G18=J94,\"plafonné à \" &Plafond_PEE&\" € pour \"&J94,\"plafonné à \" &Plafond_PEE&\" € pour \"&J95))","v":"plafonné à 3768 € pour Non salarié"}]
[null,null,"RÉPARTITION DE L'ÉPARGNE"]
[null,null,null,"A. Gestion Libre"]
[null,null,null,"valable pour le PEE et/ou le PERCO",null,null,null,null,null,null,null,null,null,null,null,null,null,null,null,null,null,null,null,null,null,null,null,null,null,null,null,null,null,null,null,null,null,null,"PERCO"]
[]
[null,null,"NOM DES FONDS\n\n    N'hésitez pas à consulter l'onglet \"Autres fonds\" pour ajouter d'autres supports de placement présents dans votre contrat.",null,null,null,null,null,null,null,null,null,null,null,"PEE",null,null,null,null,null,null,null,null,null,"PERCO",null,null,null,null,null,null,null,null,null,null,null,null,null,{"$f":"$V$22","v":"Épargne personnelle"},null,null,null,null,null,null,null,null,null,null,null,"Taux",null,null,null,{"$f":"IF($V$22=\"Épargne personnelle\",\"Abondement sur Épargne personnelle\",IF($V$22=\"Intéressement\",\"Abondement sur Intéressement\",IF($V$22=\"Participation\",\"Abondement sur Participation\",IF($V$22=\"Jours de repos non pris / CET\",\"Abondement sur Jours de repos non pris / CET\",IF($V$22=\"Prime de partage de la valeur\",\"Abondement sur Prime de partage de la valeur\",IF($V$22=\"Abondement unilatéral\",\"Abondement unilatéral\"))))))","v":"Abondement sur Épargne personnelle"}]
[null,null,null,null,null,null,null,null,null,null,null,null,null,null,{"$f":"+IF(SUM(R37:X61)>E25,\"ERREUR SAISIE\",IF(R36=0,\"\",\"Reste à répartir sur les fonds suivants\"))","v":""},null,null,null,null,null,null,null,null,null,{"$f":"+IF(SUM(AB37:AI64)>(O25+AE22),\"ERREUR SAISIE\",IF(AB36=0,\"\",\"Reste à répartir sur les fonds suivants\"))","v":""},null,null,null,null,null,null,null,null,null,null,null,null,null,null,null,{"$f":"$O$25","v":0},null,null,null,null,null,null,"x",null,null,{"$f":"+'Saisie des données + guide'!$AJ$29","v":0},null,null,null,null,null,{"$f":"IF(V22=\"abondement unilatéral\", \" C' = \",\"B' = \")","v":"B' = "},{"$f":"IF(AND(ISBLANK(O25),ISBLANK(AE22)),\"\",IF(AND(V22=\"Abondement unilatéral\",G18=J94,ISBLANK('Saisie des données + guide'!AF36)),MIN(Plafond_uni_TS,AE22*0.903),IF(AND(V22=\"Abondement unilatéral\",G18=J95),MIN(Plafond_uni_TNS,AE22),IF(AND(V22<>\"Abondement unilatéral\",G18=J94,ISBLANK('Saisie des données + guide'!AF36)),MIN(Plafond_PERCO_net,(1-CSG_CRDS)*AY34*O25),IF(AND(V22<>\"Abondement unilatéral\",G18=J95,ISBLANK('Saisie des données + guide'!AF36)),MIN(Plafond_PERCO,AY34*O25),IF(AND(V22<>\"Abondement unilatéral\",G18=J94,'Saisie des données + guide'!AF36=\"X\"),MIN(Plafond_PERCO,AY34*O25),IF(AND(V22<>\"Abondement unilatéral\",G18=J95,'Saisie des données + guide'!AF36=\"X\"),MIN(Plafond_PERCO,AY34*O25),IF(AND(V22=\"Abondement unilatéral\",G18=J95,'Saisie des données + guide'!AF36=\"X\"),MIN(Plafond_uni_TNS,AE22),IF(AND(V22=\"Abondement unilatéral\",G18=J94,'Saisie des données + guide'!AF36=\"X\"),MIN(Plafond_uni_TNS,AE22))))))))))","v":""}]
[null,null,null,null,null,null,null,null,null,null,null,null,null,null,null,null,null,null,null,null,null,null,null,null,null,null,null,null,null,null,null,null,null,null,null,null,null,null,null,null,"B",null,null,null,null,null,null,null,null,null,"T'",null,null,null,null,null,null,{"$f":"IF(AND(ISBLANK(O25),ISBLANK(AE22)),\"\",IF(AND(V22=\"Abondement unilatéral\",G18=J94,ISBLANK('Saisie des données + guide'!AF36)),\"plafonné à \"&Plafond_uni_TS&\" € pour \"&J94,IF(AND(V22=\"Abondement unilatéral\",G18=J95),\"plafonné à \"&Plafond_uni_TNS&\" € pour \"&J95,IF(AND(V22<>\"Abondement unilatéral\",G18=J94,ISBLANK('Saisie des données + guide'!AF36)),\"plafonné à \"&Plafond_PERCO_net&\" € pour \"&J94,IF(AND(V22<>\"Abondement unilatéral\",G18=J95,ISBLANK('Saisie des données + guide'!AF36)),\"plafonné à \"&Plafond_PERCO&\" € pour \"&J95,IF(AND(V22<>\"Abondement unilatéral\",G18=J94,'Saisie des données + guide'!AF36=\"X\"),\"plafonné à \"&Plafond_PERCO&\" € pour \"&J94,IF(AND(V22<>\"Abondement unilatéral\",G18=J95,'Saisie des données + guide'!AF36=\"X\"),\"plafonné à \"&Plafond_PERCO&\" € pour \"&J95,IF(AND(V22=\"Abondement unilatéral\",G18=J95,'Saisie des données + guide'!AF36=\"X\"),\"plafonné à \"&Plafond_uni_TNS&\" € pour \"&J95,IF(AND(V22=\"Abondement unilatéral\",G18=J94,'Saisie des données + guide'!AF36=\"X\"),\"plafonné à \"&Plafond_uni_TNS&\" € pour \"&J94)))))))))","v":""}]
[null,null,null,null,null,null,null,null,null,null,null,null,null,null,{"$f":"100-(SUM(O37:P64))","v":100},null,{"$f":"IF(O36>1, \"%\", \"\")","v":"%"},{"$f":"E25-SUM(R37:X61)","v":0},null,null,null,null,null,null,{"$f":"100-(SUM(Y37:Z64))","v":100},null,{"$f":"IF(Y36<>0,\"%\",\" \")","v":"%"},{"$f":"(O25+AE22)-SUM(AB37:AI64)","v":0}]
[null,null,{"$f":"+IF('Saisie des données + guide'!T24=\"Gamme GER\",\"84289 - GER Monétaire\",IF('Saisie des données + guide'!T24=\"Gamme TESORUS\",\"82659 - TESORUS Monétaire\",IF('Saisie des données + guide'!T24=\"Gamme Fonds Directs\",\"15719 - Oblifonds\",IF('Saisie des données + guide'!T24=\"Gamme Finama\",\"\",\"\"))))","v":"84289 - GER Monétaire"},null,null,null,null,null,null,null,null,null,null,null,null,null,"%",{"$f":"IF(O37=\"\",\"--------------\",+E$25*O37/100)","v":"--------------"},null,null,null,null,null,null,null,null,"%",{"$f":"IF(Y37=\"\",\"--------------\",+(O$25+$AE$22)*Y37/100)","v":"--------------"}]
[]
[null,null,{"$f":"+IF('Saisie des données + guide'!T24=\"Gamme GER\",\"84309 - GER Prudence\",IF('Saisie des données + guide'!T24=\"Gamme TESORUS\",\"82719 - TESORUS Prudence\",IF('Saisie des données + guide'!T24=\"Gamme Fonds Directs\",\"4939 - Diversifonds\",\"\")))","v":"84309 - GER Prudence"},null,null,null,null,null,null,null,null,null,null,null,null,null,"%",{"$f":"IF(O39=\"\",\"--------------\",+E$25*O39/100)","v":"--------------"},null,null,null,null,null,null,null,null,"%",{"$f":"IF(Y39=\"\",\"--------------\",+(O$25+$AE$22)*Y39/100)","v":"--------------"},null,null,null,null,null,null,null,null,null,null,"VERSEMENT TOTAL DE L'ENTREPRISE",null,null,null,null,null,null,null,null,null,null,null,null,null,null,{"$f":"IF(V22=\"abondement unilatéral\", \" C' = \",\"A'+ B' = \")","v":"A'+ B' = "},null,null,null,{"$f":"MAX(BF26,0)+MAX(BF34,0)","v":0}]
[null,null,{"$f":"+IF('Saisie des données + guide'!T24=\"Gamme GER\",\"84329 - GER Equilibre\",IF('Saisie des données + guide'!T24=\"Gamme TESORUS\",\"82669 - TESORUS Equilibre\",IF('Saisie des données + guide'!T24=\"Gamme Fonds Directs\",\"2459 - Foncival\",\"\")))","v":"84329 - GER Equilibre"},null,null,null,null,null,null,null,null,null,null,null,null,null,"%",{"$f":"IF(O40=\"\",\"--------------\",+E$25*O40/100)","v":"--------------"},null,null,null,null,null,null,null,null,"%",{"$f":"IF(Y40=\"\",\"--------------\",+(O$25+$AE$22)*Y40/100)","v":"--------------"},null,null,null,null,null,null,null,null,null,null,{"$f":"IF(V20=\"abondement unilatéral\", \"\",\"Le versement de l'abondement s'effectue sur les mêmes fonds que le versement personnel.\")","v":"Le versement de l'abondement s'effectue sur les mêmes fonds que le versement personnel."}]
[]
[]
[null,null,{"$f":"+IF('Saisie des données + guide'!T24=\"Gamme GER\",\"84349 - GER Dynamique\",IF('Saisie des données + guide'!T24=\"Gamme TESORUS\",\"82689 - TESORUS Dynamique\",\"\"))","v":"84349 - GER Dynamique"},null,null,null,null,null,null,null,null,null,null,null,null,null,"%",{"$f":"IF(O43=\"\",\"--------------\",+E$25*O43/100)","v":"--------------"},null,null,null,null,null,null,null,null,"%",{"$f":"IF(Y43=\"\",\"--------------\",+(O$25+$AE$22)*Y43/100)","v":"--------------"},null,null,null,null,null,null,null,null,null,null,"VERSEMENT TOTAL INVESTI",null,null,null,null,null,null,null,null,null,null,null,null,null,null,null,null,null,null,{"$f":"+AA25+BF39","v":0}]
[]
[null,null,{"$f":"+IF('Saisie des données + guide'!T24=\"Gamme GER\",\"84369 - GER Solidaire\",IF('Saisie des données + guide'!T24=\"Gamme TESORUS\",\"87649 - TESORUS Solidaire\",\"\"))","v":"84369 - GER Solidaire"},null,null,null,null,null,null,null,null,null,null,null,null,null,"%",{"$f":"IF(O45=\"\",\"--------------\",+E$25*O45/100)","v":"--------------"},null,null,null,null,null,null,null,null,"%",{"$f":"IF(Y45=\"\",\"--------------\",+(O$25+$AE$22)*Y45/100)","v":"--------------"}]
[null,null,{"$f":"IF($C$37<>\"\",\"110429 - Finama Épargne Court Terme\",\" \")","v":"110429 - Finama Épargne Court Terme"},null,null,null,null,null,null,null,null,null,null,null,null,null,"%",{"$f":"IF(O46=\"\",\"--------------\",+E$25*O46/100)","v":"--------------"},null,null,null,null,null,null,null,null,"%",{"$f":"IF(Y46=\"\",\"--------------\",+(O$25+$AE$22)*Y46/100)","v":"--------------"}]
[null,null,{"$f":"IF($C$37<>\"\",\"79139 - Finama Actions Internationales\",\" \")","v":"79139 - Finama Actions Internationales"},null,null,null,null,null,null,null,null,null,null,null,null,null,"%",{"$f":"IF(O47=\"\",\"--------------\",+E$25*O47/100)","v":"--------------"},null,null,null,null,null,null,null,null,"%",{"$f":"IF(Y47=\"\",\"--------------\",+(O$25+$AE$22)*Y47/100)","v":"--------------"}]
[null,null,{"$f":"IF($C$37<>\"\",\"116119 - Groupama Sélection PME-ETI\",\" \")","v":"116119 - Groupama Sélection PME-ETI"},null,null,null,null,null,null,null,null,null,null,null,null,null,"%",{"$f":"IF(O48=\"\",\"--------------\",+E$25*O48/100)","v":"--------------"},null,null,null,null,null,null,null,null,"%",{"$f":"IF(Y48=\"\",\"--------------\",+(O$25+$AE$22)*Y48/100)","v":"--------------"}]
[null,null,null,null,null,null,null,null,null,null,null,null,null,null,null,null,"%","--------------",null,null,null,null,null,null,null,null,"%","--------------"]
[null,null,null,null,null,null,null,null,null,null,null,null,null,null,null,null,"%","--------------",null,null,null,null,null,null,null,null,"%","--------------"]
[null,null,null,null,null,null,null,null,null,null,null,null,null,null,null,null,"%","--------------",null,null,null,null,null,null,null,null,"%","--------------"]
[null,null,null,null,null,null,null,null,null,null,null,null,null,null,null,null,"%","--------------",null,null,null,null,null,null,null,null,"%","--------------"]
[null,null,null,null,null,null,null,null,null,null,null,null,null,null,null,null,"%","--------------",null,null,null,null,null,null,null,null,"%","--------------"]
[null,null,null,null,null,null,null,null,null,null,null,null,null,null,null,null,"%","--------------",null,null,null,null,null,null,null,null,"%","--------------"]
[null,null,null,null,null,null,null,null,null,null,null,null,null,null,null,null,"%","--------------",null,null,null,null,null,null,null,null,"%","--------------"]
[null,null,null,null,null,null,null,null,null,null,null,null,null,null,null,null,"%","--------------",null,null,null,null,null,null,null,null,"%","--------------"]
[null,null,null,null,null,null,null,null,null,null,null,null,null,null,null,null,"%","--------------",null,null,null,null,null,null,null,null,"%","--------------"]
[null,null,null,null,null,null,null,null,null,null,null,null,null,null,null,null,"%","--------------",null,null,null,null,null,null,null,null,"%","--------------"]
[null,null,null,null,null,null,null,null,null,null,null,null,null,null,null,null,"%","--------------",null,null,null,null,null,null,null,null,"%","--------------"]
[null,null,null,null,null,null,null,null,null,null,null,null,null,null,null,null,"%","--------------",null,null,null,null,null,null,null,null,"%","--------------"]
[null,null,null,null,null,null,null,null,null,null,null,null,null,null,null,null,"%","--------------",null,null,null,null,null,null,null,null,"%","--------------"]
[]
[null,null,null,"B. Gestion Pilotée",null,null,null,null,null,null,null,null,null,null,null,null,null,null,null,null,null,null,null,null,null,null,"%",{"$f":"IF(Y63=\"\",\"--------------\",+(O25+$AE$22)*Y63/100)","v":"--------------"},null,null,null,null,null,null,null,null,null,null,"Tous les chèques sont à libeller à l’ordre de GROUPAMA ÉPARGNE SALARIALE\net à envoyer à l'adresse :"]
[null,null,null,"valable uniquement sur le PERCO",null,null,null,null,null,null,null,{"$f":"IF(L63=\"Oui\",\"Préciser la grille d'allocation\",\"\")","v":""}]
[]
[null,null,null," Pour plus de renseignements sur la gestion pilotée >",null,null,null,null,null,null,null,null,null,null,"cliquez ici",null,null,null,null,null,null,null,null,null,null,null,null,null,null,null,null,null,null,null,null,null,null,null,"GROUPAMA ÉPARGNE SALARIALE\nService Clients\n46 rue Jules Méline\n53098 LAVAL Cedex 9"]
[]
[null,null,"Je déclare avoir pris connaissance du règlement du plan, des documents d'information clés (DIC/KID) des fonds remis par mon entreprise et téléchargeables sur www.groupama-es.fr, ainsi que des modalités de fonctionnement des versements individuels jointes au présent bulletin. \n\nConformément au contrat d’épargne salariale mis en place par votre entreprise, des frais de versements d’un maximum de 4 % peuvent s’appliquer. Nous vous invitons à contacter votre employeur pour obtenir le montant de ces frais."]
[null,null,"En l'absence de choix de fonds, les sommes seront investies sur le fonds par défaut dans le PEE ou selon le mode de gestion pilotée dans le PERCO : soit le profil Prudent s'il s'agit de votre premier versement ou si vous aviez opté pour la gestion libre lors de précédent versement, soit avec le même profil de gestion pilotée précédemment choisi."]
[]
[null,null,"Pour tout versement volontaire à partir de 8 000 €, une copie de votre pièce d'identité devra être fournie, accompagnée du dernier avis d'imposition pour un versement d’un montant de\n15 000 € et plus. "]
[null,null,null,"J’atteste sur l’honneur que mon versement est conforme à la réglementation, notamment qu'il provient bien de mes avoirs personnels et que l’ensemble de mes versements de l’année au PEE/PERCO ne dépasse pas 25 % de ma rémunération annuelle brute.",null,null,null,null,null,null,null,null,null,null,null,null,null,null,null,null,null,null,null,null,null,null,null,null,null,null,null,null,null,null,null,null,null,null,"Le numéro de Sécurité sociale est recueilli pour identifier l’épargnant en cas de risque d’homonymie.\nConformément au règlement général sur la protection des données n°2016/679 du 27 avril 2016, vos données personnelles sont traitées par Groupama Épargne Salariale aux fins de tenue des comptes d'épargne salariale. Elles sont destinées aux membres du personnel dûment habilités de Groupama Épargne Salariale ainsi qu’à ses sous-traitants. Elles sont conservées par Groupama Épargne Salariale pendant une durée maximale de trente ans à compter de la disponibilité des avoirs.Vous pouvez demander l’accès, la rectification, l'effacement et la portabilité de vos données personnelles ainsi que limiter ou vous opposer, pour motif légitime, au traitement en écrivant au Délégué Relais à la Protection des Données de Groupama Épargne Salariale – Service du Contrôle interne – 2 boulevard de Pesaro – 92000 Nanterre ou par email : controleinterne@groupama-es.fr.\n"]
[null,null,null,null,null,null,null,null,null,null,null,null,null,null,null,null,null,null,null,null,"SIGNATURE ÉPARGNANT"]
[null,null,"Fait à :"]
[]
[null,null,"le",null,null,null,null,null,null,null,{"$f":"'Saisie des données + guide'!BC1","v":2025},null,null,null,null,null,null,null,null,null,null,null,null,null,null,null,null,null,null,null,null,null,null,null,null,null,null,null,null,null,null,null,null,null,"Groupama Épargne Salariale - Entreprise d'investissement agréée par l'ACPR, Teneur de compte - conservateur de parts - Société Anonyme au capital de 8.709.015 € - Siège social : 2 boulevard de Pesaro 92000 Nanterre - 428 768 352 RCS Nanterre - Réf. : BIV-01-01-2025"]
[]
[]
[]
[]
[]
[]
[]
[]
[]
[]
[]
[null,null,null,null,"3 options dans ce BIV :"]
[]
[null,null,null,null,null,null,"Ouverture compte :"]
[null,null,null,null,null,null,null,null,null,null,null,null,"X"]
[]
[null,null,null,null,null,null,"Statut :"]
[null,null,null,null,null,null,null,null,null,"Salarié"]
[null,null,null,null,null,null,null,null,null,"Non salarié"]
[]
[null,null,null,null,null,null,"Gestion pilotée :"]
[]
[null,null,null,null,null,null,null,null,null,null,"Grille Prudente"]
[null,null,null,null,null,null,null,null,null,null,"Grille Équilibre"]
[null,null,null,null,null,null,null,null,null,null,"Grille Dynamique"]
[]
[null,null,null,null,null,null,null,null,null,null,null,"Oui"]
[null,null,null,null,null,null,null,null,null,null,null,"Non"]

{"sheet":"Bulletin n°4","index":4,"n_rows":104,"n_cols":63,"rows_kept":104,"cut":false,"hidden":false,"merged":[[82,10,82,15],[82,16,82,21],[82,22,82,27],[70,2,70,34],[71,3,71,34],[71,38,74,69],[72,20,72,34],[73,2,73,4],[73,5,73,18],[73,20,75,34],[75,7,75,8],[75,10,75,12],[75,44,75,69],[62,11,62,12],[62,17,63,22],[62,24,63,25],[62,26,63,26],[62,27,63,34],[62,38,64,68],[63,3,64,10],[63,11,63,16],[65,14,65,15],[65,30,65,34],[65,38,68,68],[66,17,66,23],[67,2,67,34],[68,2,69,34],[59,2,59,13],[59,14,59,15],[59,17,59,23],[59,24,59,25],[59,27,59,34],[60,2,60,13],[60,14,60,15],[60,17,60,23],[60,24,60,25],[60,27,60,34],[57,2,57,13],[57,14,57,15],[57,17,57,23],[57,24,57,25],[57,27,57,34],[58,2,58,13],[58,14,58,15],[58,17,58,23],[58,24,58,25],[58,27,58,34],[55,2,55,13],[55,14,55,15],[55,17,55,23],[55,24,55,25],[55,27,55,34],[56,2,56,13],[56,14,56,15],[56,17,56,23],[56,24,56,25],[56,27,56,34],[52,27,52,34],[53,2,53,13],[53,14,53,15],[53,17,53,23],[53,24,53,25],[53,27,53,34],[54,2,54,13],[54,14,54,15],[54,17,54,23],[54,24,54,25],[54,27,54,34],[46,38,60,69],[47,2,47,13],[47,14,47,15],[47,17,47,23],[47,24,47,25],[47,27,47,34],[48,2,48,13],[48,14,48,15],[48,17,48,23],[48,24,48,25],[50,2,50,13],[50,14,50,15],[50,17,50,23],[50,24,50,25],[50,27,50,34],[51,2,51,13],[51,14,51,15],[51,17,51,23],[51,24,51,25],[51,27,51,34],[52,2,52,13],[52,14,52,15],[52,17,52,23],[52,24,52,25],[45,27,45,34],[46,2,46,13],[46,14,46,15],[46,17,46,23],[46,24,46,25],[46,27,46,34],[48,27,48,34],[49,2,49,13],[49,14,49,15],[49,17,49,23],[49,24,49,25],[49,27,49,34],[39,14,41,15],[39,16,41,16],[39,17,41,23],[39,24,41,25],[39,26,41,26],[45,2,45,13],[45,14,45,15],[45,17,45,23],[45,24,45,25],[38,2,38,13],[38,14,38,15],[38,17,38,23],[38,24,38,25],[38,27,38,34],[38,53,38,56],[38,57,38,67],[42,57,43,67],[44,2,44,13],[44,14,44,15],[44,17,44,23],[44,24,44,25],[44,27,44,34],[39,27,41,34],[39,38,41,53],[42,2,43,13],[42,14,43,15],[42,16,43,16],[42,17,43,23],[42,24,43,25],[42,26,43,26],[42,27,43,34],[42,38,43,52],[39,2,41,13],[36,2,37,13],[36,14,37,15],[36,16,37,16],[36,17,37,23],[36,24,37,25],[36,26,37,26],[36,27,37,34],[36,56,36,67],[36,68,36,69],[30,38,30,42],[30,45,30,62],[30,63,30,68],[31,38,31,47],[31,48,31,68],[32,2,35,13],[32,14,32,23],[32,24,32,34],[32,38,32,47],[32,50,32,53],[32,54,32,68],[33,14,34,23],[33,24,34,34],[33,40,33,45],[33,47,33,48],[33,50,33,53],[33,57,33,67],[34,40,34,45],[34,50,34,53],[34,57,34,67],[35,14,35,15],[35,17,35,23],[35,24,35,25],[35,27,35,34],[27,40,27,45],[27,50,27,53],[27,57,27,67],[28,40,28,45],[28,50,28,53],[28,57,28,67],[24,38,24,47],[24,50,24,53],[24,55,24,68],[25,40,26,45],[25,47,25,48],[25,50,26,53],[25,56,26,56],[25,57,26,67],[24,2,24,3],[24,4,24,10],[24,12,24,13],[24,14,24,20],[24,22,24,25],[24,26,24,34],[22,21,22,31],[22,38,22,42],[22,45,22,62],[22,63,22,68],[23,4,23,10],[23,14,23,20],[23,22,23,34],[23,38,23,47],[23,48,23,68],[17,87,17,105],[19,38,20,69],[21,14,21,19],[21,21,21,27],[21,28,21,29],[21,30,21,34],[15,2,15,3],[15,6,15,16],[15,25,15,34],[15,55,15,61],[16,62,16,68],[17,6,17,16],[17,25,17,34],[11,6,11,16],[11,25,11,34],[11,44,11,68],[13,6,13,10],[13,25,13,34],[13,62,13,68],[7,6,7,16],[7,25,7,34],[7,44,7,68],[9,6,9,10],[9,15,9,16],[9,25,9,34],[9,44,9,68],[0,1,0,58],[0,62,0,67],[2,1,2,35],[2,38,2,68],[5,6,5,10],[5,13,5,16],[5,25,5,34],[5,44,5,49],[5,62,5,68]]}
[null,"BULLETIN INDIVIDUEL DE VERSEMENTS SUR VOTRE PLAN D’ÉPARGNE SALARIALE                                              ",null,null,null,null,null,null,null,null,null,null,null,null,null,null,null,null,null,null,null,null,null,null,null,null,null,null,null,null,null,null,null,null,null,null,null,null,null,null,null,null,null,null,null,null,null,null,null,null,null,null,null,null,null,null,null,null,null,null,null,null,{"$f":"'Saisie des données + guide'!BC1","v":2025}]
[]
[null," INFORMATIONS ÉPARGNANT",null,null,null,null,null,null,null,null,null,null,null,null,null,null,null,null,null,null,null,null,null,null,null,null,null,null,null,null,null,null,null,null,null,null,null,null,"INFORMATIONS ENTREPRISE"]
[]
[]
[null,null,"Civilité ",null,null,null,null,null,null,null,null,null,"Nom",null,null,null,null,null,"Prénom",null,null,null,null,null,null,null,null,null,null,null,null,null,null,null,null,null,null,null,"Code entreprise",null,null,null,null,null,{"$f":"+'Saisie des données + guide'!$J$11","v":0},null,null,null,null,null,null,null,null,"Exercice fiscal de référence",null,null,null,null,null,null,null,null,{"$f":"'Saisie des données + guide'!$U$48","v":0}]
[]
[null,null,"N° Sécurité sociale",null,null,null,null,null,null,null,null,null,null,null,null,null,null,null,"Nom de naissance",null,null,null,null,null,null,null,null,null,null,null,null,null,null,null,null,null,null,null,"Raison sociale",null,null,null,null,null,{"$f":"+'Saisie des données + guide'!$J$13","v":0}]
[]
[null,null,"Date de naissance",null,null,null,null,null,null,null,null,"Département de naissance",null,null,null,null,null,null,"Ville de naissance",null,null,null,null,null,null,null,null,null,null,null,null,null,null,null,null,null,null,null,"Contact",null,null,null,null,null,{"$f":"+'Saisie des données + guide'!$J$15","v":0}]
[]
[null,null,"Adresse",null,null,null,null,null,null,null,null,null,null,null,null,null,null,null,"Pays de naissance",null,null,null,null,null,null,null,null,null,null,null,null,null,null,null,null,null,null,null,"E-mail",null,null,null,null,null,{"$f":"+'Saisie des données + guide'!$J$17","v":0}]
[]
[null,null,"Code postal",null,null,null,null,null,null,null,null,null,null,null,null,null,null,null,"Téléphone portable "]
[]
[null,null,"Ville",null,null,null,null,null,null,null,null,null,null,null,null,null,null,null,"E-mail",null,null,null,null,null,null,null,null,null,null,null,null,null,null,null,null,null,null,null,"Le Plafond Annuel de la Sécurité Sociale (PASS) est de :",null,null,null,null,null,null,null,null,null,null,null,null,null,null,null,null,{"$f":"PASS","v":47100}]
[]
[null,null,"Statut",null,null,null,null,null,null,null,null,null,null,null,null,null,null,null,"Salaire",null,null,null,null,null,null,null,null,null,null,null,null,null,null,null,null,null,null,null,"Si CSG-CRDS non précomptées pour le salarié",null,null,null,null,null,null,null,null,null,null,null,null,null,null,null,null,{"$f":"+'Saisie des données + guide'!AF36","v":0}]
[null,null,null,null,null,null,null,null,null,null,null,null,null,null,null,null,null,null,null,null,null,null,null,null,null,"À renseigner si versement d'une prime de partage de la valeur"]
[null,null,null,null,null,null,{"$f":"+IF(AND($V$22=\"Prime de partage de la valeur\",G18=\"Non salarié\"),\"La prime de partage de la valeur n’est pas accessible aux travailleurs non-salariés.\",\"\")","v":""},null,null,null,null,null,null,null,null,null,null,null,null,null,null,null,null,null,null,null,null,null,null,null,null,null,null,null,null,null,null,null,{"$f":"+'Saisie des données + guide'!D38","v":"Le montant que Groupama Épargne Salariale doit investir est le montant net de CSG-CRDS (les prélèvements sociaux étant payés directement par vos soins). Si vous cochez cette case, cela signifie que vous souhaitez par dérogation nous adresser un montant brut de CSG-CRDS et que vous aurez prélevé sur la fiche de paie de chacun des salariés concernés la CSG-CRDS relative à l'opération réalisée. Cette dérogation n'est pas possible si l'abondement est à calculer par Groupama Épargne Salariale."}]
[]
[null,null,"MONTANTS À INVESTIR",null,null,null,null,null,null,null,null,null,null,null,"Origine des versements :",null,null,null,null,null,null,{"$f":"'Saisie des données + guide'!T20","v":"Épargne personnelle"},null,null,null,null,null,null,{"$f":"IF(V22=\"Abondement unilatéral\", \"C =\", \"\")","v":""}]
[null,null,null,null,null,null,null,null,null,null,null,null,null,null,null,null,null,null,null,null,null,null,null,null,null,null,null,null,null,null,null,null,null,null,null,null,null,null,"PEE"]
[null,null,null,null,"PEE",null,null,null,null,null,null,null,null,null,"PERCO",null,null,null,null,null,null,null,"MONTANT TOTAL"]
[null,null,"A =",null,null,null,null,null,null,null,null,null,"B =",null,null,null,null,null,null,null,null,null,"A + B =",null,null,null,{"$f":"E25+O25","v":0},null,null,null,null,null,null,null,null,null,null,null,{"$f":"V22","v":"Épargne personnelle"},null,null,null,null,null,null,null,null,null,null,null,"Taux",null,null,null,null,{"$f":"\"Abondement sur \"&$V$22&\"\"","v":"Abondement sur Épargne personnelle"}]
[null,null,null,null,null,null,null,null,null,null,null,null,null,null,null,null,null,null,null,null,null,null,null,null,null,null,null,null,null,null,null,null,null,null,null,null,null,null,null,null,{"$f":"E25","v":0},null,null,null,null,null,null,"x",null,null,{"$f":"+'Saisie des données + guide'!R29","v":0},null,null,null,null,null,"A' =",{"$f":"IF(ISBLANK(E25),\"\",IF(AND(G18=J94,ISBLANK('Saisie des données + guide'!AF36)),MIN(Plafond_PEE_net,E25*AY26*(1-CSG_CRDS)),MIN(Plafond_PEE,E25*AY26)))","v":""}]
[]
[null,null,null,null,null,null,null,null,null,null,null,null,null,null,null,null,null,null,null,null,null,null,null,null,null,null,null,null,null,null,null,null,null,null,null,null,null,null,null,null,"A",null,null,null,null,null,null,null,null,null,"T",null,null,null,null,null,null,{"$f":"IF(AND(G18=J94,ISBLANK('Saisie des données + guide'!AF36)),\"plafonné à \" &Plafond_PEE_net&\" € pour \"&J94,IF(G18=J94,\"plafonné à \" &Plafond_PEE&\" € pour \"&J94,\"plafonné à \" &Plafond_PEE&\" € pour \"&J95))","v":"plafonné à 3768 € pour Non salarié"}]
[null,null,"RÉPARTITION DE L'ÉPARGNE"]
[null,null,null,"A. Gestion Libre"]
[null,null,null,"valable pour le PEE et/ou le PERCO",null,null,null,null,null,null,null,null,null,null,null,null,null,null,null,null,null,null,null,null,null,null,null,null,null,null,null,null,null,null,null,null,null,null,"PERCO"]
[]
[null,null,"NOM DES FONDS\n\n    N'hésitez pas à consulter l'onglet \"Autres fonds\" pour ajouter d'autres supports de placement présents dans votre contrat.",null,null,null,null,null,null,null,null,null,null,null,"PEE",null,null,null,null,null,null,null,null,null,"PERCO",null,null,null,null,null,null,null,null,null,null,null,null,null,{"$f":"$V$22","v":"Épargne personnelle"},null,null,null,null,null,null,null,null,null,null,null,"Taux",null,null,null,{"$f":"IF($V$22=\"Épargne personnelle\",\"Abondement sur Épargne personnelle\",IF($V$22=\"Intéressement\",\"Abondement sur Intéressement\",IF($V$22=\"Participation\",\"Abondement sur Participation\",IF($V$22=\"Jours de repos non pris / CET\",\"Abondement sur Jours de repos non pris / CET\",IF($V$22=\"Prime de partage de la valeur\",\"Abondement sur Prime de partage de la valeur\",IF($V$22=\"Abondement unilatéral\",\"Abondement unilatéral\"))))))","v":"Abondement sur Épargne personnelle"}]
[null,null,null,null,null,null,null,null,null,null,null,null,null,null,{"$f":"+IF(SUM(R37:X61)>E25,\"ERREUR SAISIE\",IF(R36=0,\"\",\"Reste à répartir sur les fonds suivants\"))","v":""},null,null,null,null,null,null,null,null,null,{"$f":"+IF(SUM(AB37:AI64)>(O25+AE22),\"ERREUR SAISIE\",IF(AB36=0,\"\",\"Reste à répartir sur les fonds suivants\"))","v":""},null,null,null,null,null,null,null,null,null,null,null,null,null,null,null,{"$f":"$O$25","v":0},null,null,null,null,null,null,"x",null,null,{"$f":"+'Saisie des données + guide'!$AJ$29","v":0},null,null,null,null,null,{"$f":"IF(V22=\"abondement unilatéral\", \" C' = \",\"B' = \")","v":"B' = "},{"$f":"IF(AND(ISBLANK(O25),ISBLANK(AE22)),\"\",IF(AND(V22=\"Abondement unilatéral\",G18=J94,ISBLANK('Saisie des données + guide'!AF36)),MIN(Plafond_uni_TS,AE22*0.903),IF(AND(V22=\"Abondement unilatéral\",G18=J95),MIN(Plafond_uni_TNS,AE22),IF(AND(V22<>\"Abondement unilatéral\",G18=J94,ISBLANK('Saisie des données + guide'!AF36)),MIN(Plafond_PERCO_net,(1-CSG_CRDS)*AY34*O25),IF(AND(V22<>\"Abondement unilatéral\",G18=J95,ISBLANK('Saisie des données + guide'!AF36)),MIN(Plafond_PERCO,AY34*O25),IF(AND(V22<>\"Abondement unilatéral\",G18=J94,'Saisie des données + guide'!AF36=\"X\"),MIN(Plafond_PERCO,AY34*O25),IF(AND(V22<>\"Abondement unilatéral\",G18=J95,'Saisie des données + guide'!AF36=\"X\"),MIN(Plafond_PERCO,AY34*O25),IF(AND(V22=\"Abondement unilatéral\",G18=J95,'Saisie des données + guide'!AF36=\"X\"),MIN(Plafond_uni_TNS,AE22),IF(AND(V22=\"Abondement unilatéral\",G18=J94,'Saisie des données + guide'!AF36=\"X\"),MIN(Plafond_uni_TNS,AE22))))))))))","v":""}]
[null,null,null,null,null,null,null,null,null,null,null,null,null,null,null,null,null,null,null,null,null,null,null,null,null,null,null,null,null,null,null,null,null,null,null,null,null,null,null,null,"B",null,null,null,null,null,null,null,null,null,"T'",null,null,null,null,null,null,{"$f":"IF(AND(ISBLANK(O25),ISBLANK(AE22)),\"\",IF(AND(V22=\"Abondement unilatéral\",G18=J94,ISBLANK('Saisie des données + guide'!AF36)),\"plafonné à \"&Plafond_uni_TS&\" € pour \"&J94,IF(AND(V22=\"Abondement unilatéral\",G18=J95),\"plafonné à \"&Plafond_uni_TNS&\" € pour \"&J95,IF(AND(V22<>\"Abondement unilatéral\",G18=J94,ISBLANK('Saisie des données + guide'!AF36)),\"plafonné à \"&Plafond_PERCO_net&\" € pour \"&J94,IF(AND(V22<>\"Abondement unilatéral\",G18=J95,ISBLANK('Saisie des données + guide'!AF36)),\"plafonné à \"&Plafond_PERCO&\" € pour \"&J95,IF(AND(V22<>\"Abondement unilatéral\",G18=J94,'Saisie des données + guide'!AF36=\"X\"),\"plafonné à \"&Plafond_PERCO&\" € pour \"&J94,IF(AND(V22<>\"Abondement unilatéral\",G18=J95,'Saisie des données + guide'!AF36=\"X\"),\"plafonné à \"&Plafond_PERCO&\" € pour \"&J95,IF(AND(V22=\"Abondement unilatéral\",G18=J95,'Saisie des données + guide'!AF36=\"X\"),\"plafonné à \"&Plafond_uni_TNS&\" € pour \"&J95,IF(AND(V22=\"Abondement unilatéral\",G18=J94,'Saisie des données + guide'!AF36=\"X\"),\"plafonné à \"&Plafond_uni_TNS&\" € pour \"&J94)))))))))","v":""}]
[null,null,null,null,null,null,null,null,null,null,null,null,null,null,{"$f":"100-(SUM(O37:P64))","v":100},null,{"$f":"IF(O36>1, \"%\", \"\")","v":"%"},{"$f":"E25-SUM(R37:X61)","v":0},null,null,null,null,null,null,{"$f":"100-(SUM(Y37:Z64))","v":100},null,{"$f":"IF(Y36<>0,\"%\",\" \")","v":"%"},{"$f":"(O25+AE22)-SUM(AB37:AI64)","v":0}]
[null,null,{"$f":"+IF('Saisie des données + guide'!T24=\"Gamme GER\",\"84289 - GER Monétaire\",IF('Saisie des données + guide'!T24=\"Gamme TESORUS\",\"82659 - TESORUS Monétaire\",IF('Saisie des données + guide'!T24=\"Gamme Fonds Directs\",\"15719 - Oblifonds\",IF('Saisie des données + guide'!T24=\"Gamme Finama\",\"\",\"\"))))","v":"84289 - GER Monétaire"},null,null,null,null,null,null,null,null,null,null,null,null,null,"%",{"$f":"IF(O37=\"\",\"--------------\",+E$25*O37/100)","v":"--------------"},null,null,null,null,null,null,null,null,"%",{"$f":"IF(Y37=\"\",\"--------------\",+(O$25+$AE$22)*Y37/100)","v":"--------------"}]
[]
[null,null,{"$f":"+IF('Saisie des données + guide'!T24=\"Gamme GER\",\"84309 - GER Prudence\",IF('Saisie des données + guide'!T24=\"Gamme TESORUS\",\"82719 - TESORUS Prudence\",IF('Saisie des données + guide'!T24=\"Gamme Fonds Directs\",\"4939 - Diversifonds\",\"\")))","v":"84309 - GER Prudence"},null,null,null,null,null,null,null,null,null,null,null,null,null,"%",{"$f":"IF(O39=\"\",\"--------------\",+E$25*O39/100)","v":"--------------"},null,null,null,null,null,null,null,null,"%",{"$f":"IF(Y39=\"\",\"--------------\",+(O$25+$AE$22)*Y39/100)","v":"--------------"},null,null,null,null,null,null,null,null,null,null,"VERSEMENT TOTAL DE L'ENTREPRISE",null,null,null,null,null,null,null,null,null,null,null,null,null,null,{"$f":"IF(V22=\"abondement unilatéral\", \" C' = \",\"A'+ B' = \")","v":"A'+ B' = "},null,null,null,{"$f":"MAX(BF26,0)+MAX(BF34,0)","v":0}]
[null,null,{"$f":"+IF('Saisie des données + guide'!T24=\"Gamme GER\",\"84329 - GER Equilibre\",IF('Saisie des données + guide'!T24=\"Gamme TESORUS\",\"82669 - TESORUS Equilibre\",IF('Saisie des données + guide'!T24=\"Gamme Fonds Directs\",\"2459 - Foncival\",\"\")))","v":"84329 - GER Equilibre"},null,null,null,null,null,null,null,null,null,null,null,null,null,"%",{"$f":"IF(O40=\"\",\"--------------\",+E$25*O40/100)","v":"--------------"},null,null,null,null,null,null,null,null,"%",{"$f":"IF(Y40=\"\",\"--------------\",+(O$25+$AE$22)*Y40/100)","v":"--------------"},null,null,null,null,null,null,null,null,null,null,{"$f":"IF(V20=\"abondement unilatéral\", \"\",\"Le versement de l'abondement s'effectue sur les mêmes fonds que le versement personnel.\")","v":"Le versement de l'abondement s'effectue sur les mêmes fonds que le versement personnel."}]
[]
[]
[null,null,{"$f":"+IF('Saisie des données + guide'!T24=\"Gamme GER\",\"84349 - GER Dynamique\",IF('Saisie des données + guide'!T24=\"Gamme TESORUS\",\"82689 - TESORUS Dynamique\",\"\"))","v":"84349 - GER Dynamique"},null,null,null,null,null,null,null,null,null,null,null,null,null,"%",{"$f":"IF(O43=\"\",\"--------------\",+E$25*O43/100)","v":"--------------"},null,null,null,null,null,null,null,null,"%",{"$f":"IF(Y43=\"\",\"--------------\",+(O$25+$AE$22)*Y43/100)","v":"--------------"},null,null,null,null,null,null,null,null,null,null,"VERSEMENT TOTAL INVESTI",null,null,null,null,null,null,null,null,null,null,null,null,null,null,null,null,null,null,{"$f":"+AA25+BF39","v":0}]
[]
[null,null,{"$f":"+IF('Saisie des données + guide'!T24=\"Gamme GER\",\"84369 - GER Solidaire\",IF('Saisie des données + guide'!T24=\"Gamme TESORUS\",\"87649 - TESORUS Solidaire\",\"\"))","v":"84369 - GER Solidaire"},null,null,null,null,null,null,null,null,null,null,null,null,null,"%",{"$f":"IF(O45=\"\",\"--------------\",+E$25*O45/100)","v":"--------------"},null,null,null,null,null,null,null,null,"%",{"$f":"IF(Y45=\"\",\"--------------\",+(O$25+$AE$22)*Y45/100)","v":"--------------"}]
[null,null,{"$f":"IF($C$37<>\"\",\"110429 - Finama Épargne Court Terme\",\" \")","v":"110429 - Finama Épargne Court Terme"},null,null,null,null,null,null,null,null,null,null,null,null,null,"%",{"$f":"IF(O46=\"\",\"--------------\",+E$25*O46/100)","v":"--------------"},null,null,null,null,null,null,null,null,"%",{"$f":"IF(Y46=\"\",\"--------------\",+(O$25+$AE$22)*Y46/100)","v":"--------------"}]
[null,null,{"$f":"IF($C$37<>\"\",\"79139 - Finama Actions Internationales\",\" \")","v":"79139 - Finama Actions Internationales"},null,null,null,null,null,null,null,null,null,null,null,null,null,"%",{"$f":"IF(O47=\"\",\"--------------\",+E$25*O47/100)","v":"--------------"},null,null,null,null,null,null,null,null,"%",{"$f":"IF(Y47=\"\",\"--------------\",+(O$25+$AE$22)*Y47/100)","v":"--------------"}]
[null,null,{"$f":"IF($C$37<>\"\",\"116119 - Groupama Sélection PME-ETI\",\" \")","v":"116119 - Groupama Sélection PME-ETI"},null,null,null,null,null,null,null,null,null,null,null,null,null,"%",{"$f":"IF(O48=\"\",\"--------------\",+E$25*O48/100)","v":"--------------"},null,null,null,null,null,null,null,null,"%",{"$f":"IF(Y48=\"\",\"--------------\",+(O$25+$AE$22)*Y48/100)","v":"--------------"}]
[null,null,null,null,null,null,null,null,null,null,null,null,null,null,null,null,"%","--------------",null,null,null,null,null,null,null,null,"%","--------------"]
[null,null,null,null,null,null,null,null,null,null,null,null,null,null,null,null,"%","--------------",null,null,null,null,null,null,null,null,"%","--------------"]
[null,null,null,null,null,null,null,null,null,null,null,null,null,null,null,null,"%","--------------",null,null,null,null,null,null,null,null,"%","--------------"]
[null,null,null,null,null,null,null,null,null,null,null,null,null,null,null,null,"%","--------------",null,null,null,null,null,null,null,null,"%","--------------"]
[null,null,null,null,null,null,null,null,null,null,null,null,null,null,null,null,"%","--------------",null,null,null,null,null,null,null,null,"%","--------------"]
[null,null,null,null,null,null,null,null,null,null,null,null,null,null,null,null,"%","--------------",null,null,null,null,null,null,null,null,"%","--------------"]
[null,null,null,null,null,null,null,null,null,null,null,null,null,null,null,null,"%","--------------",null,null,null,null,null,null,null,null,"%","--------------"]
[null,null,null,null,null,null,null,null,null,null,null,null,null,null,null,null,"%","--------------",null,null,null,null,null,null,null,null,"%","--------------"]
[null,null,null,null,null,null,null,null,null,null,null,null,null,null,null,null,"%","--------------",null,null,null,null,null,null,null,null,"%","--------------"]
[null,null,null,null,null,null,null,null,null,null,null,null,null,null,null,null,"%","--------------",null,null,null,null,null,null,null,null,"%","--------------"]
[null,null,null,null,null,null,null,null,null,null,null,null,null,null,null,null,"%","--------------",null,null,null,null,null,null,null,null,"%","--------------"]
[null,null,null,null,null,null,null,null,null,null,null,null,null,null,null,null,"%","--------------",null,null,null,null,null,null,null,null,"%","--------------"]
[null,null,null,null,null,null,null,null,null,null,null,null,null,null,null,null,"%","--------------",null,null,null,null,null,null,null,null,"%","--------------"]
[]
[null,null,null,"B. Gestion Pilotée",null,null,null,null,null,null,null,null,null,null,null,null,null,null,null,null,null,null,null,null,null,null,"%",{"$f":"IF(Y63=\"\",\"--------------\",+(O25+$AE$22)*Y63/100)","v":"--------------"},null,null,null,null,null,null,null,null,null,null,"Tous les chèques sont à libeller à l’ordre de GROUPAMA ÉPARGNE SALARIALE\net à envoyer à l'adresse :"]
[null,null,null,"valable uniquement sur le PERCO",null,null,null,null,null,null,null,{"$f":"IF(L63=\"Oui\",\"Préciser la grille d'allocation\",\"\")","v":""}]
[]
[null,null,null," Pour plus de renseignements sur la gestion pilotée >",null,null,null,null,null,null,null,null,null,null,"cliquez ici",null,null,null,null,null,null,null,null,null,null,null,null,null,null,null,null,null,null,null,null,null,null,null,"GROUPAMA ÉPARGNE SALARIALE\nService Clients\n46 rue Jules Méline\n53098 LAVAL Cedex 9"]
[]
[null,null,"Je déclare avoir pris connaissance du règlement du plan, des documents d'information clés (DIC/KID) des fonds remis par mon entreprise et téléchargeables sur www.groupama-es.fr, ainsi que des modalités de fonctionnement des versements individuels jointes au présent bulletin. \n\nConformément au contrat d’épargne salariale mis en place par votre entreprise, des frais de versements d’un maximum de 4 % peuvent s’appliquer. Nous vous invitons à contacter votre employeur pour obtenir le montant de ces frais."]
[null,null,"En l'absence de choix de fonds, les sommes seront investies sur le fonds par défaut dans le PEE ou selon le mode de gestion pilotée dans le PERCO : soit le profil Prudent s'il s'agit de votre premier versement ou si vous aviez opté pour la gestion libre lors de précédent versement, soit avec le même profil de gestion pilotée précédemment choisi."]
[]
[null,null,"Pour tout versement volontaire à partir de 8 000 €, une copie de votre pièce d'identité devra être fournie, accompagnée du dernier avis d'imposition pour un versement d’un montant de\n15 000 € et plus. "]
[null,null,null,"J’atteste sur l’honneur que mon versement est conforme à la réglementation, notamment qu'il provient bien de mes avoirs personnels et que l’ensemble de mes versements de l’année au PEE/PERCO ne dépasse pas 25 % de ma rémunération annuelle brute.",null,null,null,null,null,null,null,null,null,null,null,null,null,null,null,null,null,null,null,null,null,null,null,null,null,null,null,null,null,null,null,null,null,null,"Le numéro de Sécurité sociale est recueilli pour identifier l’épargnant en cas de risque d’homonymie.\nConformément au règlement général sur la protection des données n°2016/679 du 27 avril 2016, vos données personnelles sont traitées par Groupama Épargne Salariale aux fins de tenue des comptes d'épargne salariale. Elles sont destinées aux membres du personnel dûment habilités de Groupama Épargne Salariale ainsi qu’à ses sous-traitants. Elles sont conservées par Groupama Épargne Salariale pendant une durée maximale de trente ans à compter de la disponibilité des avoirs.Vous pouvez demander l’accès, la rectification, l'effacement et la portabilité de vos données personnelles ainsi que limiter ou vous opposer, pour motif légitime, au traitement en écrivant au Délégué Relais à la Protection des Données de Groupama Épargne Salariale – Service du Contrôle interne – 2 boulevard de Pesaro – 92000 Nanterre ou par email : controleinterne@groupama-es.fr.\n"]
[null,null,null,null,null,null,null,null,null,null,null,null,null,null,null,null,null,null,null,null,"SIGNATURE ÉPARGNANT"]
[null,null,"Fait à :"]
[]
[null,null,"le",null,null,null,null,null,null,null,{"$f":"'Saisie des données + guide'!BC1","v":2025},null,null,null,null,null,null,null,null,null,null,null,null,null,null,null,null,null,null,null,null,null,null,null,null,null,null,null,null,null,null,null,null,null,"Groupama Épargne Salariale - Entreprise d'investissement agréée par l'ACPR, Teneur de compte - conservateur de parts - Société Anonyme au capital de 8.709.015 € - Siège social : 2 boulevard de Pesaro 92000 Nanterre - 428 768 352 RCS Nanterre - Réf. : BIV-01-01-2025"]
[]
[]
[]
[]
[]
[]
[]
[]
[]
[]
[]
[null,null,null,null,"3 options dans ce BIV :"]
[]
[null,null,null,null,null,null,"Ouverture compte :"]
[null,null,null,null,null,null,null,null,null,null,null,null,"X"]
[]
[null,null,null,null,null,null,"Statut :"]
[null,null,null,null,null,null,null,null,null,"Salarié"]
[null,null,null,null,null,null,null,null,null,"Non salarié"]
[]
[null,null,null,null,null,null,"Gestion pilotée :"]
[]
[null,null,null,null,null,null,null,null,null,null,"Grille Prudente"]
[null,null,null,null,null,null,null,null,null,null,"Grille Équilibre"]
[null,null,null,null,null,null,null,null,null,null,"Grille Dynamique"]
[]
[null,null,null,null,null,null,null,null,null,null,null,"Oui"]
[null,null,null,null,null,null,null,null,null,null,null,"Non"]

{"sheet":"Bulletin n°5","index":5,"n_rows":104,"n_cols":63,"rows_kept":104,"cut":false,"hidden":false,"merged":[[82,10,82,15],[82,16,82,21],[82,22,82,27],[70,2,70,34],[71,3,71,34],[71,38,74,69],[72,20,72,34],[73,2,73,4],[73,5,73,18],[73,20,75,34],[75,7,75,8],[75,10,75,12],[75,44,75,69],[62,11,62,12],[62,17,63,22],[62,24,63,25],[62,26,63,26],[62,27,63,34],[62,38,64,68],[63,3,64,10],[63,11,63,16],[65,14,65,15],[65,30,65,34],[65,38,68,68],[66,17,66,23],[67,2,67,34],[68,2,69,34],[59,2,59,13],[59,14,59,15],[59,17,59,23],[59,24,59,25],[59,27,59,34],[60,2,60,13],[60,14,60,15],[60,17,60,23],[60,24,60,25],[60,27,60,34],[57,2,57,13],[57,14,57,15],[57,17,57,23],[57,24,57,25],[57,27,57,34],[58,2,58,13],[58,14,58,15],[58,17,58,23],[58,24,58,25],[58,27,58,34],[55,2,55,13],[55,14,55,15],[55,17,55,23],[55,24,55,25],[55,27,55,34],[56,2,56,13],[56,14,56,15],[56,17,56,23],[56,24,56,25],[56,27,56,34],[52,27,52,34],[53,2,53,13],[53,14,53,15],[53,17,53,23],[53,24,53,25],[53,27,53,34],[54,2,54,13],[54,14,54,15],[54,17,54,23],[54,24,54,25],[54,27,54,34],[46,38,60,69],[47,2,47,13],[47,14,47,15],[47,17,47,23],[47,24,47,25],[47,27,47,34],[48,2,48,13],[48,14,48,15],[48,17,48,23],[48,24,48,25],[50,2,50,13],[50,14,50,15],[50,17,50,23],[50,24,50,25],[50,27,50,34],[51,2,51,13],[51,14,51,15],[51,17,51,23],[51,24,51,25],[51,27,51,34],[52,2,52,13],[52,14,52,15],[52,17,52,23],[52,24,52,25],[45,27,45,34],[46,2,46,13],[46,14,46,15],[46,17,46,23],[46,24,46,25],[46,27,46,34],[48,27,48,34],[49,2,49,13],[49,14,49,15],[49,17,49,23],[49,24,49,25],[49,27,49,34],[39,14,41,15],[39,16,41,16],[39,17,41,23],[39,24,41,25],[39,26,41,26],[45,2,45,13],[45,14,45,15],[45,17,45,23],[45,24,45,25],[38,2,38,13],[38,14,38,15],[38,17,38,23],[38,24,38,25],[38,27,38,34],[38,53,38,56],[38,57,38,67],[42,57,43,67],[44,2,44,13],[44,14,44,15],[44,17,44,23],[44,24,44,25],[44,27,44,34],[39,27,41,34],[39,38,41,53],[42,2,43,13],[42,14,43,15],[42,16,43,16],[42,17,43,23],[42,24,43,25],[42,26,43,26],[42,27,43,34],[42,38,43,52],[39,2,41,13],[36,2,37,13],[36,14,37,15],[36,16,37,16],[36,17,37,23],[36,24,37,25],[36,26,37,26],[36,27,37,34],[36,56,36,67],[36,68,36,69],[30,38,30,42],[30,45,30,62],[30,63,30,68],[31,38,31,47],[31,48,31,68],[32,2,35,13],[32,14,32,23],[32,24,32,34],[32,38,32,47],[32,50,32,53],[32,54,32,68],[33,14,34,23],[33,24,34,34],[33,40,33,45],[33,47,33,48],[33,50,33,53],[33,57,33,67],[34,40,34,45],[34,50,34,53],[34,57,34,67],[35,14,35,15],[35,17,35,23],[35,24,35,25],[35,27,35,34],[27,40,27,45],[27,50,27,53],[27,57,27,67],[28,40,28,45],[28,50,28,53],[28,57,28,67],[24,38,24,47],[24,50,24,53],[24,55,24,68],[25,40,26,45],[25,47,25,48],[25,50,26,53],[25,56,26,56],[25,57,26,67],[24,2,24,3],[24,4,24,10],[24,12,24,13],[24,14,24,20],[24,22,24,25],[24,26,24,34],[22,21,22,31],[22,38,22,42],[22,45,22,62],[22,63,22,68],[23,4,23,10],[23,14,23,20],[23,22,23,34],[23,38,23,47],[23,48,23,68],[17,87,17,105],[19,38,20,69],[21,14,21,19],[21,21,21,27],[21,28,21,29],[21,30,21,34],[15,2,15,3],[15,6,15,16],[15,25,15,34],[15,55,15,61],[16,62,16,68],[17,6,17,16],[17,25,17,34],[11,6,11,16],[11,25,11,34],[11,44,11,68],[13,6,13,10],[13,25,13,34],[13,62,13,68],[7,6,7,16],[7,25,7,34],[7,44,7,68],[9,6,9,10],[9,15,9,16],[9,25,9,34],[9,44,9,68],[0,1,0,58],[0,62,0,67],[2,1,2,35],[2,38,2,68],[5,6,5,10],[5,13,5,16],[5,25,5,34],[5,44,5,49],[5,62,5,68]]}
[null,"BULLETIN INDIVIDUEL DE VERSEMENTS SUR VOTRE PLAN D’ÉPARGNE SALARIALE                                              ",null,null,null,null,null,null,null,null,null,null,null,null,null,null,null,null,null,null,null,null,null,null,null,null,null,null,null,null,null,null,null,null,null,null,null,null,null,null,null,null,null,null,null,null,null,null,null,null,null,null,null,null,null,null,null,null,null,null,null,null,{"$f":"'Saisie des données + guide'!BC1","v":2025}]
[]
[null," INFORMATIONS ÉPARGNANT",null,null,null,null,null,null,null,null,null,null,null,null,null,null,null,null,null,null,null,null,null,null,null,null,null,null,null,null,null,null,null,null,null,null,null,null,"INFORMATIONS ENTREPRISE"]
[]
[]
[null,null,"Civilité ",null,null,null,null,null,null,null,null,null,"Nom",null,null,null,null,null,"Prénom",null,null,null,null,null,null,null,null,null,null,null,null,null,null,null,null,null,null,null,"Code entreprise",null,null,null,null,null,{"$f":"+'Saisie des données + guide'!$J$11","v":0},null,null,null,null,null,null,null,null,"Exercice fiscal de référence",null,null,null,null,null,null,null,null,{"$f":"'Saisie des données + guide'!$U$48","v":0}]
[]
[null,null,"N° Sécurité sociale",null,null,null,null,null,null,null,null,null,null,null,null,null,null,null,"Nom de naissance",null,null,null,null,null,null,null,null,null,null,null,null,null,null,null,null,null,null,null,"Raison sociale",null,null,null,null,null,{"$f":"+'Saisie des données + guide'!$J$13","v":0}]
[]
[null,null,"Date de naissance",null,null,null,null,null,null,null,null,"Département de naissance",null,null,null,null,null,null,"Ville de naissance",null,null,null,null,null,null,null,null,null,null,null,null,null,null,null,null,null,null,null,"Contact",null,null,null,null,null,{"$f":"+'Saisie des données + guide'!$J$15","v":0}]
[]
[null,null,"Adresse",null,null,null,null,null,null,null,null,null,null,null,null,null,null,null,"Pays de naissance",null,null,null,null,null,null,null,null,null,null,null,null,null,null,null,null,null,null,null,"E-mail",null,null,null,null,null,{"$f":"+'Saisie des données + guide'!$J$17","v":0}]
[]
[null,null,"Code postal",null,null,null,null,null,null,null,null,null,null,null,null,null,null,null,"Téléphone portable "]
[]
[null,null,"Ville",null,null,null,null,null,null,null,null,null,null,null,null,null,null,null,"E-mail",null,null,null,null,null,null,null,null,null,null,null,null,null,null,null,null,null,null,null,"Le Plafond Annuel de la Sécurité Sociale (PASS) est de :",null,null,null,null,null,null,null,null,null,null,null,null,null,null,null,null,{"$f":"PASS","v":47100}]
[]
[null,null,"Statut",null,null,null,null,null,null,null,null,null,null,null,null,null,null,null,"Salaire",null,null,null,null,null,null,null,null,null,null,null,null,null,null,null,null,null,null,null,"Si CSG-CRDS non précomptées pour le salarié",null,null,null,null,null,null,null,null,null,null,null,null,null,null,null,null,{"$f":"+'Saisie des données + guide'!AF36","v":0}]
[null,null,null,null,null,null,null,null,null,null,null,null,null,null,null,null,null,null,null,null,null,null,null,null,null,"À renseigner si versement d'une prime de partage de la valeur"]
[null,null,null,null,null,null,{"$f":"+IF(AND($V$22=\"Prime de partage de la valeur\",G18=\"Non salarié\"),\"La prime de partage de la valeur n’est pas accessible aux travailleurs non-salariés.\",\"\")","v":""},null,null,null,null,null,null,null,null,null,null,null,null,null,null,null,null,null,null,null,null,null,null,null,null,null,null,null,null,null,null,null,{"$f":"+'Saisie des données + guide'!D38","v":"Le montant que Groupama Épargne Salariale doit investir est le montant net de CSG-CRDS (les prélèvements sociaux étant payés directement par vos soins). Si vous cochez cette case, cela signifie que vous souhaitez par dérogation nous adresser un montant brut de CSG-CRDS et que vous aurez prélevé sur la fiche de paie de chacun des salariés concernés la CSG-CRDS relative à l'opération réalisée. Cette dérogation n'est pas possible si l'abondement est à calculer par Groupama Épargne Salariale."}]
[]
[null,null,"MONTANTS À INVESTIR",null,null,null,null,null,null,null,null,null,null,null,"Origine des versements :",null,null,null,null,null,null,{"$f":"'Saisie des données + guide'!T20","v":"Épargne personnelle"},null,null,null,null,null,null,{"$f":"IF(V22=\"Abondement unilatéral\", \"C =\", \"\")","v":""}]
[null,null,null,null,null,null,null,null,null,null,null,null,null,null,null,null,null,null,null,null,null,null,null,null,null,null,null,null,null,null,null,null,null,null,null,null,null,null,"PEE"]
[null,null,null,null,"PEE",null,null,null,null,null,null,null,null,null,"PERCO",null,null,null,null,null,null,null,"MONTANT TOTAL"]
[null,null,"A =",null,null,null,null,null,null,null,null,null,"B =",null,null,null,null,null,null,null,null,null,"A + B =",null,null,null,{"$f":"E25+O25","v":0},null,null,null,null,null,null,null,null,null,null,null,{"$f":"V22","v":"Épargne personnelle"},null,null,null,null,null,null,null,null,null,null,null,"Taux",null,null,null,null,{"$f":"\"Abondement sur \"&$V$22&\"\"","v":"Abondement sur Épargne personnelle"}]
[null,null,null,null,null,null,null,null,null,null,null,null,null,null,null,null,null,null,null,null,null,null,null,null,null,null,null,null,null,null,null,null,null,null,null,null,null,null,null,null,{"$f":"E25","v":0},null,null,null,null,null,null,"x",null,null,{"$f":"+'Saisie des données + guide'!R29","v":0},null,null,null,null,null,"A' =",{"$f":"IF(ISBLANK(E25),\"\",IF(AND(G18=J94,ISBLANK('Saisie des données + guide'!AF36)),MIN(Plafond_PEE_net,E25*AY26*(1-CSG_CRDS)),MIN(Plafond_PEE,E25*AY26)))","v":""}]
[]
[null,null,null,null,null,null,null,null,null,null,null,null,null,null,null,null,null,null,null,null,null,null,null,null,null,null,null,null,null,null,null,null,null,null,null,null,null,null,null,null,"A",null,null,null,null,null,null,null,null,null,"T",null,null,null,null,null,null,{"$f":"IF(AND(G18=J94,ISBLANK('Saisie des données + guide'!AF36)),\"plafonné à \" &Plafond_PEE_net&\" € pour \"&J94,IF(G18=J94,\"plafonné à \" &Plafond_PEE&\" € pour \"&J94,\"plafonné à \" &Plafond_PEE&\" € pour \"&J95))","v":"plafonné à 3768 € pour Non salarié"}]
[null,null,"RÉPARTITION DE L'ÉPARGNE"]
[null,null,null,"A. Gestion Libre"]
[null,null,null,"valable pour le PEE et/ou le PERCO",null,null,null,null,null,null,null,null,null,null,null,null,null,null,null,null,null,null,null,null,null,null,null,null,null,null,null,null,null,null,null,null,null,null,"PERCO"]
[]
[null,null,"NOM DES FONDS\n\n    N'hésitez pas à consulter l'onglet \"Autres fonds\" pour ajouter d'autres supports de placement présents dans votre contrat.",null,null,null,null,null,null,null,null,null,null,null,"PEE",null,null,null,null,null,null,null,null,null,"PERCO",null,null,null,null,null,null,null,null,null,null,null,null,null,{"$f":"$V$22","v":"Épargne personnelle"},null,null,null,null,null,null,null,null,null,null,null,"Taux",null,null,null,{"$f":"IF($V$22=\"Épargne personnelle\",\"Abondement sur Épargne personnelle\",IF($V$22=\"Intéressement\",\"Abondement sur Intéressement\",IF($V$22=\"Participation\",\"Abondement sur Participation\",IF($V$22=\"Jours de repos non pris / CET\",\"Abondement sur Jours de repos non pris / CET\",IF($V$22=\"Prime de partage de la valeur\",\"Abondement sur Prime de partage de la valeur\",IF($V$22=\"Abondement unilatéral\",\"Abondement unilatéral\"))))))","v":"Abondement sur Épargne personnelle"}]
[null,null,null,null,null,null,null,null,null,null,null,null,null,null,{"$f":"+IF(SUM(R37:X61)>E25,\"ERREUR SAISIE\",IF(R36=0,\"\",\"Reste à répartir sur les fonds suivants\"))","v":""},null,null,null,null,null,null,null,null,null,{"$f":"+IF(SUM(AB37:AI64)>(O25+AE22),\"ERREUR SAISIE\",IF(AB36=0,\"\",\"Reste à répartir sur les fonds suivants\"))","v":""},null,null,null,null,null,null,null,null,null,null,null,null,null,null,null,{"$f":"$O$25","v":0},null,null,null,null,null,null,"x",null,null,{"$f":"+'Saisie des données + guide'!$AJ$29","v":0},null,null,null,null,null,{"$f":"IF(V22=\"abondement unilatéral\", \" C' = \",\"B' = \")","v":"B' = "},{"$f":"IF(AND(ISBLANK(O25),ISBLANK(AE22)),\"\",IF(AND(V22=\"Abondement unilatéral\",G18=J94,ISBLANK('Saisie des données + guide'!AF36)),MIN(Plafond_uni_TS,AE22*0.903),IF(AND(V22=\"Abondement unilatéral\",G18=J95),MIN(Plafond_uni_TNS,AE22),IF(AND(V22<>\"Abondement unilatéral\",G18=J94,ISBLANK('Saisie des données + guide'!AF36)),MIN(Plafond_PERCO_net,(1-CSG_CRDS)*AY34*O25),IF(AND(V22<>\"Abondement unilatéral\",G18=J95,ISBLANK('Saisie des données + guide'!AF36)),MIN(Plafond_PERCO,AY34*O25),IF(AND(V22<>\"Abondement unilatéral\",G18=J94,'Saisie des données + guide'!AF36=\"X\"),MIN(Plafond_PERCO,AY34*O25),IF(AND(V22<>\"Abondement unilatéral\",G18=J95,'Saisie des données + guide'!AF36=\"X\"),MIN(Plafond_PERCO,AY34*O25),IF(AND(V22=\"Abondement unilatéral\",G18=J95,'Saisie des données + guide'!AF36=\"X\"),MIN(Plafond_uni_TNS,AE22),IF(AND(V22=\"Abondement unilatéral\",G18=J94,'Saisie des données + guide'!AF36=\"X\"),MIN(Plafond_uni_TNS,AE22))))))))))","v":""}]
[null,null,null,null,null,null,null,null,null,null,null,null,null,null,null,null,null,null,null,null,null,null,null,null,null,null,null,null,null,null,null,null,null,null,null,null,null,null,null,null,"B",null,null,null,null,null,null,null,null,null,"T'",null,null,null,null,null,null,{"$f":"IF(AND(ISBLANK(O25),ISBLANK(AE22)),\"\",IF(AND(V22=\"Abondement unilatéral\",G18=J94,ISBLANK('Saisie des données + guide'!AF36)),\"plafonné à \"&Plafond_uni_TS&\" € pour \"&J94,IF(AND(V22=\"Abondement unilatéral\",G18=J95),\"plafonné à \"&Plafond_uni_TNS&\" € pour \"&J95,IF(AND(V22<>\"Abondement unilatéral\",G18=J94,ISBLANK('Saisie des données + guide'!AF36)),\"plafonné à \"&Plafond_PERCO_net&\" € pour \"&J94,IF(AND(V22<>\"Abondement unilatéral\",G18=J95,ISBLANK('Saisie des données + guide'!AF36)),\"plafonné à \"&Plafond_PERCO&\" € pour \"&J95,IF(AND(V22<>\"Abondement unilatéral\",G18=J94,'Saisie des données + guide'!AF36=\"X\"),\"plafonné à \"&Plafond_PERCO&\" € pour \"&J94,IF(AND(V22<>\"Abondement unilatéral\",G18=J95,'Saisie des données + guide'!AF36=\"X\"),\"plafonné à \"&Plafond_PERCO&\" € pour \"&J95,IF(AND(V22=\"Abondement unilatéral\",G18=J95,'Saisie des données + guide'!AF36=\"X\"),\"plafonné à \"&Plafond_uni_TNS&\" € pour \"&J95,IF(AND(V22=\"Abondement unilatéral\",G18=J94,'Saisie des données + guide'!AF36=\"X\"),\"plafonné à \"&Plafond_uni_TNS&\" € pour \"&J94)))))))))","v":""}]
[null,null,null,null,null,null,null,null,null,null,null,null,null,null,{"$f":"100-(SUM(O37:P64))","v":100},null,{"$f":"IF(O36>1, \"%\", \"\")","v":"%"},{"$f":"E25-SUM(R37:X61)","v":0},null,null,null,null,null,null,{"$f":"100-(SUM(Y37:Z64))","v":100},null,{"$f":"IF(Y36<>0,\"%\",\" \")","v":"%"},{"$f":"(O25+AE22)-SUM(AB37:AI64)","v":0}]
[null,null,{"$f":"+IF('Saisie des données + guide'!T24=\"Gamme GER\",\"84289 - GER Monétaire\",IF('Saisie des données + guide'!T24=\"Gamme TESORUS\",\"82659 - TESORUS Monétaire\",IF('Saisie des données + guide'!T24=\"Gamme Fonds Directs\",\"15719 - Oblifonds\",IF('Saisie des données + guide'!T24=\"Gamme Finama\",\"\",\"\"))))","v":"84289 - GER Monétaire"},null,null,null,null,null,null,null,null,null,null,null,null,null,"%",{"$f":"IF(O37=\"\",\"--------------\",+E$25*O37/100)","v":"--------------"},null,null,null,null,null,null,null,null,"%",{"$f":"IF(Y37=\"\",\"--------------\",+(O$25+$AE$22)*Y37/100)","v":"--------------"}]
[]
[null,null,{"$f":"+IF('Saisie des données + guide'!T24=\"Gamme GER\",\"84309 - GER Prudence\",IF('Saisie des données + guide'!T24=\"Gamme TESORUS\",\"82719 - TESORUS Prudence\",IF('Saisie des données + guide'!T24=\"Gamme Fonds Directs\",\"4939 - Diversifonds\",\"\")))","v":"84309 - GER Prudence"},null,null,null,null,null,null,null,null,null,null,null,null,null,"%",{"$f":"IF(O39=\"\",\"--------------\",+E$25*O39/100)","v":"--------------"},null,null,null,null,null,null,null,null,"%",{"$f":"IF(Y39=\"\",\"--------------\",+(O$25+$AE$22)*Y39/100)","v":"--------------"},null,null,null,null,null,null,null,null,null,null,"VERSEMENT TOTAL DE L'ENTREPRISE",null,null,null,null,null,null,null,null,null,null,null,null,null,null,{"$f":"IF(V22=\"abondement unilatéral\", \" C' = \",\"A'+ B' = \")","v":"A'+ B' = "},null,null,null,{"$f":"MAX(BF26,0)+MAX(BF34,0)","v":0}]
[null,null,{"$f":"+IF('Saisie des données + guide'!T24=\"Gamme GER\",\"84329 - GER Equilibre\",IF('Saisie des données + guide'!T24=\"Gamme TESORUS\",\"82669 - TESORUS Equilibre\",IF('Saisie des données + guide'!T24=\"Gamme Fonds Directs\",\"2459 - Foncival\",\"\")))","v":"84329 - GER Equilibre"},null,null,null,null,null,null,null,null,null,null,null,null,null,"%",{"$f":"IF(O40=\"\",\"--------------\",+E$25*O40/100)","v":"--------------"},null,null,null,null,null,null,null,null,"%",{"$f":"IF(Y40=\"\",\"--------------\",+(O$25+$AE$22)*Y40/100)","v":"--------------"},null,null,null,null,null,null,null,null,null,null,{"$f":"IF(V20=\"abondement unilatéral\", \"\",\"Le versement de l'abondement s'effectue sur les mêmes fonds que le versement personnel.\")","v":"Le versement de l'abondement s'effectue sur les mêmes fonds que le versement personnel."}]
[]
[]
[null,null,{"$f":"+IF('Saisie des données + guide'!T24=\"Gamme GER\",\"84349 - GER Dynamique\",IF('Saisie des données + guide'!T24=\"Gamme TESORUS\",\"82689 - TESORUS Dynamique\",\"\"))","v":"84349 - GER Dynamique"},null,null,null,null,null,null,null,null,null,null,null,null,null,null,{"$f":"IF(O43=\"\",\"--------------\",+E$25*O43/100)","v":"--------------"},null,null,null,null,null,null,null,null,"%",{"$f":"IF(Y43=\"\",\"--------------\",+(O$25+$AE$22)*Y43/100)","v":"--------------"},null,null,null,null,null,null,null,null,null,null,"VERSEMENT TOTAL INVESTI",null,null,null,null,null,null,null,null,null,null,null,null,null,null,null,null,null,null,{"$f":"+AA25+BF39","v":0}]
[]
[null,null,{"$f":"+IF('Saisie des données + guide'!T24=\"Gamme GER\",\"84369 - GER Solidaire\",IF('Saisie des données + guide'!T24=\"Gamme TESORUS\",\"87649 - TESORUS Solidaire\",\"\"))","v":"84369 - GER Solidaire"},null,null,null,null,null,null,null,null,null,null,null,null,null,"%",{"$f":"IF(O45=\"\",\"--------------\",+E$25*O45/100)","v":"--------------"},null,null,null,null,null,null,null,null,"%",{"$f":"IF(Y45=\"\",\"--------------\",+(O$25+$AE$22)*Y45/100)","v":"--------------"}]
[null,null,{"$f":"IF($C$37<>\"\",\"110429 - Finama Épargne Court Terme\",\" \")","v":"110429 - Finama Épargne Court Terme"},null,null,null,null,null,null,null,null,null,null,null,null,null,"%",{"$f":"IF(O46=\"\",\"--------------\",+E$25*O46/100)","v":"--------------"},null,null,null,null,null,null,null,null,"%",{"$f":"IF(Y46=\"\",\"--------------\",+(O$25+$AE$22)*Y46/100)","v":"--------------"}]
[null,null,{"$f":"IF($C$37<>\"\",\"79139 - Finama Actions Internationales\",\" \")","v":"79139 - Finama Actions Internationales"},null,null,null,null,null,null,null,null,null,null,null,null,null,"%",{"$f":"IF(O47=\"\",\"--------------\",+E$25*O47/100)","v":"--------------"},null,null,null,null,null,null,null,null,"%",{"$f":"IF(Y47=\"\",\"--------------\",+(O$25+$AE$22)*Y47/100)","v":"--------------"}]
[null,null,{"$f":"IF($C$37<>\"\",\"116119 - Groupama Sélection PME-ETI\",\" \")","v":"116119 - Groupama Sélection PME-ETI"},null,null,null,null,null,null,null,null,null,null,null,null,null,"%",{"$f":"IF(O48=\"\",\"--------------\",+E$25*O48/100)","v":"--------------"},null,null,null,null,null,null,null,null,"%",{"$f":"IF(Y48=\"\",\"--------------\",+(O$25+$AE$22)*Y48/100)","v":"--------------"}]
[null,null,null,null,null,null,null,null,null,null,null,null,null,null,null,null,"%","--------------",null,null,null,null,null,null,null,null,"%","--------------"]
[null,null,null,null,null,null,null,null,null,null,null,null,null,null,null,null,"%","--------------",null,null,null,null,null,null,null,null,"%","--------------"]
[null,null,null,null,null,null,null,null,null,null,null,null,null,null,null,null,"%","--------------",null,null,null,null,null,null,null,null,"%","--------------"]
[null,null,null,null,null,null,null,null,null,null,null,null,null,null,null,null,"%","--------------",null,null,null,null,null,null,null,null,"%","--------------"]
[null,null,null,null,null,null,null,null,null,null,null,null,null,null,null,null,"%","--------------",null,null,null,null,null,null,null,null,"%","--------------"]
[null,null,null,null,null,null,null,null,null,null,null,null,null,null,null,null,"%","--------------",null,null,null,null,null,null,null,null,"%","--------------"]
[null,null,null,null,null,null,null,null,null,null,null,null,null,null,null,null,"%","--------------",null,null,null,null,null,null,null,null,"%","--------------"]
[null,null,null,null,null,null,null,null,null,null,null,null,null,null,null,null,"%","--------------",null,null,null,null,null,null,null,null,"%","--------------"]
[null,null,null,null,null,null,null,null,null,null,null,null,null,null,null,null,"%","--------------",null,null,null,null,null,null,null,null,"%","--------------"]
[null,null,null,null,null,null,null,null,null,null,null,null,null,null,null,null,"%","--------------",null,null,null,null,null,null,null,null,"%","--------------"]
[null,null,null,null,null,null,null,null,null,null,null,null,null,null,null,null,"%","--------------",null,null,null,null,null,null,null,null,"%","--------------"]
[null,null,null,null,null,null,null,null,null,null,null,null,null,null,null,null,"%","--------------",null,null,null,null,null,null,null,null,"%","--------------"]
[null,null,null,null,null,null,null,null,null,null,null,null,null,null,null,null,"%","--------------",null,null,null,null,null,null,null,null,"%","--------------"]
[]
[null,null,null,"B. Gestion Pilotée",null,null,null,null,null,null,null,null,null,null,null,null,null,null,null,null,null,null,null,null,null,null,"%",{"$f":"IF(Y63=\"\",\"--------------\",+(O25+$AE$22)*Y63/100)","v":"--------------"},null,null,null,null,null,null,null,null,null,null,"Tous les chèques sont à libeller à l’ordre de GROUPAMA ÉPARGNE SALARIALE\net à envoyer à l'adresse :"]
[null,null,null,"valable uniquement sur le PERCO",null,null,null,null,null,null,null,{"$f":"IF(L63=\"Oui\",\"Préciser la grille d'allocation\",\"\")","v":""}]
[]
[null,null,null," Pour plus de renseignements sur la gestion pilotée >",null,null,null,null,null,null,null,null,null,null,"cliquez ici",null,null,null,null,null,null,null,null,null,null,null,null,null,null,null,null,null,null,null,null,null,null,null,"GROUPAMA ÉPARGNE SALARIALE\nService Clients\n46 rue Jules Méline\n53098 LAVAL Cedex 9"]
[]
[null,null,"Je déclare avoir pris connaissance du règlement du plan, des documents d'information clés (DIC/KID) des fonds remis par mon entreprise et téléchargeables sur www.groupama-es.fr, ainsi que des modalités de fonctionnement des versements individuels jointes au présent bulletin. \n\nConformément au contrat d’épargne salariale mis en place par votre entreprise, des frais de versements d’un maximum de 4 % peuvent s’appliquer. Nous vous invitons à contacter votre employeur pour obtenir le montant de ces frais."]
[null,null,"En l'absence de choix de fonds, les sommes seront investies sur le fonds par défaut dans le PEE ou selon le mode de gestion pilotée dans le PERCO : soit le profil Prudent s'il s'agit de votre premier versement ou si vous aviez opté pour la gestion libre lors de précédent versement, soit avec le même profil de gestion pilotée précédemment choisi."]
[]
[null,null,"Pour tout versement volontaire à partir de 8 000 €, une copie de votre pièce d'identité devra être fournie, accompagnée du dernier avis d'imposition pour un versement d’un montant de\n15 000 € et plus. "]
[null,null,null,"J’atteste sur l’honneur que mon versement est conforme à la réglementation, notamment qu'il provient bien de mes avoirs personnels et que l’ensemble de mes versements de l’année au PEE/PERCO ne dépasse pas 25 % de ma rémunération annuelle brute.",null,null,null,null,null,null,null,null,null,null,null,null,null,null,null,null,null,null,null,null,null,null,null,null,null,null,null,null,null,null,null,null,null,null,"Le numéro de Sécurité sociale est recueilli pour identifier l’épargnant en cas de risque d’homonymie.\nConformément au règlement général sur la protection des données n°2016/679 du 27 avril 2016, vos données personnelles sont traitées par Groupama Épargne Salariale aux fins de tenue des comptes d'épargne salariale. Elles sont destinées aux membres du personnel dûment habilités de Groupama Épargne Salariale ainsi qu’à ses sous-traitants. Elles sont conservées par Groupama Épargne Salariale pendant une durée maximale de trente ans à compter de la disponibilité des avoirs.Vous pouvez demander l’accès, la rectification, l'effacement et la portabilité de vos données personnelles ainsi que limiter ou vous opposer, pour motif légitime, au traitement en écrivant au Délégué Relais à la Protection des Données de Groupama Épargne Salariale – Service du Contrôle interne – 2 boulevard de Pesaro – 92000 Nanterre ou par email : controleinterne@groupama-es.fr.\n"]
[null,null,null,null,null,null,null,null,null,null,null,null,null,null,null,null,null,null,null,null,"SIGNATURE ÉPARGNANT"]
[null,null,"Fait à :"]
[]
[null,null,"le",null,null,null,null,null,null,null,{"$f":"'Saisie des données + guide'!BC1","v":2025},null,null,null,null,null,null,null,null,null,null,null,null,null,null,null,null,null,null,null,null,null,null,null,null,null,null,null,null,null,null,null,null,null,"Groupama Épargne Salariale - Entreprise d'investissement agréée par l'ACPR, Teneur de compte - conservateur de parts - Société Anonyme au capital de 8.709.015 € - Siège social : 2 boulevard de Pesaro 92000 Nanterre - 428 768 352 RCS Nanterre - Réf. : BIV-01-01-2025"]
[]
[]
[]
[]
[]
[]
[]
[]
[]
[]
[]
[null,null,null,null,"3 options dans ce BIV :"]
[]
[null,null,null,null,null,null,"Ouverture compte :"]
[null,null,null,null,null,null,null,null,null,null,null,null,"X"]
[]
[null,null,null,null,null,null,"Statut :"]
[null,null,null,null,null,null,null,null,null,"Salarié"]
[null,null,null,null,null,null,null,null,null,"Non salarié"]
[]
[null,null,null,null,null,null,"Gestion pilotée :"]
[]
[null,null,null,null,null,null,null,null,null,null,"Grille Prudente"]
[null,null,null,null,null,null,null,null,null,null,"Grille Équilibre"]
[null,null,null,null,null,null,null,null,null,null,"Grille Dynamique"]
[]
[null,null,null,null,null,null,null,null,null,null,null,"Oui"]
[null,null,null,null,null,null,null,null,null,null,null,"Non"]

{"sheet":"Bulletin n°6","index":6,"n_rows":104,"n_cols":63,"rows_kept":104,"cut":false,"hidden":false,"merged":[[82,10,82,15],[82,16,82,21],[82,22,82,27],[70,2,70,34],[71,3,71,34],[71,38,74,69],[72,20,72,34],[73,2,73,4],[73,5,73,18],[73,20,75,34],[75,7,75,8],[75,10,75,12],[75,44,75,69],[62,11,62,12],[62,17,63,22],[62,24,63,25],[62,26,63,26],[62,27,63,34],[62,38,64,68],[63,3,64,10],[63,11,63,16],[65,14,65,15],[65,30,65,34],[65,38,68,68],[66,17,66,23],[67,2,67,34],[68,2,69,34],[59,2,59,13],[59,14,59,15],[59,17,59,23],[59,24,59,25],[59,27,59,34],[60,2,60,13],[60,14,60,15],[60,17,60,23],[60,24,60,25],[60,27,60,34],[57,2,57,13],[57,14,57,15],[57,17,57,23],[57,24,57,25],[57,27,57,34],[58,2,58,13],[58,14,58,15],[58,17,58,23],[58,24,58,25],[58,27,58,34],[55,2,55,13],[55,14,55,15],[55,17,55,23],[55,24,55,25],[55,27,55,34],[56,2,56,13],[56,14,56,15],[56,17,56,23],[56,24,56,25],[56,27,56,34],[52,27,52,34],[53,2,53,13],[53,14,53,15],[53,17,53,23],[53,24,53,25],[53,27,53,34],[54,2,54,13],[54,14,54,15],[54,17,54,23],[54,24,54,25],[54,27,54,34],[46,38,60,69],[47,2,47,13],[47,14,47,15],[47,17,47,23],[47,24,47,25],[47,27,47,34],[48,2,48,13],[48,14,48,15],[48,17,48,23],[48,24,48,25],[50,2,50,13],[50,14,50,15],[50,17,50,23],[50,24,50,25],[50,27,50,34],[51,2,51,13],[51,14,51,15],[51,17,51,23],[51,24,51,25],[51,27,51,34],[52,2,52,13],[52,14,52,15],[52,17,52,23],[52,24,52,25],[45,27,45,34],[46,2,46,13],[46,14,46,15],[46,17,46,23],[46,24,46,25],[46,27,46,34],[48,27,48,34],[49,2,49,13],[49,14,49,15],[49,17,49,23],[49,24,49,25],[49,27,49,34],[39,14,41,15],[39,16,41,16],[39,17,41,23],[39,24,41,25],[39,26,41,26],[45,2,45,13],[45,14,45,15],[45,17,45,23],[45,24,45,25],[38,2,38,13],[38,14,38,15],[38,17,38,23],[38,24,38,25],[38,27,38,34],[38,53,38,56],[38,57,38,67],[42,57,43,67],[44,2,44,13],[44,14,44,15],[44,17,44,23],[44,24,44,25],[44,27,44,34],[39,27,41,34],[39,38,41,53],[42,2,43,13],[42,14,43,15],[42,16,43,16],[42,17,43,23],[42,24,43,25],[42,26,43,26],[42,27,43,34],[42,38,43,52],[39,2,41,13],[36,2,37,13],[36,14,37,15],[36,16,37,16],[36,17,37,23],[36,24,37,25],[36,26,37,26],[36,27,37,34],[36,56,36,67],[36,68,36,69],[30,38,30,42],[30,45,30,62],[30,63,30,68],[31,38,31,47],[31,48,31,68],[32,2,35,13],[32,14,32,23],[32,24,32,34],[32,38,32,47],[32,50,32,53],[32,54,32,68],[33,14,34,23],[33,24,34,34],[33,40,33,45],[33,47,33,48],[33,50,33,53],[33,57,33,67],[34,40,34,45],[34,50,34,53],[34,57,34,67],[35,14,35,15],[35,17,35,23],[35,24,35,25],[35,27,35,34],[27,40,27,45],[27,50,27,53],[27,57,27,67],[28,40,28,45],[28,50,28,53],[28,57,28,67],[24,38,24,47],[24,50,24,53],[24,55,24,68],[25,40,26,45],[25,47,25,48],[25,50,26,53],[25,56,26,56],[25,57,26,67],[24,2,24,3],[24,4,24,10],[24,12,24,13],[24,14,24,20],[24,22,24,25],[24,26,24,34],[22,21,22,31],[22,38,22,42],[22,45,22,62],[22,63,22,68],[23,4,23,10],[23,14,23,20],[23,22,23,34],[23,38,23,47],[23,48,23,68],[17,87,17,105],[19,38,20,69],[21,14,21,19],[21,21,21,27],[21,28,21,29],[21,30,21,34],[15,2,15,3],[15,6,15,16],[15,25,15,34],[15,55,15,61],[16,62,16,68],[17,6,17,16],[17,25,17,34],[11,6,11,16],[11,25,11,34],[11,44,11,68],[13,6,13,10],[13,25,13,34],[13,62,13,68],[7,6,7,16],[7,25,7,34],[7,44,7,68],[9,6,9,10],[9,15,9,16],[9,25,9,34],[9,44,9,68],[0,1,0,58],[0,62,0,67],[2,1,2,35],[2,38,2,68],[5,6,5,10],[5,13,5,16],[5,25,5,34],[5,44,5,49],[5,62,5,68]]}
[null,"BULLETIN INDIVIDUEL DE VERSEMENTS SUR VOTRE PLAN D’ÉPARGNE SALARIALE                                              ",null,null,null,null,null,null,null,null,null,null,null,null,null,null,null,null,null,null,null,null,null,null,null,null,null,null,null,null,null,null,null,null,null,null,null,null,null,null,null,null,null,null,null,null,null,null,null,null,null,null,null,null,null,null,null,null,null,null,null,null,{"$f":"'Saisie des données + guide'!BC1","v":2025}]
[]
[null," INFORMATIONS ÉPARGNANT",null,null,null,null,null,null,null,null,null,null,null,null,null,null,null,null,null,null,null,null,null,null,null,null,null,null,null,null,null,null,null,null,null,null,null,null,"INFORMATIONS ENTREPRISE"]
[]
[]
[null,null,"Civilité ",null,null,null,null,null,null,null,null,null,"Nom",null,null,null,null,null,"Prénom",null,null,null,null,null,null,null,null,null,null,null,null,null,null,null,null,null,null,null,"Code entreprise",null,null,null,null,null,{"$f":"+'Saisie des données + guide'!$J$11","v":0},null,null,null,null,null,null,null,null,"Exercice fiscal de référence",null,null,null,null,null,null,null,null,{"$f":"'Saisie des données + guide'!$U$48","v":0}]
[]
[null,null,"N° Sécurité sociale",null,null,null,null,null,null,null,null,null,null,null,null,null,null,null,"Nom de naissance",null,null,null,null,null,null,null,null,null,null,null,null,null,null,null,null,null,null,null,"Raison sociale",null,null,null,null,null,{"$f":"+'Saisie des données + guide'!$J$13","v":0}]
[]
[null,null,"Date de naissance",null,null,null,null,null,null,null,null,"Département de naissance",null,null,null,null,null,null,"Ville de naissance",null,null,null,null,null,null,null,null,null,null,null,null,null,null,null,null,null,null,null,"Contact",null,null,null,null,null,{"$f":"+'Saisie des données + guide'!$J$15","v":0}]
[]
[null,null,"Adresse",null,null,null,null,null,null,null,null,null,null,null,null,null,null,null,"Pays de naissance",null,null,null,null,null,null,null,null,null,null,null,null,null,null,null,null,null,null,null,"E-mail",null,null,null,null,null,{"$f":"+'Saisie des données + guide'!$J$17","v":0}]
[]
[null,null,"Code postal",null,null,null,null,null,null,null,null,null,null,null,null,null,null,null,"Téléphone portable "]
[]
[null,null,"Ville",null,null,null,null,null,null,null,null,null,null,null,null,null,null,null,"E-mail",null,null,null,null,null,null,null,null,null,null,null,null,null,null,null,null,null,null,null,"Le Plafond Annuel de la Sécurité Sociale (PASS) est de :",null,null,null,null,null,null,null,null,null,null,null,null,null,null,null,null,{"$f":"PASS","v":47100}]
[]
[null,null,"Statut",null,null,null,null,null,null,null,null,null,null,null,null,null,null,null,"Salaire",null,null,null,null,null,null,null,null,null,null,null,null,null,null,null,null,null,null,null,"Si CSG-CRDS non précomptées pour le salarié",null,null,null,null,null,null,null,null,null,null,null,null,null,null,null,null,{"$f":"+'Saisie des données + guide'!AF36","v":0}]
[null,null,null,null,null,null,null,null,null,null,null,null,null,null,null,null,null,null,null,null,null,null,null,null,null,"À renseigner si versement d'une prime de partage de la valeur"]
[null,null,null,null,null,null,{"$f":"+IF(AND($V$22=\"Prime de partage de la valeur\",G18=\"Non salarié\"),\"La prime de partage de la valeur n’est pas accessible aux travailleurs non-salariés.\",\"\")","v":""},null,null,null,null,null,null,null,null,null,null,null,null,null,null,null,null,null,null,null,null,null,null,null,null,null,null,null,null,null,null,null,{"$f":"+'Saisie des données + guide'!D38","v":"Le montant que Groupama Épargne Salariale doit investir est le montant net de CSG-CRDS (les prélèvements sociaux étant payés directement par vos soins). Si vous cochez cette case, cela signifie que vous souhaitez par dérogation nous adresser un montant brut de CSG-CRDS et que vous aurez prélevé sur la fiche de paie de chacun des salariés concernés la CSG-CRDS relative à l'opération réalisée. Cette dérogation n'est pas possible si l'abondement est à calculer par Groupama Épargne Salariale."}]
[]
[null,null,"MONTANTS À INVESTIR",null,null,null,null,null,null,null,null,null,null,null,"Origine des versements :",null,null,null,null,null,null,{"$f":"'Saisie des données + guide'!T20","v":"Épargne personnelle"},null,null,null,null,null,null,{"$f":"IF(V22=\"Abondement unilatéral\", \"C =\", \"\")","v":""}]
[null,null,null,null,null,null,null,null,null,null,null,null,null,null,null,null,null,null,null,null,null,null,null,null,null,null,null,null,null,null,null,null,null,null,null,null,null,null,"PEE"]
[null,null,null,null,"PEE",null,null,null,null,null,null,null,null,null,"PERCO",null,null,null,null,null,null,null,"MONTANT TOTAL"]
[null,null,"A =",null,null,null,null,null,null,null,null,null,"B =",null,null,null,null,null,null,null,null,null,"A + B =",null,null,null,{"$f":"E25+O25","v":0},null,null,null,null,null,null,null,null,null,null,null,{"$f":"V22","v":"Épargne personnelle"},null,null,null,null,null,null,null,null,null,null,null,"Taux",null,null,null,null,{"$f":"\"Abondement sur \"&$V$22&\"\"","v":"Abondement sur Épargne personnelle"}]
[null,null,null,null,null,null,null,null,null,null,null,null,null,null,null,null,null,null,null,null,null,null,null,null,null,null,null,null,null,null,null,null,null,null,null,null,null,null,null,null,{"$f":"E25","v":0},null,null,null,null,null,null,"x",null,null,{"$f":"+'Saisie des données + guide'!R29","v":0},null,null,null,null,null,"A' =",{"$f":"IF(ISBLANK(E25),\"\",IF(AND(G18=J94,ISBLANK('Saisie des données + guide'!AF36)),MIN(Plafond_PEE_net,E25*AY26*(1-CSG_CRDS)),MIN(Plafond_PEE,E25*AY26)))","v":""}]
[]
[null,null,null,null,null,null,null,null,null,null,null,null,null,null,null,null,null,null,null,null,null,null,null,null,null,null,null,null,null,null,null,null,null,null,null,null,null,null,null,null,"A",null,null,null,null,null,null,null,null,null,"T",null,null,null,null,null,null,{"$f":"IF(AND(G18=J94,ISBLANK('Saisie des données + guide'!AF36)),\"plafonné à \" &Plafond_PEE_net&\" € pour \"&J94,IF(G18=J94,\"plafonné à \" &Plafond_PEE&\" € pour \"&J94,\"plafonné à \" &Plafond_PEE&\" € pour \"&J95))","v":"plafonné à 3768 € pour Non salarié"}]
[null,null,"RÉPARTITION DE L'ÉPARGNE"]
[null,null,null,"A. Gestion Libre"]
[null,null,null,"valable pour le PEE et/ou le PERCO",null,null,null,null,null,null,null,null,null,null,null,null,null,null,null,null,null,null,null,null,null,null,null,null,null,null,null,null,null,null,null,null,null,null,"PERCO"]
[]
[null,null,"NOM DES FONDS\n\n    N'hésitez pas à consulter l'onglet \"Autres fonds\" pour ajouter d'autres supports de placement présents dans votre contrat.",null,null,null,null,null,null,null,null,null,null,null,"PEE",null,null,null,null,null,null,null,null,null,"PERCO",null,null,null,null,null,null,null,null,null,null,null,null,null,{"$f":"$V$22","v":"Épargne personnelle"},null,null,null,null,null,null,null,null,null,null,null,"Taux",null,null,null,{"$f":"IF($V$22=\"Épargne personnelle\",\"Abondement sur Épargne personnelle\",IF($V$22=\"Intéressement\",\"Abondement sur Intéressement\",IF($V$22=\"Participation\",\"Abondement sur Participation\",IF($V$22=\"Jours de repos non pris / CET\",\"Abondement sur Jours de repos non pris / CET\",IF($V$22=\"Prime de partage de la valeur\",\"Abondement sur Prime de partage de la valeur\",IF($V$22=\"Abondement unilatéral\",\"Abondement unilatéral\"))))))","v":"Abondement sur Épargne personnelle"}]
[null,null,null,null,null,null,null,null,null,null,null,null,null,null,{"$f":"+IF(SUM(R37:X61)>E25,\"ERREUR SAISIE\",IF(R36=0,\"\",\"Reste à répartir sur les fonds suivants\"))","v":""},null,null,null,null,null,null,null,null,null,{"$f":"+IF(SUM(AB37:AI64)>(O25+AE22),\"ERREUR SAISIE\",IF(AB36=0,\"\",\"Reste à répartir sur les fonds suivants\"))","v":""},null,null,null,null,null,null,null,null,null,null,null,null,null,null,null,{"$f":"$O$25","v":0},null,null,null,null,null,null,"x",null,null,{"$f":"+'Saisie des données + guide'!$AJ$29","v":0},null,null,null,null,null,{"$f":"IF(V22=\"abondement unilatéral\", \" C' = \",\"B' = \")","v":"B' = "},{"$f":"IF(AND(ISBLANK(O25),ISBLANK(AE22)),\"\",IF(AND(V22=\"Abondement unilatéral\",G18=J94,ISBLANK('Saisie des données + guide'!AF36)),MIN(Plafond_uni_TS,AE22*0.903),IF(AND(V22=\"Abondement unilatéral\",G18=J95),MIN(Plafond_uni_TNS,AE22),IF(AND(V22<>\"Abondement unilatéral\",G18=J94,ISBLANK('Saisie des données + guide'!AF36)),MIN(Plafond_PERCO_net,(1-CSG_CRDS)*AY34*O25),IF(AND(V22<>\"Abondement unilatéral\",G18=J95,ISBLANK('Saisie des données + guide'!AF36)),MIN(Plafond_PERCO,AY34*O25),IF(AND(V22<>\"Abondement unilatéral\",G18=J94,'Saisie des données + guide'!AF36=\"X\"),MIN(Plafond_PERCO,AY34*O25),IF(AND(V22<>\"Abondement unilatéral\",G18=J95,'Saisie des données + guide'!AF36=\"X\"),MIN(Plafond_PERCO,AY34*O25),IF(AND(V22=\"Abondement unilatéral\",G18=J95,'Saisie des données + guide'!AF36=\"X\"),MIN(Plafond_uni_TNS,AE22),IF(AND(V22=\"Abondement unilatéral\",G18=J94,'Saisie des données + guide'!AF36=\"X\"),MIN(Plafond_uni_TNS,AE22))))))))))","v":""}]
[null,null,null,null,null,null,null,null,null,null,null,null,null,null,null,null,null,null,null,null,null,null,null,null,null,null,null,null,null,null,null,null,null,null,null,null,null,null,null,null,"B",null,null,null,null,null,null,null,null,null,"T'",null,null,null,null,null,null,{"$f":"IF(AND(ISBLANK(O25),ISBLANK(AE22)),\"\",IF(AND(V22=\"Abondement unilatéral\",G18=J94,ISBLANK('Saisie des données + guide'!AF36)),\"plafonné à \"&Plafond_uni_TS&\" € pour \"&J94,IF(AND(V22=\"Abondement unilatéral\",G18=J95),\"plafonné à \"&Plafond_uni_TNS&\" € pour \"&J95,IF(AND(V22<>\"Abondement unilatéral\",G18=J94,ISBLANK('Saisie des données + guide'!AF36)),\"plafonné à \"&Plafond_PERCO_net&\" € pour \"&J94,IF(AND(V22<>\"Abondement unilatéral\",G18=J95,ISBLANK('Saisie des données + guide'!AF36)),\"plafonné à \"&Plafond_PERCO&\" € pour \"&J95,IF(AND(V22<>\"Abondement unilatéral\",G18=J94,'Saisie des données + guide'!AF36=\"X\"),\"plafonné à \"&Plafond_PERCO&\" € pour \"&J94,IF(AND(V22<>\"Abondement unilatéral\",G18=J95,'Saisie des données + guide'!AF36=\"X\"),\"plafonné à \"&Plafond_PERCO&\" € pour \"&J95,IF(AND(V22=\"Abondement unilatéral\",G18=J95,'Saisie des données + guide'!AF36=\"X\"),\"plafonné à \"&Plafond_uni_TNS&\" € pour \"&J95,IF(AND(V22=\"Abondement unilatéral\",G18=J94,'Saisie des données + guide'!AF36=\"X\"),\"plafonné à \"&Plafond_uni_TNS&\" € pour \"&J94)))))))))","v":""}]
[null,null,null,null,null,null,null,null,null,null,null,null,null,null,{"$f":"100-(SUM(O37:P64))","v":100},null,{"$f":"IF(O36>1, \"%\", \"\")","v":"%"},{"$f":"E25-SUM(R37:X61)","v":0},null,null,null,null,null,null,{"$f":"100-(SUM(Y37:Z64))","v":100},null,{"$f":"IF(Y36<>0,\"%\",\" \")","v":"%"},{"$f":"(O25+AE22)-SUM(AB37:AI64)","v":0}]
[null,null,{"$f":"+IF('Saisie des données + guide'!T24=\"Gamme GER\",\"84289 - GER Monétaire\",IF('Saisie des données + guide'!T24=\"Gamme TESORUS\",\"82659 - TESORUS Monétaire\",IF('Saisie des données + guide'!T24=\"Gamme Fonds Directs\",\"15719 - Oblifonds\",IF('Saisie des données + guide'!T24=\"Gamme Finama\",\"\",\"\"))))","v":"84289 - GER Monétaire"},null,null,null,null,null,null,null,null,null,null,null,null,null,"%",{"$f":"IF(O37=\"\",\"--------------\",+E$25*O37/100)","v":"--------------"},null,null,null,null,null,null,null,null,"%",{"$f":"IF(Y37=\"\",\"--------------\",+(O$25+$AE$22)*Y37/100)","v":"--------------"}]
[]
[null,null,{"$f":"+IF('Saisie des données + guide'!T24=\"Gamme GER\",\"84309 - GER Prudence\",IF('Saisie des données + guide'!T24=\"Gamme TESORUS\",\"82719 - TESORUS Prudence\",IF('Saisie des données + guide'!T24=\"Gamme Fonds Directs\",\"4939 - Diversifonds\",\"\")))","v":"84309 - GER Prudence"},null,null,null,null,null,null,null,null,null,null,null,null,null,"%",{"$f":"IF(O39=\"\",\"--------------\",+E$25*O39/100)","v":"--------------"},null,null,null,null,null,null,null,null,"%",{"$f":"IF(Y39=\"\",\"--------------\",+(O$25+$AE$22)*Y39/100)","v":"--------------"},null,null,null,null,null,null,null,null,null,null,"VERSEMENT TOTAL DE L'ENTREPRISE",null,null,null,null,null,null,null,null,null,null,null,null,null,null,{"$f":"IF(V22=\"abondement unilatéral\", \" C' = \",\"A'+ B' = \")","v":"A'+ B' = "},null,null,null,{"$f":"MAX(BF26,0)+MAX(BF34,0)","v":0}]
[null,null,{"$f":"+IF('Saisie des données + guide'!T24=\"Gamme GER\",\"84329 - GER Equilibre\",IF('Saisie des données + guide'!T24=\"Gamme TESORUS\",\"82669 - TESORUS Equilibre\",IF('Saisie des données + guide'!T24=\"Gamme Fonds Directs\",\"2459 - Foncival\",\"\")))","v":"84329 - GER Equilibre"},null,null,null,null,null,null,null,null,null,null,null,null,null,"%",{"$f":"IF(O40=\"\",\"--------------\",+E$25*O40/100)","v":"--------------"},null,null,null,null,null,null,null,null,"%",{"$f":"IF(Y40=\"\",\"--------------\",+(O$25+$AE$22)*Y40/100)","v":"--------------"},null,null,null,null,null,null,null,null,null,null,{"$f":"IF(V20=\"abondement unilatéral\", \"\",\"Le versement de l'abondement s'effectue sur les mêmes fonds que le versement personnel.\")","v":"Le versement de l'abondement s'effectue sur les mêmes fonds que le versement personnel."}]
[]
[]
[null,null,{"$f":"+IF('Saisie des données + guide'!T24=\"Gamme GER\",\"84349 - GER Dynamique\",IF('Saisie des données + guide'!T24=\"Gamme TESORUS\",\"82689 - TESORUS Dynamique\",\"\"))","v":"84349 - GER Dynamique"},null,null,null,null,null,null,null,null,null,null,null,null,null,"%",{"$f":"IF(O43=\"\",\"--------------\",+E$25*O43/100)","v":"--------------"},null,null,null,null,null,null,null,null,"%",{"$f":"IF(Y43=\"\",\"--------------\",+(O$25+$AE$22)*Y43/100)","v":"--------------"},null,null,null,null,null,null,null,null,null,null,"VERSEMENT TOTAL INVESTI",null,null,null,null,null,null,null,null,null,null,null,null,null,null,null,null,null,null,{"$f":"+AA25+BF39","v":0}]
[]
[null,null,{"$f":"+IF('Saisie des données + guide'!T24=\"Gamme GER\",\"84369 - GER Solidaire\",IF('Saisie des données + guide'!T24=\"Gamme TESORUS\",\"87649 - TESORUS Solidaire\",\"\"))","v":"84369 - GER Solidaire"},null,null,null,null,null,null,null,null,null,null,null,null,null,"%",{"$f":"IF(O45=\"\",\"--------------\",+E$25*O45/100)","v":"--------------"},null,null,null,null,null,null,null,null,"%",{"$f":"IF(Y45=\"\",\"--------------\",+(O$25+$AE$22)*Y45/100)","v":"--------------"}]
[null,null,{"$f":"IF($C$37<>\"\",\"110429 - Finama Épargne Court Terme\",\" \")","v":"110429 - Finama Épargne Court Terme"},null,null,null,null,null,null,null,null,null,null,null,null,null,"%",{"$f":"IF(O46=\"\",\"--------------\",+E$25*O46/100)","v":"--------------"},null,null,null,null,null,null,null,null,"%",{"$f":"IF(Y46=\"\",\"--------------\",+(O$25+$AE$22)*Y46/100)","v":"--------------"}]
[null,null,{"$f":"IF($C$37<>\"\",\"79139 - Finama Actions Internationales\",\" \")","v":"79139 - Finama Actions Internationales"},null,null,null,null,null,null,null,null,null,null,null,null,null,"%",{"$f":"IF(O47=\"\",\"--------------\",+E$25*O47/100)","v":"--------------"},null,null,null,null,null,null,null,null,"%",{"$f":"IF(Y47=\"\",\"--------------\",+(O$25+$AE$22)*Y47/100)","v":"--------------"}]
[null,null,{"$f":"IF($C$37<>\"\",\"116119 - Groupama Sélection PME-ETI\",\" \")","v":"116119 - Groupama Sélection PME-ETI"},null,null,null,null,null,null,null,null,null,null,null,null,null,"%",{"$f":"IF(O48=\"\",\"--------------\",+E$25*O48/100)","v":"--------------"},null,null,null,null,null,null,null,null,"%",{"$f":"IF(Y48=\"\",\"--------------\",+(O$25+$AE$22)*Y48/100)","v":"--------------"}]
[null,null,null,null,null,null,null,null,null,null,null,null,null,null,null,null,"%","--------------",null,null,null,null,null,null,null,null,"%","--------------"]
[null,null,null,null,null,null,null,null,null,null,null,null,null,null,null,null,"%","--------------",null,null,null,null,null,null,null,null,"%","--------------"]
[null,null,null,null,null,null,null,null,null,null,null,null,null,null,null,null,"%","--------------",null,null,null,null,null,null,null,null,"%","--------------"]
[null,null,null,null,null,null,null,null,null,null,null,null,null,null,null,null,"%","--------------",null,null,null,null,null,null,null,null,"%","--------------"]
[null,null,null,null,null,null,null,null,null,null,null,null,null,null,null,null,"%","--------------",null,null,null,null,null,null,null,null,"%","--------------"]
[null,null,null,null,null,null,null,null,null,null,null,null,null,null,null,null,"%","--------------",null,null,null,null,null,null,null,null,"%","--------------"]
[null,null,null,null,null,null,null,null,null,null,null,null,null,null,null,null,"%","--------------",null,null,null,null,null,null,null,null,"%","--------------"]
[null,null,null,null,null,null,null,null,null,null,null,null,null,null,null,null,"%","--------------",null,null,null,null,null,null,null,null,"%","--------------"]
[null,null,null,null,null,null,null,null,null,null,null,null,null,null,null,null,"%","--------------",null,null,null,null,null,null,null,null,"%","--------------"]
[null,null,null,null,null,null,null,null,null,null,null,null,null,null,null,null,"%","--------------",null,null,null,null,null,null,null,null,"%","--------------"]
[null,null,null,null,null,null,null,null,null,null,null,null,null,null,null,null,"%","--------------",null,null,null,null,null,null,null,null,"%","--------------"]
[null,null,null,null,null,null,null,null,null,null,null,null,null,null,null,null,"%","--------------",null,null,null,null,null,null,null,null,"%","--------------"]
[null,null,null,null,null,null,null,null,null,null,null,null,null,null,null,null,"%","--------------",null,null,null,null,null,null,null,null,"%","--------------"]
[]
[null,null,null,"B. Gestion Pilotée",null,null,null,null,null,null,null,null,null,null,null,null,null,null,null,null,null,null,null,null,null,null,"%",{"$f":"IF(Y63=\"\",\"--------------\",+(O25+$AE$22)*Y63/100)","v":"--------------"},null,null,null,null,null,null,null,null,null,null,"Tous les chèques sont à libeller à l’ordre de GROUPAMA ÉPARGNE SALARIALE\net à envoyer à l'adresse :"]
[null,null,null,"valable uniquement sur le PERCO",null,null,null,null,null,null,null,{"$f":"IF(L63=\"Oui\",\"Préciser la grille d'allocation\",\"\")","v":""}]
[]
[null,null,null," Pour plus de renseignements sur la gestion pilotée >",null,null,null,null,null,null,null,null,null,null,"cliquez ici",null,null,null,null,null,null,null,null,null,null,null,null,null,null,null,null,null,null,null,null,null,null,null,"GROUPAMA ÉPARGNE SALARIALE\nService Clients\n46 rue Jules Méline\n53098 LAVAL Cedex 9"]
[]
[null,null,"Je déclare avoir pris connaissance du règlement du plan, des documents d'information clés (DIC/KID) des fonds remis par mon entreprise et téléchargeables sur www.groupama-es.fr, ainsi que des modalités de fonctionnement des versements individuels jointes au présent bulletin. \n\nConformément au contrat d’épargne salariale mis en place par votre entreprise, des frais de versements d’un maximum de 4 % peuvent s’appliquer. Nous vous invitons à contacter votre employeur pour obtenir le montant de ces frais."]
[null,null,"En l'absence de choix de fonds, les sommes seront investies sur le fonds par défaut dans le PEE ou selon le mode de gestion pilotée dans le PERCO : soit le profil Prudent s'il s'agit de votre premier versement ou si vous aviez opté pour la gestion libre lors de précédent versement, soit avec le même profil de gestion pilotée précédemment choisi."]
[]
[null,null,"Pour tout versement volontaire à partir de 8 000 €, une copie de votre pièce d'identité devra être fournie, accompagnée du dernier avis d'imposition pour un versement d’un montant de\n15 000 € et plus. "]
[null,null,null,"J’atteste sur l’honneur que mon versement est conforme à la réglementation, notamment qu'il provient bien de mes avoirs personnels et que l’ensemble de mes versements de l’année au PEE/PERCO ne dépasse pas 25 % de ma rémunération annuelle brute.",null,null,null,null,null,null,null,null,null,null,null,null,null,null,null,null,null,null,null,null,null,null,null,null,null,null,null,null,null,null,null,null,null,null,"Le numéro de Sécurité sociale est recueilli pour identifier l’épargnant en cas de risque d’homonymie.\nConformément au règlement général sur la protection des données n°2016/679 du 27 avril 2016, vos données personnelles sont traitées par Groupama Épargne Salariale aux fins de tenue des comptes d'épargne salariale. Elles sont destinées aux membres du personnel dûment habilités de Groupama Épargne Salariale ainsi qu’à ses sous-traitants. Elles sont conservées par Groupama Épargne Salariale pendant une durée maximale de trente ans à compter de la disponibilité des avoirs.Vous pouvez demander l’accès, la rectification, l'effacement et la portabilité de vos données personnelles ainsi que limiter ou vous opposer, pour motif légitime, au traitement en écrivant au Délégué Relais à la Protection des Données de Groupama Épargne Salariale – Service du Contrôle interne – 2 boulevard de Pesaro – 92000 Nanterre ou par email : controleinterne@groupama-es.fr.\n"]
[null,null,null,null,null,null,null,null,null,null,null,null,null,null,null,null,null,null,null,null,"SIGNATURE ÉPARGNANT"]
[null,null,"Fait à :"]
[]
[null,null,"le",null,null,null,null,null,null,null,{"$f":"'Saisie des données + guide'!BC1","v":2025},null,null,null,null,null,null,null,null,null,null,null,null,null,null,null,null,null,null,null,null,null,null,null,null,null,null,null,null,null,null,null,null,null,"Groupama Épargne Salariale - Entreprise d'investissement agréée par l'ACPR, Teneur de compte - conservateur de parts - Société Anonyme au capital de 8.709.015 € - Siège social : 2 boulevard de Pesaro 92000 Nanterre - 428 768 352 RCS Nanterre - Réf. : BIV-01-01-2025"]
[]
[]
[]
[]
[]
[]
[]
[]
[]
[]
[]
[null,null,null,null,"3 options dans ce BIV :"]
[]
[null,null,null,null,null,null,"Ouverture compte :"]
[null,null,null,null,null,null,null,null,null,null,null,null,"X"]
[]
[null,null,null,null,null,null,"Statut :"]
[null,null,null,null,null,null,null,null,null,"Salarié"]
[null,null,null,null,null,null,null,null,null,"Non salarié"]
[]
[null,null,null,null,null,null,"Gestion pilotée :"]
[]
[null,null,null,null,null,null,null,null,null,null,"Grille Prudente"]
[null,null,null,null,null,null,null,null,null,null,"Grille Équilibre"]
[null,null,null,null,null,null,null,null,null,null,"Grille Dynamique"]
[]
[null,null,null,null,null,null,null,null,null,null,null,"Oui"]
[null,null,null,null,null,null,null,null,null,null,null,"Non"]

{"sheet":"Bulletin n°7","index":7,"n_rows":104,"n_cols":63,"rows_kept":104,"cut":false,"hidden":false,"merged":[[82,10,82,15],[82,16,82,21],[82,22,82,27],[70,2,70,34],[71,3,71,34],[71,38,74,69],[72,20,72,34],[73,2,73,4],[73,5,73,18],[73,20,75,34],[75,7,75,8],[75,10,75,12],[75,44,75,69],[62,11,62,12],[62,17,63,22],[62,24,63,25],[62,26,63,26],[62,27,63,34],[62,38,64,68],[63,3,64,10],[63,11,63,16],[65,14,65,15],[65,30,65,34],[65,38,68,68],[66,17,66,23],[67,2,67,34],[68,2,69,34],[59,2,59,13],[59,14,59,15],[59,17,59,23],[59,24,59,25],[59,27,59,34],[60,2,60,13],[60,14,60,15],[60,17,60,23],[60,24,60,25],[60,27,60,34],[57,2,57,13],[57,14,57,15],[57,17,57,23],[57,24,57,25],[57,27,57,34],[58,2,58,13],[58,14,58,15],[58,17,58,23],[58,24,58,25],[58,27,58,34],[55,2,55,13],[55,14,55,15],[55,17,55,23],[55,24,55,25],[55,27,55,34],[56,2,56,13],[56,14,56,15],[56,17,56,23],[56,24,56,25],[56,27,56,34],[52,27,52,34],[53,2,53,13],[53,14,53,15],[53,17,53,23],[53,24,53,25],[53,27,53,34],[54,2,54,13],[54,14,54,15],[54,17,54,23],[54,24,54,25],[54,27,54,34],[46,38,60,69],[47,2,47,13],[47,14,47,15],[47,17,47,23],[47,24,47,25],[47,27,47,34],[48,2,48,13],[48,14,48,15],[48,17,48,23],[48,24,48,25],[50,2,50,13],[50,14,50,15],[50,17,50,23],[50,24,50,25],[50,27,50,34],[51,2,51,13],[51,14,51,15],[51,17,51,23],[51,24,51,25],[51,27,51,34],[52,2,52,13],[52,14,52,15],[52,17,52,23],[52,24,52,25],[45,27,45,34],[46,2,46,13],[46,14,46,15],[46,17,46,23],[46,24,46,25],[46,27,46,34],[48,27,48,34],[49,2,49,13],[49,14,49,15],[49,17,49,23],[49,24,49,25],[49,27,49,34],[39,14,41,15],[39,16,41,16],[39,17,41,23],[39,24,41,25],[39,26,41,26],[45,2,45,13],[45,14,45,15],[45,17,45,23],[45,24,45,25],[38,2,38,13],[38,14,38,15],[38,17,38,23],[38,24,38,25],[38,27,38,34],[38,53,38,56],[38,57,38,67],[42,57,43,67],[44,2,44,13],[44,14,44,15],[44,17,44,23],[44,24,44,25],[44,27,44,34],[39,27,41,34],[39,38,41,53],[42,2,43,13],[42,14,43,15],[42,16,43,16],[42,17,43,23],[42,24,43,25],[42,26,43,26],[42,27,43,34],[42,38,43,52],[39,2,41,13],[36,2,37,13],[36,14,37,15],[36,16,37,16],[36,17,37,23],[36,24,37,25],[36,26,37,26],[36,27,37,34],[36,56,36,67],[36,68,36,69],[30,38,30,42],[30,45,30,62],[30,63,30,68],[31,38,31,47],[31,48,31,68],[32,2,35,13],[32,14,32,23],[32,24,32,34],[32,38,32,47],[32,50,32,53],[32,54,32,68],[33,14,34,23],[33,24,34,34],[33,40,33,45],[33,47,33,48],[33,50,33,53],[33,57,33,67],[34,40,34,45],[34,50,34,53],[34,57,34,67],[35,14,35,15],[35,17,35,23],[35,24,35,25],[35,27,35,34],[27,40,27,45],[27,50,27,53],[27,57,27,67],[28,40,28,45],[28,50,28,53],[28,57,28,67],[24,38,24,47],[24,50,24,53],[24,55,24,68],[25,40,26,45],[25,47,25,48],[25,50,26,53],[25,56,26,56],[25,57,26,67],[24,2,24,3],[24,4,24,10],[24,12,24,13],[24,14,24,20],[24,22,24,25],[24,26,24,34],[22,21,22,31],[22,38,22,42],[22,45,22,62],[22,63,22,68],[23,4,23,10],[23,14,23,20],[23,22,23,34],[23,38,23,47],[23,48,23,68],[17,87,17,105],[19,38,20,69],[21,14,21,19],[21,21,21,27],[21,28,21,29],[21,30,21,34],[15,2,15,3],[15,6,15,16],[15,25,15,34],[15,55,15,61],[16,62,16,68],[17,6,17,16],[17,25,17,34],[11,6,11,16],[11,25,11,34],[11,44,11,68],[13,6,13,10],[13,25,13,34],[13,62,13,68],[7,6,7,16],[7,25,7,34],[7,44,7,68],[9,6,9,10],[9,15,9,16],[9,25,9,34],[9,44,9,68],[0,1,0,58],[0,62,0,67],[2,1,2,35],[2,38,2,68],[5,6,5,10],[5,13,5,16],[5,25,5,34],[5,44,5,49],[5,62,5,68]]}
[null,"BULLETIN INDIVIDUEL DE VERSEMENTS SUR VOTRE PLAN D’ÉPARGNE SALARIALE                                              ",null,null,null,null,null,null,null,null,null,null,null,null,null,null,null,null,null,null,null,null,null,null,null,null,null,null,null,null,null,null,null,null,null,null,null,null,null,null,null,null,null,null,null,null,null,null,null,null,null,null,null,null,null,null,null,null,null,null,null,null,{"$f":"'Saisie des données + guide'!BC1","v":2025}]
[]
[null," INFORMATIONS ÉPARGNANT",null,null,null,null,null,null,null,null,null,null,null,null,null,null,null,null,null,null,null,null,null,null,null,null,null,null,null,null,null,null,null,null,null,null,null,null,"INFORMATIONS ENTREPRISE"]
[]
[]
[null,null,"Civilité ",null,null,null,null,null,null,null,null,null,"Nom",null,null,null,null,null,"Prénom",null,null,null,null,null,null,null,null,null,null,null,null,null,null,null,null,null,null,null,"Code entreprise",null,null,null,null,null,{"$f":"+'Saisie des données + guide'!$J$11","v":0},null,null,null,null,null,null,null,null,"Exercice fiscal de référence",null,null,null,null,null,null,null,null,{"$f":"'Saisie des données + guide'!$U$48","v":0}]
[]
[null,null,"N° Sécurité sociale",null,null,null,null,null,null,null,null,null,null,null,null,null,null,null,"Nom de naissance",null,null,null,null,null,null,null,null,null,null,null,null,null,null,null,null,null,null,null,"Raison sociale",null,null,null,null,null,{"$f":"+'Saisie des données + guide'!$J$13","v":0}]
[]
[null,null,"Date de naissance",null,null,null,null,null,null,null,null,"Département de naissance",null,null,null,null,null,null,"Ville de naissance",null,null,null,null,null,null,null,null,null,null,null,null,null,null,null,null,null,null,null,"Contact",null,null,null,null,null,{"$f":"+'Saisie des données + guide'!$J$15","v":0}]
[]
[null,null,"Adresse",null,null,null,null,null,null,null,null,null,null,null,null,null,null,null,"Pays de naissance",null,null,null,null,null,null,null,null,null,null,null,null,null,null,null,null,null,null,null,"E-mail",null,null,null,null,null,{"$f":"+'Saisie des données + guide'!$J$17","v":0}]
[]
[null,null,"Code postal",null,null,null,null,null,null,null,null,null,null,null,null,null,null,null,"Téléphone portable "]
[]
[null,null,"Ville",null,null,null,null,null,null,null,null,null,null,null,null,null,null,null,"E-mail",null,null,null,null,null,null,null,null,null,null,null,null,null,null,null,null,null,null,null,"Le Plafond Annuel de la Sécurité Sociale (PASS) est de :",null,null,null,null,null,null,null,null,null,null,null,null,null,null,null,null,{"$f":"PASS","v":47100}]
[]
[null,null,"Statut",null,null,null,null,null,null,null,null,null,null,null,null,null,null,null,"Salaire",null,null,null,null,null,null,null,null,null,null,null,null,null,null,null,null,null,null,null,"Si CSG-CRDS non précomptées pour le salarié",null,null,null,null,null,null,null,null,null,null,null,null,null,null,null,null,{"$f":"+'Saisie des données + guide'!AF36","v":0}]
[null,null,null,null,null,null,null,null,null,null,null,null,null,null,null,null,null,null,null,null,null,null,null,null,null,"À renseigner si versement d'une prime de partage de la valeur"]
[null,null,null,null,null,null,{"$f":"+IF(AND($V$22=\"Prime de partage de la valeur\",G18=\"Non salarié\"),\"La prime de partage de la valeur n’est pas accessible aux travailleurs non-salariés.\",\"\")","v":""},null,null,null,null,null,null,null,null,null,null,null,null,null,null,null,null,null,null,null,null,null,null,null,null,null,null,null,null,null,null,null,{"$f":"+'Saisie des données + guide'!D38","v":"Le montant que Groupama Épargne Salariale doit investir est le montant net de CSG-CRDS (les prélèvements sociaux étant payés directement par vos soins). Si vous cochez cette case, cela signifie que vous souhaitez par dérogation nous adresser un montant brut de CSG-CRDS et que vous aurez prélevé sur la fiche de paie de chacun des salariés concernés la CSG-CRDS relative à l'opération réalisée. Cette dérogation n'est pas possible si l'abondement est à calculer par Groupama Épargne Salariale."}]
[]
[null,null,"MONTANTS À INVESTIR",null,null,null,null,null,null,null,null,null,null,null,"Origine des versements :",null,null,null,null,null,null,{"$f":"'Saisie des données + guide'!T20","v":"Épargne personnelle"},null,null,null,null,null,null,{"$f":"IF(V22=\"Abondement unilatéral\", \"C =\", \"\")","v":""}]
[null,null,null,null,null,null,null,null,null,null,null,null,null,null,null,null,null,null,null,null,null,null,null,null,null,null,null,null,null,null,null,null,null,null,null,null,null,null,"PEE"]
[null,null,null,null,"PEE",null,null,null,null,null,null,null,null,null,"PERCO",null,null,null,null,null,null,null,"MONTANT TOTAL"]
[null,null,"A =",null,null,null,null,null,null,null,null,null,"B =",null,null,null,null,null,null,null,null,null,"A + B =",null,null,null,{"$f":"E25+O25","v":0},null,null,null,null,null,null,null,null,null,null,null,{"$f":"V22","v":"Épargne personnelle"},null,null,null,null,null,null,null,null,null,null,null,"Taux",null,null,null,null,{"$f":"\"Abondement sur \"&$V$22&\"\"","v":"Abondement sur Épargne personnelle"}]
[null,null,null,null,null,null,null,null,null,null,null,null,null,null,null,null,null,null,null,null,null,null,null,null,null,null,null,null,null,null,null,null,null,null,null,null,null,null,null,null,{"$f":"E25","v":0},null,null,null,null,null,null,"x",null,null,{"$f":"+'Saisie des données + guide'!R29","v":0},null,null,null,null,null,"A' =",{"$f":"IF(ISBLANK(E25),\"\",IF(AND(G18=J94,ISBLANK('Saisie des données + guide'!AF36)),MIN(Plafond_PEE_net,E25*AY26*(1-CSG_CRDS)),MIN(Plafond_PEE,E25*AY26)))","v":""}]
[]
[null,null,null,null,null,null,null,null,null,null,null,null,null,null,null,null,null,null,null,null,null,null,null,null,null,null,null,null,null,null,null,null,null,null,null,null,null,null,null,null,"A",null,null,null,null,null,null,null,null,null,"T",null,null,null,null,null,null,{"$f":"IF(AND(G18=J94,ISBLANK('Saisie des données + guide'!AF36)),\"plafonné à \" &Plafond_PEE_net&\" € pour \"&J94,IF(G18=J94,\"plafonné à \" &Plafond_PEE&\" € pour \"&J94,\"plafonné à \" &Plafond_PEE&\" € pour \"&J95))","v":"plafonné à 3768 € pour Non salarié"}]
[null,null,"RÉPARTITION DE L'ÉPARGNE"]
[null,null,null,"A. Gestion Libre"]
[null,null,null,"valable pour le PEE et/ou le PERCO",null,null,null,null,null,null,null,null,null,null,null,null,null,null,null,null,null,null,null,null,null,null,null,null,null,null,null,null,null,null,null,null,null,null,"PERCO"]
[]
[null,null,"NOM DES FONDS\n\n    N'hésitez pas à consulter l'onglet \"Autres fonds\" pour ajouter d'autres supports de placement présents dans votre contrat.",null,null,null,null,null,null,null,null,null,null,null,"PEE",null,null,null,null,null,null,null,null,null,"PERCO",null,null,null,null,null,null,null,null,null,null,null,null,null,{"$f":"$V$22","v":"Épargne personnelle"},null,null,null,null,null,null,null,null,null,null,null,"Taux",null,null,null,{"$f":"IF($V$22=\"Épargne personnelle\",\"Abondement sur Épargne personnelle\",IF($V$22=\"Intéressement\",\"Abondement sur Intéressement\",IF($V$22=\"Participation\",\"Abondement sur Participation\",IF($V$22=\"Jours de repos non pris / CET\",\"Abondement sur Jours de repos non pris / CET\",IF($V$22=\"Prime de partage de la valeur\",\"Abondement sur Prime de partage de la valeur\",IF($V$22=\"Abondement unilatéral\",\"Abondement unilatéral\"))))))","v":"Abondement sur Épargne personnelle"}]
[null,null,null,null,null,null,null,null,null,null,null,null,null,null,{"$f":"+IF(SUM(R37:X61)>E25,\"ERREUR SAISIE\",IF(R36=0,\"\",\"Reste à répartir sur les fonds suivants\"))","v":""},null,null,null,null,null,null,null,null,null,{"$f":"+IF(SUM(AB37:AI64)>(O25+AE22),\"ERREUR SAISIE\",IF(AB36=0,\"\",\"Reste à répartir sur les fonds suivants\"))","v":""},null,null,null,null,null,null,null,null,null,null,null,null,null,null,null,{"$f":"$O$25","v":0},null,null,null,null,null,null,"x",null,null,{"$f":"+'Saisie des données + guide'!$AJ$29","v":0},null,null,null,null,null,{"$f":"IF(V22=\"abondement unilatéral\", \" C' = \",\"B' = \")","v":"B' = "},{"$f":"IF(AND(ISBLANK(O25),ISBLANK(AE22)),\"\",IF(AND(V22=\"Abondement unilatéral\",G18=J94,ISBLANK('Saisie des données + guide'!AF36)),MIN(Plafond_uni_TS,AE22*0.903),IF(AND(V22=\"Abondement unilatéral\",G18=J95),MIN(Plafond_uni_TNS,AE22),IF(AND(V22<>\"Abondement unilatéral\",G18=J94,ISBLANK('Saisie des données + guide'!AF36)),MIN(Plafond_PERCO_net,(1-CSG_CRDS)*AY34*O25),IF(AND(V22<>\"Abondement unilatéral\",G18=J95,ISBLANK('Saisie des données + guide'!AF36)),MIN(Plafond_PERCO,AY34*O25),IF(AND(V22<>\"Abondement unilatéral\",G18=J94,'Saisie des données + guide'!AF36=\"X\"),MIN(Plafond_PERCO,AY34*O25),IF(AND(V22<>\"Abondement unilatéral\",G18=J95,'Saisie des données + guide'!AF36=\"X\"),MIN(Plafond_PERCO,AY34*O25),IF(AND(V22=\"Abondement unilatéral\",G18=J95,'Saisie des données + guide'!AF36=\"X\"),MIN(Plafond_uni_TNS,AE22),IF(AND(V22=\"Abondement unilatéral\",G18=J94,'Saisie des données + guide'!AF36=\"X\"),MIN(Plafond_uni_TNS,AE22))))))))))","v":""}]
[null,null,null,null,null,null,null,null,null,null,null,null,null,null,null,null,null,null,null,null,null,null,null,null,null,null,null,null,null,null,null,null,null,null,null,null,null,null,null,null,"B",null,null,null,null,null,null,null,null,null,"T'",null,null,null,null,null,null,{"$f":"IF(AND(ISBLANK(O25),ISBLANK(AE22)),\"\",IF(AND(V22=\"Abondement unilatéral\",G18=J94,ISBLANK('Saisie des données + guide'!AF36)),\"plafonné à \"&Plafond_uni_TS&\" € pour \"&J94,IF(AND(V22=\"Abondement unilatéral\",G18=J95),\"plafonné à \"&Plafond_uni_TNS&\" € pour \"&J95,IF(AND(V22<>\"Abondement unilatéral\",G18=J94,ISBLANK('Saisie des données + guide'!AF36)),\"plafonné à \"&Plafond_PERCO_net&\" € pour \"&J94,IF(AND(V22<>\"Abondement unilatéral\",G18=J95,ISBLANK('Saisie des données + guide'!AF36)),\"plafonné à \"&Plafond_PERCO&\" € pour \"&J95,IF(AND(V22<>\"Abondement unilatéral\",G18=J94,'Saisie des données + guide'!AF36=\"X\"),\"plafonné à \"&Plafond_PERCO&\" € pour \"&J94,IF(AND(V22<>\"Abondement unilatéral\",G18=J95,'Saisie des données + guide'!AF36=\"X\"),\"plafonné à \"&Plafond_PERCO&\" € pour \"&J95,IF(AND(V22=\"Abondement unilatéral\",G18=J95,'Saisie des données + guide'!AF36=\"X\"),\"plafonné à \"&Plafond_uni_TNS&\" € pour \"&J95,IF(AND(V22=\"Abondement unilatéral\",G18=J94,'Saisie des données + guide'!AF36=\"X\"),\"plafonné à \"&Plafond_uni_TNS&\" € pour \"&J94)))))))))","v":""}]
[null,null,null,null,null,null,null,null,null,null,null,null,null,null,{"$f":"100-(SUM(O37:P64))","v":100},null,{"$f":"IF(O36>1, \"%\", \"\")","v":"%"},{"$f":"E25-SUM(R37:X61)","v":0},null,null,null,null,null,null,{"$f":"100-(SUM(Y37:Z64))","v":100},null,{"$f":"IF(Y36<>0,\"%\",\" \")","v":"%"},{"$f":"(O25+AE22)-SUM(AB37:AI64)","v":0}]
[null,null,{"$f":"+IF('Saisie des données + guide'!T24=\"Gamme GER\",\"84289 - GER Monétaire\",IF('Saisie des données + guide'!T24=\"Gamme TESORUS\",\"82659 - TESORUS Monétaire\",IF('Saisie des données + guide'!T24=\"Gamme Fonds Directs\",\"15719 - Oblifonds\",IF('Saisie des données + guide'!T24=\"Gamme Finama\",\"\",\"\"))))","v":"84289 - GER Monétaire"},null,null,null,null,null,null,null,null,null,null,null,null,null,"%",{"$f":"IF(O37=\"\",\"--------------\",+E$25*O37/100)","v":"--------------"},null,null,null,null,null,null,null,null,"%",{"$f":"IF(Y37=\"\",\"--------------\",+(O$25+$AE$22)*Y37/100)","v":"--------------"}]
[]
[null,null,{"$f":"+IF('Saisie des données + guide'!T24=\"Gamme GER\",\"84309 - GER Prudence\",IF('Saisie des données + guide'!T24=\"Gamme TESORUS\",\"82719 - TESORUS Prudence\",IF('Saisie des données + guide'!T24=\"Gamme Fonds Directs\",\"4939 - Diversifonds\",\"\")))","v":"84309 - GER Prudence"},null,null,null,null,null,null,null,null,null,null,null,null,null,"%",{"$f":"IF(O39=\"\",\"--------------\",+E$25*O39/100)","v":"--------------"},null,null,null,null,null,null,null,null,"%",{"$f":"IF(Y39=\"\",\"--------------\",+(O$25+$AE$22)*Y39/100)","v":"--------------"},null,null,null,null,null,null,null,null,null,null,"VERSEMENT TOTAL DE L'ENTREPRISE",null,null,null,null,null,null,null,null,null,null,null,null,null,null,{"$f":"IF(V22=\"abondement unilatéral\", \" C' = \",\"A'+ B' = \")","v":"A'+ B' = "},null,null,null,{"$f":"MAX(BF26,0)+MAX(BF34,0)","v":0}]
[null,null,{"$f":"+IF('Saisie des données + guide'!T24=\"Gamme GER\",\"84329 - GER Equilibre\",IF('Saisie des données + guide'!T24=\"Gamme TESORUS\",\"82669 - TESORUS Equilibre\",IF('Saisie des données + guide'!T24=\"Gamme Fonds Directs\",\"2459 - Foncival\",\"\")))","v":"84329 - GER Equilibre"},null,null,null,null,null,null,null,null,null,null,null,null,null,"%",{"$f":"IF(O40=\"\",\"--------------\",+E$25*O40/100)","v":"--------------"},null,null,null,null,null,null,null,null,"%",{"$f":"IF(Y40=\"\",\"--------------\",+(O$25+$AE$22)*Y40/100)","v":"--------------"},null,null,null,null,null,null,null,null,null,null,{"$f":"IF(V20=\"abondement unilatéral\", \"\",\"Le versement de l'abondement s'effectue sur les mêmes fonds que le versement personnel.\")","v":"Le versement de l'abondement s'effectue sur les mêmes fonds que le versement personnel."}]
[]
[]
[null,null,{"$f":"+IF('Saisie des données + guide'!T24=\"Gamme GER\",\"84349 - GER Dynamique\",IF('Saisie des données + guide'!T24=\"Gamme TESORUS\",\"82689 - TESORUS Dynamique\",\"\"))","v":"84349 - GER Dynamique"},null,null,null,null,null,null,null,null,null,null,null,null,null,"%",{"$f":"IF(O43=\"\",\"--------------\",+E$25*O43/100)","v":"--------------"},null,null,null,null,null,null,null,null,"%",{"$f":"IF(Y43=\"\",\"--------------\",+(O$25+$AE$22)*Y43/100)","v":"--------------"},null,null,null,null,null,null,null,null,null,null,"VERSEMENT TOTAL INVESTI",null,null,null,null,null,null,null,null,null,null,null,null,null,null,null,null,null,null,{"$f":"+AA25+BF39","v":0}]
[]
[null,null,{"$f":"+IF('Saisie des données + guide'!T24=\"Gamme GER\",\"84369 - GER Solidaire\",IF('Saisie des données + guide'!T24=\"Gamme TESORUS\",\"87649 - TESORUS Solidaire\",\"\"))","v":"84369 - GER Solidaire"},null,null,null,null,null,null,null,null,null,null,null,null,null,"%",{"$f":"IF(O45=\"\",\"--------------\",+E$25*O45/100)","v":"--------------"},null,null,null,null,null,null,null,null,"%",{"$f":"IF(Y45=\"\",\"--------------\",+(O$25+$AE$22)*Y45/100)","v":"--------------"}]
[null,null,{"$f":"IF($C$37<>\"\",\"110429 - Finama Épargne Court Terme\",\" \")","v":"110429 - Finama Épargne Court Terme"},null,null,null,null,null,null,null,null,null,null,null,null,null,"%",{"$f":"IF(O46=\"\",\"--------------\",+E$25*O46/100)","v":"--------------"},null,null,null,null,null,null,null,null,"%",{"$f":"IF(Y46=\"\",\"--------------\",+(O$25+$AE$22)*Y46/100)","v":"--------------"}]
[null,null,{"$f":"IF($C$37<>\"\",\"79139 - Finama Actions Internationales\",\" \")","v":"79139 - Finama Actions Internationales"},null,null,null,null,null,null,null,null,null,null,null,null,null,"%",{"$f":"IF(O47=\"\",\"--------------\",+E$25*O47/100)","v":"--------------"},null,null,null,null,null,null,null,null,"%",{"$f":"IF(Y47=\"\",\"--------------\",+(O$25+$AE$22)*Y47/100)","v":"--------------"}]
[null,null,{"$f":"IF($C$37<>\"\",\"116119 - Groupama Sélection PME-ETI\",\" \")","v":"116119 - Groupama Sélection PME-ETI"},null,null,null,null,null,null,null,null,null,null,null,null,null,"%",{"$f":"IF(O48=\"\",\"--------------\",+E$25*O48/100)","v":"--------------"},null,null,null,null,null,null,null,null,"%",{"$f":"IF(Y48=\"\",\"--------------\",+(O$25+$AE$22)*Y48/100)","v":"--------------"}]
[null,null,null,null,null,null,null,null,null,null,null,null,null,null,null,null,"%","--------------",null,null,null,null,null,null,null,null,"%","--------------"]
[null,null,null,null,null,null,null,null,null,null,null,null,null,null,null,null,"%","--------------",null,null,null,null,null,null,null,null,"%","--------------"]
[null,null,null,null,null,null,null,null,null,null,null,null,null,null,null,null,"%","--------------",null,null,null,null,null,null,null,null,"%","--------------"]
[null,null,null,null,null,null,null,null,null,null,null,null,null,null,null,null,"%","--------------",null,null,null,null,null,null,null,null,"%","--------------"]
[null,null,null,null,null,null,null,null,null,null,null,null,null,null,null,null,"%","--------------",null,null,null,null,null,null,null,null,"%","--------------"]
[null,null,null,null,null,null,null,null,null,null,null,null,null,null,null,null,"%","--------------",null,null,null,null,null,null,null,null,"%","--------------"]
[null,null,null,null,null,null,null,null,null,null,null,null,null,null,null,null,"%","--------------",null,null,null,null,null,null,null,null,"%","--------------"]
[null,null,null,null,null,null,null,null,null,null,null,null,null,null,null,null,"%","--------------",null,null,null,null,null,null,null,null,"%","--------------"]
[null,null,null,null,null,null,null,null,null,null,null,null,null,null,null,null,"%","--------------",null,null,null,null,null,null,null,null,"%","--------------"]
[null,null,null,null,null,null,null,null,null,null,null,null,null,null,null,null,"%","--------------",null,null,null,null,null,null,null,null,"%","--------------"]
[null,null,null,null,null,null,null,null,null,null,null,null,null,null,null,null,"%","--------------",null,null,null,null,null,null,null,null,"%","--------------"]
[null,null,null,null,null,null,null,null,null,null,null,null,null,null,null,null,"%","--------------",null,null,null,null,null,null,null,null,"%","--------------"]
[null,null,null,null,null,null,null,null,null,null,null,null,null,null,null,null,"%","--------------",null,null,null,null,null,null,null,null,"%","--------------"]
[]
[null,null,null,"B. Gestion Pilotée",null,null,null,null,null,null,null,null,null,null,null,null,null,null,null,null,null,null,null,null,null,null,"%",{"$f":"IF(Y63=\"\",\"--------------\",+(O25+$AE$22)*Y63/100)","v":"--------------"},null,null,null,null,null,null,null,null,null,null,"Tous les chèques sont à libeller à l’ordre de GROUPAMA ÉPARGNE SALARIALE\net à envoyer à l'adresse :"]
[null,null,null,"valable uniquement sur le PERCO",null,null,null,null,null,null,null,{"$f":"IF(L63=\"Oui\",\"Préciser la grille d'allocation\",\"\")","v":""}]
[]
[null,null,null," Pour plus de renseignements sur la gestion pilotée >",null,null,null,null,null,null,null,null,null,null,"cliquez ici",null,null,null,null,null,null,null,null,null,null,null,null,null,null,null,null,null,null,null,null,null,null,null,"GROUPAMA ÉPARGNE SALARIALE\nService Clients\n46 rue Jules Méline\n53098 LAVAL Cedex 9"]
[]
[null,null,"Je déclare avoir pris connaissance du règlement du plan, des documents d'information clés (DIC/KID) des fonds remis par mon entreprise et téléchargeables sur www.groupama-es.fr, ainsi que des modalités de fonctionnement des versements individuels jointes au présent bulletin. \n\nConformément au contrat d’épargne salariale mis en place par votre entreprise, des frais de versements d’un maximum de 4 % peuvent s’appliquer. Nous vous invitons à contacter votre employeur pour obtenir le montant de ces frais."]
[null,null,"En l'absence de choix de fonds, les sommes seront investies sur le fonds par défaut dans le PEE ou selon le mode de gestion pilotée dans le PERCO : soit le profil Prudent s'il s'agit de votre premier versement ou si vous aviez opté pour la gestion libre lors de précédent versement, soit avec le même profil de gestion pilotée précédemment choisi."]
[]
[null,null,"Pour tout versement volontaire à partir de 8 000 €, une copie de votre pièce d'identité devra être fournie, accompagnée du dernier avis d'imposition pour un versement d’un montant de\n15 000 € et plus. "]
[null,null,null,"J’atteste sur l’honneur que mon versement est conforme à la réglementation, notamment qu'il provient bien de mes avoirs personnels et que l’ensemble de mes versements de l’année au PEE/PERCO ne dépasse pas 25 % de ma rémunération annuelle brute.",null,null,null,null,null,null,null,null,null,null,null,null,null,null,null,null,null,null,null,null,null,null,null,null,null,null,null,null,null,null,null,null,null,null,"Le numéro de Sécurité sociale est recueilli pour identifier l’épargnant en cas de risque d’homonymie.\nConformément au règlement général sur la protection des données n°2016/679 du 27 avril 2016, vos données personnelles sont traitées par Groupama Épargne Salariale aux fins de tenue des comptes d'épargne salariale. Elles sont destinées aux membres du personnel dûment habilités de Groupama Épargne Salariale ainsi qu’à ses sous-traitants. Elles sont conservées par Groupama Épargne Salariale pendant une durée maximale de trente ans à compter de la disponibilité des avoirs.Vous pouvez demander l’accès, la rectification, l'effacement et la portabilité de vos données personnelles ainsi que limiter ou vous opposer, pour motif légitime, au traitement en écrivant au Délégué Relais à la Protection des Données de Groupama Épargne Salariale – Service du Contrôle interne – 2 boulevard de Pesaro – 92000 Nanterre ou par email : controleinterne@groupama-es.fr.\n"]
[null,null,null,null,null,null,null,null,null,null,null,null,null,null,null,null,null,null,null,null,"SIGNATURE ÉPARGNANT"]
[null,null,"Fait à :"]
[]
[null,null,"le",null,null,null,null,null,null,null,{"$f":"'Saisie des données + guide'!BC1","v":2025},null,null,null,null,null,null,null,null,null,null,null,null,null,null,null,null,null,null,null,null,null,null,null,null,null,null,null,null,null,null,null,null,null,"Groupama Épargne Salariale - Entreprise d'investissement agréée par l'ACPR, Teneur de compte - conservateur de parts - Société Anonyme au capital de 8.709.015 € - Siège social : 2 boulevard de Pesaro 92000 Nanterre - 428 768 352 RCS Nanterre - Réf. : BIV-01-01-2025"]
[]
[]
[]
[]
[]
[]
[]
[]
[]
[]
[]
[null,null,null,null,"3 options dans ce BIV :"]
[]
[null,null,null,null,null,null,"Ouverture compte :"]
[null,null,null,null,null,null,null,null,null,null,null,null,"X"]
[]
[null,null,null,null,null,null,"Statut :"]
[null,null,null,null,null,null,null,null,null,"Salarié"]
[null,null,null,null,null,null,null,null,null,"Non salarié"]
[]
[null,null,null,null,null,null,"Gestion pilotée :"]
[]
[null,null,null,null,null,null,null,null,null,null,"Grille Prudente"]
[null,null,null,null,null,null,null,null,null,null,"Grille Équilibre"]
[null,null,null,null,null,null,null,null,null,null,"Grille Dynamique"]
[]
[null,null,null,null,null,null,null,null,null,null,null,"Oui"]
[null,null,null,null,null,null,null,null,null,null,null,"Non"]

{"sheet":"Bulletin n°8","index":8,"n_rows":104,"n_cols":63,"rows_kept":104,"cut":false,"hidden":false,"merged":[[82,10,82,15],[82,16,82,21],[82,22,82,27],[70,2,70,34],[71,3,71,34],[71,38,74,69],[72,20,72,34],[73,2,73,4],[73,5,73,18],[73,20,75,34],[75,7,75,8],[75,10,75,12],[75,44,75,69],[62,11,62,12],[62,17,63,22],[62,24,63,25],[62,26,63,26],[62,27,63,34],[62,38,64,68],[63,3,64,10],[63,11,63,16],[65,14,65,15],[65,30,65,34],[65,38,68,68],[66,17,66,23],[67,2,67,34],[68,2,69,34],[59,2,59,13],[59,14,59,15],[59,17,59,23],[59,24,59,25],[59,27,59,34],[60,2,60,13],[60,14,60,15],[60,17,60,23],[60,24,60,25],[60,27,60,34],[57,2,57,13],[57,14,57,15],[57,17,57,23],[57,24,57,25],[57,27,57,34],[58,2,58,13],[58,14,58,15],[58,17,58,23],[58,24,58,25],[58,27,58,34],[55,2,55,13],[55,14,55,15],[55,17,55,23],[55,24,55,25],[55,27,55,34],[56,2,56,13],[56,14,56,15],[56,17,56,23],[56,24,56,25],[56,27,56,34],[52,27,52,34],[53,2,53,13],[53,14,53,15],[53,17,53,23],[53,24,53,25],[53,27,53,34],[54,2,54,13],[54,14,54,15],[54,17,54,23],[54,24,54,25],[54,27,54,34],[46,38,60,69],[47,2,47,13],[47,14,47,15],[47,17,47,23],[47,24,47,25],[47,27,47,34],[48,2,48,13],[48,14,48,15],[48,17,48,23],[48,24,48,25],[50,2,50,13],[50,14,50,15],[50,17,50,23],[50,24,50,25],[50,27,50,34],[51,2,51,13],[51,14,51,15],[51,17,51,23],[51,24,51,25],[51,27,51,34],[52,2,52,13],[52,14,52,15],[52,17,52,23],[52,24,52,25],[45,27,45,34],[46,2,46,13],[46,14,46,15],[46,17,46,23],[46,24,46,25],[46,27,46,34],[48,27,48,34],[49,2,49,13],[49,14,49,15],[49,17,49,23],[49,24,49,25],[49,27,49,34],[39,14,41,15],[39,16,41,16],[39,17,41,23],[39,24,41,25],[39,26,41,26],[45,2,45,13],[45,14,45,15],[45,17,45,23],[45,24,45,25],[38,2,38,13],[38,14,38,15],[38,17,38,23],[38,24,38,25],[38,27,38,34],[38,53,38,56],[38,57,38,67],[42,57,43,67],[44,2,44,13],[44,14,44,15],[44,17,44,23],[44,24,44,25],[44,27,44,34],[39,27,41,34],[39,38,41,53],[42,2,43,13],[42,14,43,15],[42,16,43,16],[42,17,43,23],[42,24,43,25],[42,26,43,26],[42,27,43,34],[42,38,43,52],[39,2,41,13],[36,2,37,13],[36,14,37,15],[36,16,37,16],[36,17,37,23],[36,24,37,25],[36,26,37,26],[36,27,37,34],[36,56,36,67],[36,68,36,69],[30,38,30,42],[30,45,30,62],[30,63,30,68],[31,38,31,47],[31,48,31,68],[32,2,35,13],[32,14,32,23],[32,24,32,34],[32,38,32,47],[32,50,32,53],[32,54,32,68],[33,14,34,23],[33,24,34,34],[33,40,33,45],[33,47,33,48],[33,50,33,53],[33,57,33,67],[34,40,34,45],[34,50,34,53],[34,57,34,67],[35,14,35,15],[35,17,35,23],[35,24,35,25],[35,27,35,34],[27,40,27,45],[27,50,27,53],[27,57,27,67],[28,40,28,45],[28,50,28,53],[28,57,28,67],[24,38,24,47],[24,50,24,53],[24,55,24,68],[25,40,26,45],[25,47,25,48],[25,50,26,53],[25,56,26,56],[25,57,26,67],[24,2,24,3],[24,4,24,10],[24,12,24,13],[24,14,24,20],[24,22,24,25],[24,26,24,34],[22,21,22,31],[22,38,22,42],[22,45,22,62],[22,63,22,68],[23,4,23,10],[23,14,23,20],[23,22,23,34],[23,38,23,47],[23,48,23,68],[17,87,17,105],[19,38,20,69],[21,14,21,19],[21,21,21,27],[21,28,21,29],[21,30,21,34],[15,2,15,3],[15,6,15,16],[15,25,15,34],[15,55,15,61],[16,62,16,68],[17,6,17,16],[17,25,17,34],[11,6,11,16],[11,25,11,34],[11,44,11,68],[13,6,13,10],[13,25,13,34],[13,62,13,68],[7,6,7,16],[7,25,7,34],[7,44,7,68],[9,6,9,10],[9,15,9,16],[9,25,9,34],[9,44,9,68],[0,1,0,58],[0,62,0,67],[2,1,2,35],[2,38,2,68],[5,6,5,10],[5,13,5,16],[5,25,5,34],[5,44,5,49],[5,62,5,68]]}
[null,"BULLETIN INDIVIDUEL DE VERSEMENTS SUR VOTRE PLAN D’ÉPARGNE SALARIALE                                              ",null,null,null,null,null,null,null,null,null,null,null,null,null,null,null,null,null,null,null,null,null,null,null,null,null,null,null,null,null,null,null,null,null,null,null,null,null,null,null,null,null,null,null,null,null,null,null,null,null,null,null,null,null,null,null,null,null,null,null,null,{"$f":"'Saisie des données + guide'!BC1","v":2025}]
[]
[null," INFORMATIONS ÉPARGNANT",null,null,null,null,null,null,null,null,null,null,null,null,null,null,null,null,null,null,null,null,null,null,null,null,null,null,null,null,null,null,null,null,null,null,null,null,"INFORMATIONS ENTREPRISE"]
[]
[]
[null,null,"Civilité ",null,null,null,null,null,null,null,null,null,"Nom",null,null,null,null,null,"Prénom",null,null,null,null,null,null,null,null,null,null,null,null,null,null,null,null,null,null,null,"Code entreprise",null,null,null,null,null,{"$f":"+'Saisie des données + guide'!$J$11","v":0},null,null,null,null,null,null,null,null,"Exercice fiscal de référence",null,null,null,null,null,null,null,null,{"$f":"'Saisie des données + guide'!$U$48","v":0}]
[]
[null,null,"N° Sécurité sociale",null,null,null,null,null,null,null,null,null,null,null,null,null,null,null,"Nom de naissance",null,null,null,null,null,null,null,null,null,null,null,null,null,null,null,null,null,null,null,"Raison sociale",null,null,null,null,null,{"$f":"+'Saisie des données + guide'!$J$13","v":0}]
[]
[null,null,"Date de naissance",null,null,null,null,null,null,null,null,"Département de naissance",null,null,null,null,null,null,"Ville de naissance",null,null,null,null,null,null,null,null,null,null,null,null,null,null,null,null,null,null,null,"Contact",null,null,null,null,null,{"$f":"+'Saisie des données + guide'!$J$15","v":0}]
[]
[null,null,"Adresse",null,null,null,null,null,null,null,null,null,null,null,null,null,null,null,"Pays de naissance",null,null,null,null,null,null,null,null,null,null,null,null,null,null,null,null,null,null,null,"E-mail",null,null,null,null,null,{"$f":"+'Saisie des données + guide'!$J$17","v":0}]
[]
[null,null,"Code postal",null,null,null,null,null,null,null,null,null,null,null,null,null,null,null,"Téléphone portable "]
[]
[null,null,"Ville",null,null,null,null,null,null,null,null,null,null,null,null,null,null,null,"E-mail",null,null,null,null,null,null,null,null,null,null,null,null,null,null,null,null,null,null,null,"Le Plafond Annuel de la Sécurité Sociale (PASS) est de :",null,null,null,null,null,null,null,null,null,null,null,null,null,null,null,null,{"$f":"PASS","v":47100}]
[]
[null,null,"Statut",null,null,null,null,null,null,null,null,null,null,null,null,null,null,null,"Salaire",null,null,null,null,null,null,null,null,null,null,null,null,null,null,null,null,null,null,null,"Si CSG-CRDS non précomptées pour le salarié",null,null,null,null,null,null,null,null,null,null,null,null,null,null,null,null,{"$f":"+'Saisie des données + guide'!AF36","v":0}]
[null,null,null,null,null,null,null,null,null,null,null,null,null,null,null,null,null,null,null,null,null,null,null,null,null,"À renseigner si versement d'une prime de partage de la valeur"]
[null,null,null,null,null,null,{"$f":"+IF(AND($V$22=\"Prime de partage de la valeur\",G18=\"Non salarié\"),\"La prime de partage de la valeur n’est pas accessible aux travailleurs non-salariés.\",\"\")","v":""},null,null,null,null,null,null,null,null,null,null,null,null,null,null,null,null,null,null,null,null,null,null,null,null,null,null,null,null,null,null,null,{"$f":"+'Saisie des données + guide'!D38","v":"Le montant que Groupama Épargne Salariale doit investir est le montant net de CSG-CRDS (les prélèvements sociaux étant payés directement par vos soins). Si vous cochez cette case, cela signifie que vous souhaitez par dérogation nous adresser un montant brut de CSG-CRDS et que vous aurez prélevé sur la fiche de paie de chacun des salariés concernés la CSG-CRDS relative à l'opération réalisée. Cette dérogation n'est pas possible si l'abondement est à calculer par Groupama Épargne Salariale."}]
[]
[null,null,"MONTANTS À INVESTIR",null,null,null,null,null,null,null,null,null,null,null,"Origine des versements :",null,null,null,null,null,null,{"$f":"'Saisie des données + guide'!T20","v":"Épargne personnelle"},null,null,null,null,null,null,{"$f":"IF(V22=\"Abondement unilatéral\", \"C =\", \"\")","v":""}]
[null,null,null,null,null,null,null,null,null,null,null,null,null,null,null,null,null,null,null,null,null,null,null,null,null,null,null,null,null,null,null,null,null,null,null,null,null,null,"PEE"]
[null,null,null,null,"PEE",null,null,null,null,null,null,null,null,null,"PERCO",null,null,null,null,null,null,null,"MONTANT TOTAL"]
[null,null,"A =",null,null,null,null,null,null,null,null,null,"B =",null,null,null,null,null,null,null,null,null,"A + B =",null,null,null,{"$f":"E25+O25","v":0},null,null,null,null,null,null,null,null,null,null,null,{"$f":"V22","v":"Épargne personnelle"},null,null,null,null,null,null,null,null,null,null,null,"Taux",null,null,null,null,{"$f":"\"Abondement sur \"&$V$22&\"\"","v":"Abondement sur Épargne personnelle"}]
[null,null,null,null,null,null,null,null,null,null,null,null,null,null,null,null,null,null,null,null,null,null,null,null,null,null,null,null,null,null,null,null,null,null,null,null,null,null,null,null,{"$f":"E25","v":0},null,null,null,null,null,null,"x",null,null,{"$f":"+'Saisie des données + guide'!R29","v":0},null,null,null,null,null,"A' =",{"$f":"IF(ISBLANK(E25),\"\",IF(AND(G18=J94,ISBLANK('Saisie des données + guide'!AF36)),MIN(Plafond_PEE_net,E25*AY26*(1-CSG_CRDS)),MIN(Plafond_PEE,E25*AY26)))","v":""}]
[]
[null,null,null,null,null,null,null,null,null,null,null,null,null,null,null,null,null,null,null,null,null,null,null,null,null,null,null,null,null,null,null,null,null,null,null,null,null,null,null,null,"A",null,null,null,null,null,null,null,null,null,"T",null,null,null,null,null,null,{"$f":"IF(AND(G18=J94,ISBLANK('Saisie des données + guide'!AF36)),\"plafonné à \" &Plafond_PEE_net&\" € pour \"&J94,IF(G18=J94,\"plafonné à \" &Plafond_PEE&\" € pour \"&J94,\"plafonné à \" &Plafond_PEE&\" € pour \"&J95))","v":"plafonné à 3768 € pour Non salarié"}]
[null,null,"RÉPARTITION DE L'ÉPARGNE"]
[null,null,null,"A. Gestion Libre"]
[null,null,null,"valable pour le PEE et/ou le PERCO",null,null,null,null,null,null,null,null,null,null,null,null,null,null,null,null,null,null,null,null,null,null,null,null,null,null,null,null,null,null,null,null,null,null,"PERCO"]
[]
[null,null,"NOM DES FONDS\n\n    N'hésitez pas à consulter l'onglet \"Autres fonds\" pour ajouter d'autres supports de placement présents dans votre contrat.",null,null,null,null,null,null,null,null,null,null,null,"PEE",null,null,null,null,null,null,null,null,null,"PERCO",null,null,null,null,null,null,null,null,null,null,null,null,null,{"$f":"$V$22","v":"Épargne personnelle"},null,null,null,null,null,null,null,null,null,null,null,"Taux",null,null,null,{"$f":"IF($V$22=\"Épargne personnelle\",\"Abondement sur Épargne personnelle\",IF($V$22=\"Intéressement\",\"Abondement sur Intéressement\",IF($V$22=\"Participation\",\"Abondement sur Participation\",IF($V$22=\"Jours de repos non pris / CET\",\"Abondement sur Jours de repos non pris / CET\",IF($V$22=\"Prime de partage de la valeur\",\"Abondement sur Prime de partage de la valeur\",IF($V$22=\"Abondement unilatéral\",\"Abondement unilatéral\"))))))","v":"Abondement sur Épargne personnelle"}]
[null,null,null,null,null,null,null,null,null,null,null,null,null,null,{"$f":"+IF(SUM(R37:X61)>E25,\"ERREUR SAISIE\",IF(R36=0,\"\",\"Reste à répartir sur les fonds suivants\"))","v":""},null,null,null,null,null,null,null,null,null,{"$f":"+IF(SUM(AB37:AI64)>(O25+AE22),\"ERREUR SAISIE\",IF(AB36=0,\"\",\"Reste à répartir sur les fonds suivants\"))","v":""},null,null,null,null,null,null,null,null,null,null,null,null,null,null,null,{"$f":"$O$25","v":0},null,null,null,null,null,null,"x",null,null,{"$f":"+'Saisie des données + guide'!$AJ$29","v":0},null,null,null,null,null,{"$f":"IF(V22=\"abondement unilatéral\", \" C' = \",\"B' = \")","v":"B' = "},{"$f":"IF(AND(ISBLANK(O25),ISBLANK(AE22)),\"\",IF(AND(V22=\"Abondement unilatéral\",G18=J94,ISBLANK('Saisie des données + guide'!AF36)),MIN(Plafond_uni_TS,AE22*0.903),IF(AND(V22=\"Abondement unilatéral\",G18=J95),MIN(Plafond_uni_TNS,AE22),IF(AND(V22<>\"Abondement unilatéral\",G18=J94,ISBLANK('Saisie des données + guide'!AF36)),MIN(Plafond_PERCO_net,(1-CSG_CRDS)*AY34*O25),IF(AND(V22<>\"Abondement unilatéral\",G18=J95,ISBLANK('Saisie des données + guide'!AF36)),MIN(Plafond_PERCO,AY34*O25),IF(AND(V22<>\"Abondement unilatéral\",G18=J94,'Saisie des données + guide'!AF36=\"X\"),MIN(Plafond_PERCO,AY34*O25),IF(AND(V22<>\"Abondement unilatéral\",G18=J95,'Saisie des données + guide'!AF36=\"X\"),MIN(Plafond_PERCO,AY34*O25),IF(AND(V22=\"Abondement unilatéral\",G18=J95,'Saisie des données + guide'!AF36=\"X\"),MIN(Plafond_uni_TNS,AE22),IF(AND(V22=\"Abondement unilatéral\",G18=J94,'Saisie des données + guide'!AF36=\"X\"),MIN(Plafond_uni_TNS,AE22))))))))))","v":""}]
[null,null,null,null,null,null,null,null,null,null,null,null,null,null,null,null,null,null,null,null,null,null,null,null,null,null,null,null,null,null,null,null,null,null,null,null,null,null,null,null,"B",null,null,null,null,null,null,null,null,null,"T'",null,null,null,null,null,null,{"$f":"IF(AND(ISBLANK(O25),ISBLANK(AE22)),\"\",IF(AND(V22=\"Abondement unilatéral\",G18=J94,ISBLANK('Saisie des données + guide'!AF36)),\"plafonné à \"&Plafond_uni_TS&\" € pour \"&J94,IF(AND(V22=\"Abondement unilatéral\",G18=J95),\"plafonné à \"&Plafond_uni_TNS&\" € pour \"&J95,IF(AND(V22<>\"Abondement unilatéral\",G18=J94,ISBLANK('Saisie des données + guide'!AF36)),\"plafonné à \"&Plafond_PERCO_net&\" € pour \"&J94,IF(AND(V22<>\"Abondement unilatéral\",G18=J95,ISBLANK('Saisie des données + guide'!AF36)),\"plafonné à \"&Plafond_PERCO&\" € pour \"&J95,IF(AND(V22<>\"Abondement unilatéral\",G18=J94,'Saisie des données + guide'!AF36=\"X\"),\"plafonné à \"&Plafond_PERCO&\" € pour \"&J94,IF(AND(V22<>\"Abondement unilatéral\",G18=J95,'Saisie des données + guide'!AF36=\"X\"),\"plafonné à \"&Plafond_PERCO&\" € pour \"&J95,IF(AND(V22=\"Abondement unilatéral\",G18=J95,'Saisie des données + guide'!AF36=\"X\"),\"plafonné à \"&Plafond_uni_TNS&\" € pour \"&J95,IF(AND(V22=\"Abondement unilatéral\",G18=J94,'Saisie des données + guide'!AF36=\"X\"),\"plafonné à \"&Plafond_uni_TNS&\" € pour \"&J94)))))))))","v":""}]
[null,null,null,null,null,null,null,null,null,null,null,null,null,null,{"$f":"100-(SUM(O37:P64))","v":100},null,{"$f":"IF(O36>1, \"%\", \"\")","v":"%"},{"$f":"E25-SUM(R37:X61)","v":0},null,null,null,null,null,null,{"$f":"100-(SUM(Y37:Z64))","v":100},null,{"$f":"IF(Y36<>0,\"%\",\" \")","v":"%"},{"$f":"(O25+AE22)-SUM(AB37:AI64)","v":0}]
[null,null,{"$f":"+IF('Saisie des données + guide'!T24=\"Gamme GER\",\"84289 - GER Monétaire\",IF('Saisie des données + guide'!T24=\"Gamme TESORUS\",\"82659 - TESORUS Monétaire\",IF('Saisie des données + guide'!T24=\"Gamme Fonds Directs\",\"15719 - Oblifonds\",IF('Saisie des données + guide'!T24=\"Gamme Finama\",\"\",\"\"))))","v":"84289 - GER Monétaire"},null,null,null,null,null,null,null,null,null,null,null,null,null,"%",{"$f":"IF(O37=\"\",\"--------------\",+E$25*O37/100)","v":"--------------"},null,null,null,null,null,null,null,null,"%",{"$f":"IF(Y37=\"\",\"--------------\",+(O$25+$AE$22)*Y37/100)","v":"--------------"}]
[]
[null,null,{"$f":"+IF('Saisie des données + guide'!T24=\"Gamme GER\",\"84309 - GER Prudence\",IF('Saisie des données + guide'!T24=\"Gamme TESORUS\",\"82719 - TESORUS Prudence\",IF('Saisie des données + guide'!T24=\"Gamme Fonds Directs\",\"4939 - Diversifonds\",\"\")))","v":"84309 - GER Prudence"},null,null,null,null,null,null,null,null,null,null,null,null,null,"%",{"$f":"IF(O39=\"\",\"--------------\",+E$25*O39/100)","v":"--------------"},null,null,null,null,null,null,null,null,"%",{"$f":"IF(Y39=\"\",\"--------------\",+(O$25+$AE$22)*Y39/100)","v":"--------------"},null,null,null,null,null,null,null,null,null,null,"VERSEMENT TOTAL DE L'ENTREPRISE",null,null,null,null,null,null,null,null,null,null,null,null,null,null,{"$f":"IF(V22=\"abondement unilatéral\", \" C' = \",\"A'+ B' = \")","v":"A'+ B' = "},null,null,null,{"$f":"MAX(BF26,0)+MAX(BF34,0)","v":0}]
[null,null,{"$f":"+IF('Saisie des données + guide'!T24=\"Gamme GER\",\"84329 - GER Equilibre\",IF('Saisie des données + guide'!T24=\"Gamme TESORUS\",\"82669 - TESORUS Equilibre\",IF('Saisie des données + guide'!T24=\"Gamme Fonds Directs\",\"2459 - Foncival\",\"\")))","v":"84329 - GER Equilibre"},null,null,null,null,null,null,null,null,null,null,null,null,null,"%",{"$f":"IF(O40=\"\",\"--------------\",+E$25*O40/100)","v":"--------------"},null,null,null,null,null,null,null,null,"%",{"$f":"IF(Y40=\"\",\"--------------\",+(O$25+$AE$22)*Y40/100)","v":"--------------"},null,null,null,null,null,null,null,null,null,null,{"$f":"IF(V20=\"abondement unilatéral\", \"\",\"Le versement de l'abondement s'effectue sur les mêmes fonds que le versement personnel.\")","v":"Le versement de l'abondement s'effectue sur les mêmes fonds que le versement personnel."}]
[]
[]
[null,null,{"$f":"+IF('Saisie des données + guide'!T24=\"Gamme GER\",\"84349 - GER Dynamique\",IF('Saisie des données + guide'!T24=\"Gamme TESORUS\",\"82689 - TESORUS Dynamique\",\"\"))","v":"84349 - GER Dynamique"},null,null,null,null,null,null,null,null,null,null,null,null,null,"%",{"$f":"IF(O43=\"\",\"--------------\",+E$25*O43/100)","v":"--------------"},null,null,null,null,null,null,null,null,"%",{"$f":"IF(Y43=\"\",\"--------------\",+(O$25+$AE$22)*Y43/100)","v":"--------------"},null,null,null,null,null,null,null,null,null,null,"VERSEMENT TOTAL INVESTI",null,null,null,null,null,null,null,null,null,null,null,null,null,null,null,null,null,null,{"$f":"+AA25+BF39","v":0}]
[]
[null,null,{"$f":"+IF('Saisie des données + guide'!T24=\"Gamme GER\",\"84369 - GER Solidaire\",IF('Saisie des données + guide'!T24=\"Gamme TESORUS\",\"87649 - TESORUS Solidaire\",\"\"))","v":"84369 - GER Solidaire"},null,null,null,null,null,null,null,null,null,null,null,null,null,"%",{"$f":"IF(O45=\"\",\"--------------\",+E$25*O45/100)","v":"--------------"},null,null,null,null,null,null,null,null,"%",{"$f":"IF(Y45=\"\",\"--------------\",+(O$25+$AE$22)*Y45/100)","v":"--------------"}]
[null,null,{"$f":"IF($C$37<>\"\",\"110429 - Finama Épargne Court Terme\",\" \")","v":"110429 - Finama Épargne Court Terme"},null,null,null,null,null,null,null,null,null,null,null,null,null,"%",{"$f":"IF(O46=\"\",\"--------------\",+E$25*O46/100)","v":"--------------"},null,null,null,null,null,null,null,null,"%",{"$f":"IF(Y46=\"\",\"--------------\",+(O$25+$AE$22)*Y46/100)","v":"--------------"}]
[null,null,{"$f":"IF($C$37<>\"\",\"79139 - Finama Actions Internationales\",\" \")","v":"79139 - Finama Actions Internationales"},null,null,null,null,null,null,null,null,null,null,null,null,null,"%",{"$f":"IF(O47=\"\",\"--------------\",+E$25*O47/100)","v":"--------------"},null,null,null,null,null,null,null,null,"%",{"$f":"IF(Y47=\"\",\"--------------\",+(O$25+$AE$22)*Y47/100)","v":"--------------"}]
[null,null,{"$f":"IF($C$37<>\"\",\"116119 - Groupama Sélection PME-ETI\",\" \")","v":"116119 - Groupama Sélection PME-ETI"},null,null,null,null,null,null,null,null,null,null,null,null,null,"%",{"$f":"IF(O48=\"\",\"--------------\",+E$25*O48/100)","v":"--------------"},null,null,null,null,null,null,null,null,"%",{"$f":"IF(Y48=\"\",\"--------------\",+(O$25+$AE$22)*Y48/100)","v":"--------------"}]
[null,null,null,null,null,null,null,null,null,null,null,null,null,null,null,null,"%","--------------",null,null,null,null,null,null,null,null,"%","--------------"]
[null,null,null,null,null,null,null,null,null,null,null,null,null,null,null,null,"%","--------------",null,null,null,null,null,null,null,null,"%","--------------"]
[null,null,null,null,null,null,null,null,null,null,null,null,null,null,null,null,"%","--------------",null,null,null,null,null,null,null,null,"%","--------------"]
[null,null,null,null,null,null,null,null,null,null,null,null,null,null,null,null,"%","--------------",null,null,null,null,null,null,null,null,"%","--------------"]
[null,null,null,null,null,null,null,null,null,null,null,null,null,null,null,null,"%","--------------",null,null,null,null,null,null,null,null,"%","--------------"]
[null,null,null,null,null,null,null,null,null,null,null,null,null,null,null,null,"%","--------------",null,null,null,null,null,null,null,null,"%","--------------"]
[null,null,null,null,null,null,null,null,null,null,null,null,null,null,null,null,"%","--------------",null,null,null,null,null,null,null,null,"%","--------------"]
[null,null,null,null,null,null,null,null,null,null,null,null,null,null,null,null,"%","--------------",null,null,null,null,null,null,null,null,"%","--------------"]
[null,null,null,null,null,null,null,null,null,null,null,null,null,null,null,null,"%","--------------",null,null,null,null,null,null,null,null,"%","--------------"]
[null,null,null,null,null,null,null,null,null,null,null,null,null,null,null,null,"%","--------------",null,null,null,null,null,null,null,null,"%","--------------"]
[null,null,null,null,null,null,null,null,null,null,null,null,null,null,null,null,"%","--------------",null,null,null,null,null,null,null,null,"%","--------------"]
[null,null,null,null,null,null,null,null,null,null,null,null,null,null,null,null,"%","--------------",null,null,null,null,null,null,null,null,"%","--------------"]
[null,null,null,null,null,null,null,null,null,null,null,null,null,null,null,null,"%","--------------",null,null,null,null,null,null,null,null,"%","--------------"]
[]
[null,null,null,"B. Gestion Pilotée",null,null,null,null,null,null,null,null,null,null,null,null,null,null,null,null,null,null,null,null,null,null,"%",{"$f":"IF(Y63=\"\",\"--------------\",+(O25+$AE$22)*Y63/100)","v":"--------------"},null,null,null,null,null,null,null,null,null,null,"Tous les chèques sont à libeller à l’ordre de GROUPAMA ÉPARGNE SALARIALE\net à envoyer à l'adresse :"]
[null,null,null,"valable uniquement sur le PERCO",null,null,null,null,null,null,null,{"$f":"IF(L63=\"Oui\",\"Préciser la grille d'allocation\",\"\")","v":""}]
[]
[null,null,null," Pour plus de renseignements sur la gestion pilotée >",null,null,null,null,null,null,null,null,null,null,"cliquez ici",null,null,null,null,null,null,null,null,null,null,null,null,null,null,null,null,null,null,null,null,null,null,null,"GROUPAMA ÉPARGNE SALARIALE\nService Clients\n46 rue Jules Méline\n53098 LAVAL Cedex 9"]
[]
[null,null,"Je déclare avoir pris connaissance du règlement du plan, des documents d'information clés (DIC/KID) des fonds remis par mon entreprise et téléchargeables sur www.groupama-es.fr, ainsi que des modalités de fonctionnement des versements individuels jointes au présent bulletin. \n\nConformément au contrat d’épargne salariale mis en place par votre entreprise, des frais de versements d’un maximum de 4 % peuvent s’appliquer. Nous vous invitons à contacter votre employeur pour obtenir le montant de ces frais."]
[null,null,"En l'absence de choix de fonds, les sommes seront investies sur le fonds par défaut dans le PEE ou selon le mode de gestion pilotée dans le PERCO : soit le profil Prudent s'il s'agit de votre premier versement ou si vous aviez opté pour la gestion libre lors de précédent versement, soit avec le même profil de gestion pilotée précédemment choisi."]
[]
[null,null,"Pour tout versement volontaire à partir de 8 000 €, une copie de votre pièce d'identité devra être fournie, accompagnée du dernier avis d'imposition pour un versement d’un montant de\n15 000 € et plus. "]
[null,null,null,"J’atteste sur l’honneur que mon versement est conforme à la réglementation, notamment qu'il provient bien de mes avoirs personnels et que l’ensemble de mes versements de l’année au PEE/PERCO ne dépasse pas 25 % de ma rémunération annuelle brute.",null,null,null,null,null,null,null,null,null,null,null,null,null,null,null,null,null,null,null,null,null,null,null,null,null,null,null,null,null,null,null,null,null,null,"Le numéro de Sécurité sociale est recueilli pour identifier l’épargnant en cas de risque d’homonymie.\nConformément au règlement général sur la protection des données n°2016/679 du 27 avril 2016, vos données personnelles sont traitées par Groupama Épargne Salariale aux fins de tenue des comptes d'épargne salariale. Elles sont destinées aux membres du personnel dûment habilités de Groupama Épargne Salariale ainsi qu’à ses sous-traitants. Elles sont conservées par Groupama Épargne Salariale pendant une durée maximale de trente ans à compter de la disponibilité des avoirs.Vous pouvez demander l’accès, la rectification, l'effacement et la portabilité de vos données personnelles ainsi que limiter ou vous opposer, pour motif légitime, au traitement en écrivant au Délégué Relais à la Protection des Données de Groupama Épargne Salariale – Service du Contrôle interne – 2 boulevard de Pesaro – 92000 Nanterre ou par email : controleinterne@groupama-es.fr.\n"]
[null,null,null,null,null,null,null,null,null,null,null,null,null,null,null,null,null,null,null,null,"SIGNATURE ÉPARGNANT"]
[null,null,"Fait à :"]
[]
[null,null,"le",null,null,null,null,null,null,null,{"$f":"'Saisie des données + guide'!BC1","v":2025},null,null,null,null,null,null,null,null,null,null,null,null,null,null,null,null,null,null,null,null,null,null,null,null,null,null,null,null,null,null,null,null,null,"Groupama Épargne Salariale - Entreprise d'investissement agréée par l'ACPR, Teneur de compte - conservateur de parts - Société Anonyme au capital de 8.709.015 € - Siège social : 2 boulevard de Pesaro 92000 Nanterre - 428 768 352 RCS Nanterre - Réf. : BIV-01-01-2025"]
[]
[]
[]
[]
[]
[]
[]
[]
[]
[]
[]
[null,null,null,null,"3 options dans ce BIV :"]
[]
[null,null,null,null,null,null,"Ouverture compte :"]
[null,null,null,null,null,null,null,null,null,null,null,null,"X"]
[]
[null,null,null,null,null,null,"Statut :"]
[null,null,null,null,null,null,null,null,null,"Salarié"]
[null,null,null,null,null,null,null,null,null,"Non salarié"]
[]
[null,null,null,null,null,null,"Gestion pilotée :"]
[]
[null,null,null,null,null,null,null,null,null,null,"Grille Prudente"]
[null,null,null,null,null,null,null,null,null,null,"Grille Équilibre"]
[null,null,null,null,null,null,null,null,null,null,"Grille Dynamique"]
[]
[null,null,null,null,null,null,null,null,null,null,null,"Oui"]
[null,null,null,null,null,null,null,null,null,null,null,"Non"]

{"sheet":"Bulletin n°9","index":9,"n_rows":104,"n_cols":63,"rows_kept":104,"cut":false,"hidden":false,"merged":[[82,10,82,15],[82,16,82,21],[82,22,82,27],[70,2,70,34],[71,3,71,34],[71,38,74,69],[72,20,72,34],[73,2,73,4],[73,5,73,18],[73,20,75,34],[75,7,75,8],[75,10,75,12],[75,44,75,69],[62,11,62,12],[62,17,63,22],[62,24,63,25],[62,26,63,26],[62,27,63,34],[62,38,64,68],[63,3,64,10],[63,11,63,16],[65,14,65,15],[65,30,65,34],[65,38,68,68],[66,17,66,23],[67,2,67,34],[68,2,69,34],[59,2,59,13],[59,14,59,15],[59,17,59,23],[59,24,59,25],[59,27,59,34],[60,2,60,13],[60,14,60,15],[60,17,60,23],[60,24,60,25],[60,27,60,34],[57,2,57,13],[57,14,57,15],[57,17,57,23],[57,24,57,25],[57,27,57,34],[58,2,58,13],[58,14,58,15],[58,17,58,23],[58,24,58,25],[58,27,58,34],[55,2,55,13],[55,14,55,15],[55,17,55,23],[55,24,55,25],[55,27,55,34],[56,2,56,13],[56,14,56,15],[56,17,56,23],[56,24,56,25],[56,27,56,34],[52,27,52,34],[53,2,53,13],[53,14,53,15],[53,17,53,23],[53,24,53,25],[53,27,53,34],[54,2,54,13],[54,14,54,15],[54,17,54,23],[54,24,54,25],[54,27,54,34],[46,38,60,69],[47,2,47,13],[47,14,47,15],[47,17,47,23],[47,24,47,25],[47,27,47,34],[48,2,48,13],[48,14,48,15],[48,17,48,23],[48,24,48,25],[50,2,50,13],[50,14,50,15],[50,17,50,23],[50,24,50,25],[50,27,50,34],[51,2,51,13],[51,14,51,15],[51,17,51,23],[51,24,51,25],[51,27,51,34],[52,2,52,13],[52,14,52,15],[52,17,52,23],[52,24,52,25],[45,27,45,34],[46,2,46,13],[46,14,46,15],[46,17,46,23],[46,24,46,25],[46,27,46,34],[48,27,48,34],[49,2,49,13],[49,14,49,15],[49,17,49,23],[49,24,49,25],[49,27,49,34],[39,14,41,15],[39,16,41,16],[39,17,41,23],[39,24,41,25],[39,26,41,26],[45,2,45,13],[45,14,45,15],[45,17,45,23],[45,24,45,25],[38,2,38,13],[38,14,38,15],[38,17,38,23],[38,24,38,25],[38,27,38,34],[38,53,38,56],[38,57,38,67],[42,57,43,67],[44,2,44,13],[44,14,44,15],[44,17,44,23],[44,24,44,25],[44,27,44,34],[39,27,41,34],[39,38,41,53],[42,2,43,13],[42,14,43,15],[42,16,43,16],[42,17,43,23],[42,24,43,25],[42,26,43,26],[42,27,43,34],[42,38,43,52],[39,2,41,13],[36,2,37,13],[36,14,37,15],[36,16,37,16],[36,17,37,23],[36,24,37,25],[36,26,37,26],[36,27,37,34],[36,56,36,67],[36,68,36,69],[30,38,30,42],[30,45,30,62],[30,63,30,68],[31,38,31,47],[31,48,31,68],[32,2,35,13],[32,14,32,23],[32,24,32,34],[32,38,32,47],[32,50,32,53],[32,54,32,68],[33,14,34,23],[33,24,34,34],[33,40,33,45],[33,47,33,48],[33,50,33,53],[33,57,33,67],[34,40,34,45],[34,50,34,53],[34,57,34,67],[35,14,35,15],[35,17,35,23],[35,24,35,25],[35,27,35,34],[27,40,27,45],[27,50,27,53],[27,57,27,67],[28,40,28,45],[28,50,28,53],[28,57,28,67],[24,38,24,47],[24,50,24,53],[24,55,24,68],[25,40,26,45],[25,47,25,48],[25,50,26,53],[25,56,26,56],[25,57,26,67],[24,2,24,3],[24,4,24,10],[24,12,24,13],[24,14,24,20],[24,22,24,25],[24,26,24,34],[22,21,22,31],[22,38,22,42],[22,45,22,62],[22,63,22,68],[23,4,23,10],[23,14,23,20],[23,22,23,34],[23,38,23,47],[23,48,23,68],[17,87,17,105],[19,38,20,69],[21,14,21,19],[21,21,21,27],[21,28,21,29],[21,30,21,34],[15,2,15,3],[15,6,15,16],[15,25,15,34],[15,55,15,61],[16,62,16,68],[17,6,17,16],[17,25,17,34],[11,6,11,16],[11,25,11,34],[11,44,11,68],[13,6,13,10],[13,25,13,34],[13,62,13,68],[7,6,7,16],[7,25,7,34],[7,44,7,68],[9,6,9,10],[9,15,9,16],[9,25,9,34],[9,44,9,68],[0,1,0,58],[0,62,0,67],[2,1,2,35],[2,38,2,68],[5,6,5,10],[5,13,5,16],[5,25,5,34],[5,44,5,49],[5,62,5,68]]}
[null,"BULLETIN INDIVIDUEL DE VERSEMENTS SUR VOTRE PLAN D’ÉPARGNE SALARIALE                                              ",null,null,null,null,null,null,null,null,null,null,null,null,null,null,null,null,null,null,null,null,null,null,null,null,null,null,null,null,null,null,null,null,null,null,null,null,null,null,null,null,null,null,null,null,null,null,null,null,null,null,null,null,null,null,null,null,null,null,null,null,{"$f":"'Saisie des données + guide'!BC1","v":2025}]
[]
[null," INFORMATIONS ÉPARGNANT",null,null,null,null,null,null,null,null,null,null,null,null,null,null,null,null,null,null,null,null,null,null,null,null,null,null,null,null,null,null,null,null,null,null,null,null,"INFORMATIONS ENTREPRISE"]
[]
[]
[null,null,"Civilité ",null,null,null,null,null,null,null,null,null,"Nom",null,null,null,null,null,"Prénom",null,null,null,null,null,null,null,null,null,null,null,null,null,null,null,null,null,null,null,"Code entreprise",null,null,null,null,null,{"$f":"+'Saisie des données + guide'!$J$11","v":0},null,null,null,null,null,null,null,null,"Exercice fiscal de référence",null,null,null,null,null,null,null,null,{"$f":"'Saisie des données + guide'!$U$48","v":0}]
[]
[null,null,"N° Sécurité sociale",null,null,null,null,null,null,null,null,null,null,null,null,null,null,null,"Nom de naissance",null,null,null,null,null,null,null,null,null,null,null,null,null,null,null,null,null,null,null,"Raison sociale",null,null,null,null,null,{"$f":"+'Saisie des données + guide'!$J$13","v":0}]
[]
[null,null,"Date de naissance",null,null,null,null,null,null,null,null,"Département de naissance",null,null,null,null,null,null,"Ville de naissance",null,null,null,null,null,null,null,null,null,null,null,null,null,null,null,null,null,null,null,"Contact",null,null,null,null,null,{"$f":"+'Saisie des données + guide'!$J$15","v":0}]
[]
[null,null,"Adresse",null,null,null,null,null,null,null,null,null,null,null,null,null,null,null,"Pays de naissance",null,null,null,null,null,null,null,null,null,null,null,null,null,null,null,null,null,null,null,"E-mail",null,null,null,null,null,{"$f":"+'Saisie des données + guide'!$J$17","v":0}]
[]
[null,null,"Code postal",null,null,null,null,null,null,null,null,null,null,null,null,null,null,null,"Téléphone portable "]
[]
[null,null,"Ville",null,null,null,null,null,null,null,null,null,null,null,null,null,null,null,"E-mail",null,null,null,null,null,null,null,null,null,null,null,null,null,null,null,null,null,null,null,"Le Plafond Annuel de la Sécurité Sociale (PASS) est de :",null,null,null,null,null,null,null,null,null,null,null,null,null,null,null,null,{"$f":"PASS","v":47100}]
[]
[null,null,"Statut",null,null,null,null,null,null,null,null,null,null,null,null,null,null,null,"Salaire",null,null,null,null,null,null,null,null,null,null,null,null,null,null,null,null,null,null,null,"Si CSG-CRDS non précomptées pour le salarié",null,null,null,null,null,null,null,null,null,null,null,null,null,null,null,null,{"$f":"+'Saisie des données + guide'!AF36","v":0}]
[null,null,null,null,null,null,null,null,null,null,null,null,null,null,null,null,null,null,null,null,null,null,null,null,null,"À renseigner si versement d'une prime de partage de la valeur"]
[null,null,null,null,null,null,{"$f":"+IF(AND($V$22=\"Prime de partage de la valeur\",G18=\"Non salarié\"),\"La prime de partage de la valeur n’est pas accessible aux travailleurs non-salariés.\",\"\")","v":""},null,null,null,null,null,null,null,null,null,null,null,null,null,null,null,null,null,null,null,null,null,null,null,null,null,null,null,null,null,null,null,{"$f":"+'Saisie des données + guide'!D38","v":"Le montant que Groupama Épargne Salariale doit investir est le montant net de CSG-CRDS (les prélèvements sociaux étant payés directement par vos soins). Si vous cochez cette case, cela signifie que vous souhaitez par dérogation nous adresser un montant brut de CSG-CRDS et que vous aurez prélevé sur la fiche de paie de chacun des salariés concernés la CSG-CRDS relative à l'opération réalisée. Cette dérogation n'est pas possible si l'abondement est à calculer par Groupama Épargne Salariale."}]
[]
[null,null,"MONTANTS À INVESTIR",null,null,null,null,null,null,null,null,null,null,null,"Origine des versements :",null,null,null,null,null,null,{"$f":"'Saisie des données + guide'!T20","v":"Épargne personnelle"},null,null,null,null,null,null,{"$f":"IF(V22=\"Abondement unilatéral\", \"C =\", \"\")","v":""}]
[null,null,null,null,null,null,null,null,null,null,null,null,null,null,null,null,null,null,null,null,null,null,null,null,null,null,null,null,null,null,null,null,null,null,null,null,null,null,"PEE"]
[null,null,null,null,"PEE",null,null,null,null,null,null,null,null,null,"PERCO",null,null,null,null,null,null,null,"MONTANT TOTAL"]
[null,null,"A =",null,null,null,null,null,null,null,null,null,"B =",null,null,null,null,null,null,null,null,null,"A + B =",null,null,null,{"$f":"E25+O25","v":0},null,null,null,null,null,null,null,null,null,null,null,{"$f":"V22","v":"Épargne personnelle"},null,null,null,null,null,null,null,null,null,null,null,"Taux",null,null,null,null,{"$f":"\"Abondement sur \"&$V$22&\"\"","v":"Abondement sur Épargne personnelle"}]
[null,null,null,null,null,null,null,null,null,null,null,null,null,null,null,null,null,null,null,null,null,null,null,null,null,null,null,null,null,null,null,null,null,null,null,null,null,null,null,null,{"$f":"E25","v":0},null,null,null,null,null,null,"x",null,null,{"$f":"+'Saisie des données + guide'!R29","v":0},null,null,null,null,null,"A' =",{"$f":"IF(ISBLANK(E25),\"\",IF(AND(G18=J94,ISBLANK('Saisie des données + guide'!AF36)),MIN(Plafond_PEE_net,E25*AY26*(1-CSG_CRDS)),MIN(Plafond_PEE,E25*AY26)))","v":""}]
[]
[null,null,null,null,null,null,null,null,null,null,null,null,null,null,null,null,null,null,null,null,null,null,null,null,null,null,null,null,null,null,null,null,null,null,null,null,null,null,null,null,"A",null,null,null,null,null,null,null,null,null,"T",null,null,null,null,null,null,{"$f":"IF(AND(G18=J94,ISBLANK('Saisie des données + guide'!AF36)),\"plafonné à \" &Plafond_PEE_net&\" € pour \"&J94,IF(G18=J94,\"plafonné à \" &Plafond_PEE&\" € pour \"&J94,\"plafonné à \" &Plafond_PEE&\" € pour \"&J95))","v":"plafonné à 3768 € pour Non salarié"}]
[null,null,"RÉPARTITION DE L'ÉPARGNE"]
[null,null,null,"A. Gestion Libre"]
[null,null,null,"valable pour le PEE et/ou le PERCO",null,null,null,null,null,null,null,null,null,null,null,null,null,null,null,null,null,null,null,null,null,null,null,null,null,null,null,null,null,null,null,null,null,null,"PERCO"]
[]
[null,null,"NOM DES FONDS\n\n    N'hésitez pas à consulter l'onglet \"Autres fonds\" pour ajouter d'autres supports de placement présents dans votre contrat.",null,null,null,null,null,null,null,null,null,null,null,"PEE",null,null,null,null,null,null,null,null,null,"PERCO",null,null,null,null,null,null,null,null,null,null,null,null,null,{"$f":"$V$22","v":"Épargne personnelle"},null,null,null,null,null,null,null,null,null,null,null,"Taux",null,null,null,{"$f":"IF($V$22=\"Épargne personnelle\",\"Abondement sur Épargne personnelle\",IF($V$22=\"Intéressement\",\"Abondement sur Intéressement\",IF($V$22=\"Participation\",\"Abondement sur Participation\",IF($V$22=\"Jours de repos non pris / CET\",\"Abondement sur Jours de repos non pris / CET\",IF($V$22=\"Prime de partage de la valeur\",\"Abondement sur Prime de partage de la valeur\",IF($V$22=\"Abondement unilatéral\",\"Abondement unilatéral\"))))))","v":"Abondement sur Épargne personnelle"}]
[null,null,null,null,null,null,null,null,null,null,null,null,null,null,{"$f":"+IF(SUM(R37:X61)>E25,\"ERREUR SAISIE\",IF(R36=0,\"\",\"Reste à répartir sur les fonds suivants\"))","v":""},null,null,null,null,null,null,null,null,null,{"$f":"+IF(SUM(AB37:AI64)>(O25+AE22),\"ERREUR SAISIE\",IF(AB36=0,\"\",\"Reste à répartir sur les fonds suivants\"))","v":""},null,null,null,null,null,null,null,null,null,null,null,null,null,null,null,{"$f":"$O$25","v":0},null,null,null,null,null,null,"x",null,null,{"$f":"+'Saisie des données + guide'!$AJ$29","v":0},null,null,null,null,null,{"$f":"IF(V22=\"abondement unilatéral\", \" C' = \",\"B' = \")","v":"B' = "},{"$f":"IF(AND(ISBLANK(O25),ISBLANK(AE22)),\"\",IF(AND(V22=\"Abondement unilatéral\",G18=J94,ISBLANK('Saisie des données + guide'!AF36)),MIN(Plafond_uni_TS,AE22*0.903),IF(AND(V22=\"Abondement unilatéral\",G18=J95),MIN(Plafond_uni_TNS,AE22),IF(AND(V22<>\"Abondement unilatéral\",G18=J94,ISBLANK('Saisie des données + guide'!AF36)),MIN(Plafond_PERCO_net,(1-CSG_CRDS)*AY34*O25),IF(AND(V22<>\"Abondement unilatéral\",G18=J95,ISBLANK('Saisie des données + guide'!AF36)),MIN(Plafond_PERCO,AY34*O25),IF(AND(V22<>\"Abondement unilatéral\",G18=J94,'Saisie des données + guide'!AF36=\"X\"),MIN(Plafond_PERCO,AY34*O25),IF(AND(V22<>\"Abondement unilatéral\",G18=J95,'Saisie des données + guide'!AF36=\"X\"),MIN(Plafond_PERCO,AY34*O25),IF(AND(V22=\"Abondement unilatéral\",G18=J95,'Saisie des données + guide'!AF36=\"X\"),MIN(Plafond_uni_TNS,AE22),IF(AND(V22=\"Abondement unilatéral\",G18=J94,'Saisie des données + guide'!AF36=\"X\"),MIN(Plafond_uni_TNS,AE22))))))))))","v":""}]
[null,null,null,null,null,null,null,null,null,null,null,null,null,null,null,null,null,null,null,null,null,null,null,null,null,null,null,null,null,null,null,null,null,null,null,null,null,null,null,null,"B",null,null,null,null,null,null,null,null,null,"T'",null,null,null,null,null,null,{"$f":"IF(AND(ISBLANK(O25),ISBLANK(AE22)),\"\",IF(AND(V22=\"Abondement unilatéral\",G18=J94,ISBLANK('Saisie des données + guide'!AF36)),\"plafonné à \"&Plafond_uni_TS&\" € pour \"&J94,IF(AND(V22=\"Abondement unilatéral\",G18=J95),\"plafonné à \"&Plafond_uni_TNS&\" € pour \"&J95,IF(AND(V22<>\"Abondement unilatéral\",G18=J94,ISBLANK('Saisie des données + guide'!AF36)),\"plafonné à \"&Plafond_PERCO_net&\" € pour \"&J94,IF(AND(V22<>\"Abondement unilatéral\",G18=J95,ISBLANK('Saisie des données + guide'!AF36)),\"plafonné à \"&Plafond_PERCO&\" € pour \"&J95,IF(AND(V22<>\"Abondement unilatéral\",G18=J94,'Saisie des données + guide'!AF36=\"X\"),\"plafonné à \"&Plafond_PERCO&\" € pour \"&J94,IF(AND(V22<>\"Abondement unilatéral\",G18=J95,'Saisie des données + guide'!AF36=\"X\"),\"plafonné à \"&Plafond_PERCO&\" € pour \"&J95,IF(AND(V22=\"Abondement unilatéral\",G18=J95,'Saisie des données + guide'!AF36=\"X\"),\"plafonné à \"&Plafond_uni_TNS&\" € pour \"&J95,IF(AND(V22=\"Abondement unilatéral\",G18=J94,'Saisie des données + guide'!AF36=\"X\"),\"plafonné à \"&Plafond_uni_TNS&\" € pour \"&J94)))))))))","v":""}]
[null,null,null,null,null,null,null,null,null,null,null,null,null,null,{"$f":"100-(SUM(O37:P64))","v":100},null,{"$f":"IF(O36>1, \"%\", \"\")","v":"%"},{"$f":"E25-SUM(R37:X61)","v":0},null,null,null,null,null,null,{"$f":"100-(SUM(Y37:Z64))","v":100},null,{"$f":"IF(Y36<>0,\"%\",\" \")","v":"%"},{"$f":"(O25+AE22)-SUM(AB37:AI64)","v":0}]
[null,null,{"$f":"+IF('Saisie des données + guide'!T24=\"Gamme GER\",\"84289 - GER Monétaire\",IF('Saisie des données + guide'!T24=\"Gamme TESORUS\",\"82659 - TESORUS Monétaire\",IF('Saisie des données + guide'!T24=\"Gamme Fonds Directs\",\"15719 - Oblifonds\",IF('Saisie des données + guide'!T24=\"Gamme Finama\",\"\",\"\"))))","v":"84289 - GER Monétaire"},null,null,null,null,null,null,null,null,null,null,null,null,null,"%",{"$f":"IF(O37=\"\",\"--------------\",+E$25*O37/100)","v":"--------------"},null,null,null,null,null,null,null,null,"%",{"$f":"IF(Y37=\"\",\"--------------\",+(O$25+$AE$22)*Y37/100)","v":"--------------"}]
[]
[null,null,{"$f":"+IF('Saisie des données + guide'!T24=\"Gamme GER\",\"84309 - GER Prudence\",IF('Saisie des données + guide'!T24=\"Gamme TESORUS\",\"82719 - TESORUS Prudence\",IF('Saisie des données + guide'!T24=\"Gamme Fonds Directs\",\"4939 - Diversifonds\",\"\")))","v":"84309 - GER Prudence"},null,null,null,null,null,null,null,null,null,null,null,null,null,"%",{"$f":"IF(O39=\"\",\"--------------\",+E$25*O39/100)","v":"--------------"},null,null,null,null,null,null,null,null,"%",{"$f":"IF(Y39=\"\",\"--------------\",+(O$25+$AE$22)*Y39/100)","v":"--------------"},null,null,null,null,null,null,null,null,null,null,"VERSEMENT TOTAL DE L'ENTREPRISE",null,null,null,null,null,null,null,null,null,null,null,null,null,null,{"$f":"IF(V22=\"abondement unilatéral\", \" C' = \",\"A'+ B' = \")","v":"A'+ B' = "},null,null,null,{"$f":"MAX(BF26,0)+MAX(BF34,0)","v":0}]
[null,null,{"$f":"+IF('Saisie des données + guide'!T24=\"Gamme GER\",\"84329 - GER Equilibre\",IF('Saisie des données + guide'!T24=\"Gamme TESORUS\",\"82669 - TESORUS Equilibre\",IF('Saisie des données + guide'!T24=\"Gamme Fonds Directs\",\"2459 - Foncival\",\"\")))","v":"84329 - GER Equilibre"},null,null,null,null,null,null,null,null,null,null,null,null,null,"%",{"$f":"IF(O40=\"\",\"--------------\",+E$25*O40/100)","v":"--------------"},null,null,null,null,null,null,null,null,"%",{"$f":"IF(Y40=\"\",\"--------------\",+(O$25+$AE$22)*Y40/100)","v":"--------------"},null,null,null,null,null,null,null,null,null,null,{"$f":"IF(V20=\"abondement unilatéral\", \"\",\"Le versement de l'abondement s'effectue sur les mêmes fonds que le versement personnel.\")","v":"Le versement de l'abondement s'effectue sur les mêmes fonds que le versement personnel."}]
[]
[]
[null,null,{"$f":"+IF('Saisie des données + guide'!T24=\"Gamme GER\",\"84349 - GER Dynamique\",IF('Saisie des données + guide'!T24=\"Gamme TESORUS\",\"82689 - TESORUS Dynamique\",\"\"))","v":"84349 - GER Dynamique"},null,null,null,null,null,null,null,null,null,null,null,null,null,"%",{"$f":"IF(O43=\"\",\"--------------\",+E$25*O43/100)","v":"--------------"},null,null,null,null,null,null,null,null,"%",{"$f":"IF(Y43=\"\",\"--------------\",+(O$25+$AE$22)*Y43/100)","v":"--------------"},null,null,null,null,null,null,null,null,null,null,"VERSEMENT TOTAL INVESTI",null,null,null,null,null,null,null,null,null,null,null,null,null,null,null,null,null,null,{"$f":"+AA25+BF39","v":0}]
[]
[null,null,{"$f":"+IF('Saisie des données + guide'!T24=\"Gamme GER\",\"84369 - GER Solidaire\",IF('Saisie des données + guide'!T24=\"Gamme TESORUS\",\"87649 - TESORUS Solidaire\",\"\"))","v":"84369 - GER Solidaire"},null,null,null,null,null,null,null,null,null,null,null,null,null,"%",{"$f":"IF(O45=\"\",\"--------------\",+E$25*O45/100)","v":"--------------"},null,null,null,null,null,null,null,null,"%",{"$f":"IF(Y45=\"\",\"--------------\",+(O$25+$AE$22)*Y45/100)","v":"--------------"}]
[null,null,{"$f":"IF($C$37<>\"\",\"110429 - Finama Épargne Court Terme\",\" \")","v":"110429 - Finama Épargne Court Terme"},null,null,null,null,null,null,null,null,null,null,null,null,null,"%",{"$f":"IF(O46=\"\",\"--------------\",+E$25*O46/100)","v":"--------------"},null,null,null,null,null,null,null,null,"%",{"$f":"IF(Y46=\"\",\"--------------\",+(O$25+$AE$22)*Y46/100)","v":"--------------"}]
[null,null,{"$f":"IF($C$37<>\"\",\"79139 - Finama Actions Internationales\",\" \")","v":"79139 - Finama Actions Internationales"},null,null,null,null,null,null,null,null,null,null,null,null,null,"%",{"$f":"IF(O47=\"\",\"--------------\",+E$25*O47/100)","v":"--------------"},null,null,null,null,null,null,null,null,"%",{"$f":"IF(Y47=\"\",\"--------------\",+(O$25+$AE$22)*Y47/100)","v":"--------------"}]
[null,null,{"$f":"IF($C$37<>\"\",\"116119 - Groupama Sélection PME-ETI\",\" \")","v":"116119 - Groupama Sélection PME-ETI"},null,null,null,null,null,null,null,null,null,null,null,null,null,"%",{"$f":"IF(O48=\"\",\"--------------\",+E$25*O48/100)","v":"--------------"},null,null,null,null,null,null,null,null,"%",{"$f":"IF(Y48=\"\",\"--------------\",+(O$25+$AE$22)*Y48/100)","v":"--------------"}]
[null,null,null,null,null,null,null,null,null,null,null,null,null,null,null,null,"%","--------------",null,null,null,null,null,null,null,null,"%","--------------"]
[null,null,null,null,null,null,null,null,null,null,null,null,null,null,null,null,"%","--------------",null,null,null,null,null,null,null,null,"%","--------------"]
[null,null,null,null,null,null,null,null,null,null,null,null,null,null,null,null,"%","--------------",null,null,null,null,null,null,null,null,"%","--------------"]
[null,null,null,null,null,null,null,null,null,null,null,null,null,null,null,null,"%","--------------",null,null,null,null,null,null,null,null,"%","--------------"]
[null,null,null,null,null,null,null,null,null,null,null,null,null,null,null,null,"%","--------------",null,null,null,null,null,null,null,null,"%","--------------"]
[null,null,null,null,null,null,null,null,null,null,null,null,null,null,null,null,"%","--------------",null,null,null,null,null,null,null,null,"%","--------------"]
[null,null,null,null,null,null,null,null,null,null,null,null,null,null,null,null,"%","--------------",null,null,null,null,null,null,null,null,"%","--------------"]
[null,null,null,null,null,null,null,null,null,null,null,null,null,null,null,null,"%","--------------",null,null,null,null,null,null,null,null,"%","--------------"]
[null,null,null,null,null,null,null,null,null,null,null,null,null,null,null,null,"%","--------------",null,null,null,null,null,null,null,null,"%","--------------"]
[null,null,null,null,null,null,null,null,null,null,null,null,null,null,null,null,"%","--------------",null,null,null,null,null,null,null,null,"%","--------------"]
[null,null,null,null,null,null,null,null,null,null,null,null,null,null,null,null,"%","--------------",null,null,null,null,null,null,null,null,"%","--------------"]
[null,null,null,null,null,null,null,null,null,null,null,null,null,null,null,null,"%","--------------",null,null,null,null,null,null,null,null,"%","--------------"]
[null,null,null,null,null,null,null,null,null,null,null,null,null,null,null,null,"%","--------------",null,null,null,null,null,null,null,null,"%","--------------"]
[]
[null,null,null,"B. Gestion Pilotée",null,null,null,null,null,null,null,null,null,null,null,null,null,null,null,null,null,null,null,null,null,null,"%",{"$f":"IF(Y63=\"\",\"--------------\",+(O25+$AE$22)*Y63/100)","v":"--------------"},null,null,null,null,null,null,null,null,null,null,"Tous les chèques sont à libeller à l’ordre de GROUPAMA ÉPARGNE SALARIALE\net à envoyer à l'adresse :"]
[null,null,null,"valable uniquement sur le PERCO",null,null,null,null,null,null,null,{"$f":"IF(L63=\"Oui\",\"Préciser la grille d'allocation\",\"\")","v":""}]
[]
[null,null,null," Pour plus de renseignements sur la gestion pilotée >",null,null,null,null,null,null,null,null,null,null,"cliquez ici",null,null,null,null,null,null,null,null,null,null,null,null,null,null,null,null,null,null,null,null,null,null,null,"GROUPAMA ÉPARGNE SALARIALE\nService Clients\n46 rue Jules Méline\n53098 LAVAL Cedex 9"]
[]
[null,null,"Je déclare avoir pris connaissance du règlement du plan, des documents d'information clés (DIC/KID) des fonds remis par mon entreprise et téléchargeables sur www.groupama-es.fr, ainsi que des modalités de fonctionnement des versements individuels jointes au présent bulletin. \n\nConformément au contrat d’épargne salariale mis en place par votre entreprise, des frais de versements d’un maximum de 4 % peuvent s’appliquer. Nous vous invitons à contacter votre employeur pour obtenir le montant de ces frais."]
[null,null,"En l'absence de choix de fonds, les sommes seront investies sur le fonds par défaut dans le PEE ou selon le mode de gestion pilotée dans le PERCO : soit le profil Prudent s'il s'agit de votre premier versement ou si vous aviez opté pour la gestion libre lors de précédent versement, soit avec le même profil de gestion pilotée précédemment choisi."]
[]
[null,null,"Pour tout versement volontaire à partir de 8 000 €, une copie de votre pièce d'identité devra être fournie, accompagnée du dernier avis d'imposition pour un versement d’un montant de\n15 000 € et plus. "]
[null,null,null,"J’atteste sur l’honneur que mon versement est conforme à la réglementation, notamment qu'il provient bien de mes avoirs personnels et que l’ensemble de mes versements de l’année au PEE/PERCO ne dépasse pas 25 % de ma rémunération annuelle brute.",null,null,null,null,null,null,null,null,null,null,null,null,null,null,null,null,null,null,null,null,null,null,null,null,null,null,null,null,null,null,null,null,null,null,"Le numéro de Sécurité sociale est recueilli pour identifier l’épargnant en cas de risque d’homonymie.\nConformément au règlement général sur la protection des données n°2016/679 du 27 avril 2016, vos données personnelles sont traitées par Groupama Épargne Salariale aux fins de tenue des comptes d'épargne salariale. Elles sont destinées aux membres du personnel dûment habilités de Groupama Épargne Salariale ainsi qu’à ses sous-traitants. Elles sont conservées par Groupama Épargne Salariale pendant une durée maximale de trente ans à compter de la disponibilité des avoirs.Vous pouvez demander l’accès, la rectification, l'effacement et la portabilité de vos données personnelles ainsi que limiter ou vous opposer, pour motif légitime, au traitement en écrivant au Délégué Relais à la Protection des Données de Groupama Épargne Salariale – Service du Contrôle interne – 2 boulevard de Pesaro – 92000 Nanterre ou par email : controleinterne@groupama-es.fr.\n"]
[null,null,null,null,null,null,null,null,null,null,null,null,null,null,null,null,null,null,null,null,"SIGNATURE ÉPARGNANT"]
[null,null,"Fait à :"]
[]
[null,null,"le",null,null,null,null,null,null,null,{"$f":"'Saisie des données + guide'!BC1","v":2025},null,null,null,null,null,null,null,null,null,null,null,null,null,null,null,null,null,null,null,null,null,null,null,null,null,null,null,null,null,null,null,null,null,"Groupama Épargne Salariale - Entreprise d'investissement agréée par l'ACPR, Teneur de compte - conservateur de parts - Société Anonyme au capital de 8.709.015 € - Siège social : 2 boulevard de Pesaro 92000 Nanterre - 428 768 352 RCS Nanterre - Réf. : BIV-01-01-2025"]
[]
[]
[]
[]
[]
[]
[]
[]
[]
[]
[]
[null,null,null,null,"3 options dans ce BIV :"]
[]
[null,null,null,null,null,null,"Ouverture compte :"]
[null,null,null,null,null,null,null,null,null,null,null,null,"X"]
[]
[null,null,null,null,null,null,"Statut :"]
[null,null,null,null,null,null,null,null,null,"Salarié"]
[null,null,null,null,null,null,null,null,null,"Non salarié"]
[]
[null,null,null,null,null,null,"Gestion pilotée :"]
[]
[null,null,null,null,null,null,null,null,null,null,"Grille Prudente"]
[null,null,null,null,null,null,null,null,null,null,"Grille Équilibre"]
[null,null,null,null,null,null,null,null,null,null,"Grille Dynamique"]
[]
[null,null,null,null,null,null,null,null,null,null,null,"Oui"]
[null,null,null,null,null,null,null,null,null,null,null,"Non"]

{"sheet":"Bulletin n°10","index":10,"n_rows":104,"n_cols":63,"rows_kept":104,"cut":false,"hidden":false,"merged":[[82,10,82,15],[82,16,82,21],[82,22,82,27],[70,2,70,34],[71,3,71,34],[71,38,74,69],[72,20,72,34],[73,2,73,4],[73,5,73,18],[73,20,75,34],[75,7,75,8],[75,10,75,12],[75,44,75,69],[62,11,62,12],[62,17,63,22],[62,24,63,25],[62,26,63,26],[62,27,63,34],[62,38,64,68],[63,3,64,10],[63,11,63,16],[65,14,65,15],[65,30,65,34],[65,38,68,68],[66,17,66,23],[67,2,67,34],[68,2,69,34],[59,2,59,13],[59,14,59,15],[59,17,59,23],[59,24,59,25],[59,27,59,34],[60,2,60,13],[60,14,60,15],[60,17,60,23],[60,24,60,25],[60,27,60,34],[57,2,57,13],[57,14,57,15],[57,17,57,23],[57,24,57,25],[57,27,57,34],[58,2,58,13],[58,14,58,15],[58,17,58,23],[58,24,58,25],[58,27,58,34],[55,2,55,13],[55,14,55,15],[55,17,55,23],[55,24,55,25],[55,27,55,34],[56,2,56,13],[56,14,56,15],[56,17,56,23],[56,24,56,25],[56,27,56,34],[52,27,52,34],[53,2,53,13],[53,14,53,15],[53,17,53,23],[53,24,53,25],[53,27,53,34],[54,2,54,13],[54,14,54,15],[54,17,54,23],[54,24,54,25],[54,27,54,34],[46,38,60,69],[47,2,47,13],[47,14,47,15],[47,17,47,23],[47,24,47,25],[47,27,47,34],[48,2,48,13],[48,14,48,15],[48,17,48,23],[48,24,48,25],[50,2,50,13],[50,14,50,15],[50,17,50,23],[50,24,50,25],[50,27,50,34],[51,2,51,13],[51,14,51,15],[51,17,51,23],[51,24,51,25],[51,27,51,34],[52,2,52,13],[52,14,52,15],[52,17,52,23],[52,24,52,25],[45,27,45,34],[46,2,46,13],[46,14,46,15],[46,17,46,23],[46,24,46,25],[46,27,46,34],[48,27,48,34],[49,2,49,13],[49,14,49,15],[49,17,49,23],[49,24,49,25],[49,27,49,34],[39,14,41,15],[39,16,41,16],[39,17,41,23],[39,24,41,25],[39,26,41,26],[45,2,45,13],[45,14,45,15],[45,17,45,23],[45,24,45,25],[38,2,38,13],[38,14,38,15],[38,17,38,23],[38,24,38,25],[38,27,38,34],[38,53,38,56],[38,57,38,67],[42,57,43,67],[44,2,44,13],[44,14,44,15],[44,17,44,23],[44,24,44,25],[44,27,44,34],[39,27,41,34],[39,38,41,53],[42,2,43,13],[42,14,43,15],[42,16,43,16],[42,17,43,23],[42,24,43,25],[42,26,43,26],[42,27,43,34],[42,38,43,52],[39,2,41,13],[36,2,37,13],[36,14,37,15],[36,16,37,16],[36,17,37,23],[36,24,37,25],[36,26,37,26],[36,27,37,34],[36,56,36,67],[36,68,36,69],[30,38,30,42],[30,45,30,62],[30,63,30,68],[31,38,31,47],[31,48,31,68],[32,2,35,13],[32,14,32,23],[32,24,32,34],[32,38,32,47],[32,50,32,53],[32,54,32,68],[33,14,34,23],[33,24,34,34],[33,40,33,45],[33,47,33,48],[33,50,33,53],[33,57,33,67],[34,40,34,45],[34,50,34,53],[34,57,34,67],[35,14,35,15],[35,17,35,23],[35,24,35,25],[35,27,35,34],[27,40,27,45],[27,50,27,53],[27,57,27,67],[28,40,28,45],[28,50,28,53],[28,57,28,67],[24,38,24,47],[24,50,24,53],[24,55,24,68],[25,40,26,45],[25,47,25,48],[25,50,26,53],[25,56,26,56],[25,57,26,67],[24,2,24,3],[24,4,24,10],[24,12,24,13],[24,14,24,20],[24,22,24,25],[24,26,24,34],[22,21,22,31],[22,38,22,42],[22,45,22,62],[22,63,22,68],[23,4,23,10],[23,14,23,20],[23,22,23,34],[23,38,23,47],[23,48,23,68],[17,87,17,105],[19,38,20,69],[21,14,21,19],[21,21,21,27],[21,28,21,29],[21,30,21,34],[15,2,15,3],[15,6,15,16],[15,25,15,34],[15,55,15,61],[16,62,16,68],[17,6,17,16],[17,25,17,34],[11,6,11,16],[11,25,11,34],[11,44,11,68],[13,6,13,10],[13,25,13,34],[13,62,13,68],[7,6,7,16],[7,25,7,34],[7,44,7,68],[9,6,9,10],[9,15,9,16],[9,25,9,34],[9,44,9,68],[0,1,0,58],[0,62,0,67],[2,1,2,35],[2,38,2,68],[5,6,5,10],[5,13,5,16],[5,25,5,34],[5,44,5,49],[5,62,5,68]]}
[null,"BULLETIN INDIVIDUEL DE VERSEMENTS SUR VOTRE PLAN D’ÉPARGNE SALARIALE                                              ",null,null,null,null,null,null,null,null,null,null,null,null,null,null,null,null,null,null,null,null,null,null,null,null,null,null,null,null,null,null,null,null,null,null,null,null,null,null,null,null,null,null,null,null,null,null,null,null,null,null,null,null,null,null,null,null,null,null,null,null,{"$f":"'Saisie des données + guide'!BC1","v":2025}]
[]
[null," INFORMATIONS ÉPARGNANT",null,null,null,null,null,null,null,null,null,null,null,null,null,null,null,null,null,null,null,null,null,null,null,null,null,null,null,null,null,null,null,null,null,null,null,null,"INFORMATIONS ENTREPRISE"]
[]
[]
[null,null,"Civilité ",null,null,null,null,null,null,null,null,null,"Nom",null,null,null,null,null,"Prénom",null,null,null,null,null,null,null,null,null,null,null,null,null,null,null,null,null,null,null,"Code entreprise",null,null,null,null,null,{"$f":"+'Saisie des données + guide'!$J$11","v":0},null,null,null,null,null,null,null,null,"Exercice fiscal de référence",null,null,null,null,null,null,null,null,{"$f":"'Saisie des données + guide'!$U$48","v":0}]
[]
[null,null,"N° Sécurité sociale",null,null,null,null,null,null,null,null,null,null,null,null,null,null,null,"Nom de naissance",null,null,null,null,null,null,null,null,null,null,null,null,null,null,null,null,null,null,null,"Raison sociale",null,null,null,null,null,{"$f":"+'Saisie des données + guide'!$J$13","v":0}]
[]
[null,null,"Date de naissance",null,null,null,null,null,null,null,null,"Département de naissance",null,null,null,null,null,null,"Ville de naissance",null,null,null,null,null,null,null,null,null,null,null,null,null,null,null,null,null,null,null,"Contact",null,null,null,null,null,{"$f":"+'Saisie des données + guide'!$J$15","v":0}]
[]
[null,null,"Adresse",null,null,null,null,null,null,null,null,null,null,null,null,null,null,null,"Pays de naissance",null,null,null,null,null,null,null,null,null,null,null,null,null,null,null,null,null,null,null,"E-mail",null,null,null,null,null,{"$f":"+'Saisie des données + guide'!$J$17","v":0}]
[]
[null,null,"Code postal",null,null,null,null,null,null,null,null,null,null,null,null,null,null,null,"Téléphone portable "]
[]
[null,null,"Ville",null,null,null,null,null,null,null,null,null,null,null,null,null,null,null,"E-mail",null,null,null,null,null,null,null,null,null,null,null,null,null,null,null,null,null,null,null,"Le Plafond Annuel de la Sécurité Sociale (PASS) est de :",null,null,null,null,null,null,null,null,null,null,null,null,null,null,null,null,{"$f":"PASS","v":47100}]
[]
[null,null,"Statut",null,null,null,null,null,null,null,null,null,null,null,null,null,null,null,"Salaire",null,null,null,null,null,null,null,null,null,null,null,null,null,null,null,null,null,null,null,"Si CSG-CRDS non précomptées pour le salarié",null,null,null,null,null,null,null,null,null,null,null,null,null,null,null,null,{"$f":"+'Saisie des données + guide'!AF36","v":0}]
[null,null,null,null,null,null,null,null,null,null,null,null,null,null,null,null,null,null,null,null,null,null,null,null,null,"À renseigner si versement d'une prime de partage de la valeur"]
[null,null,null,null,null,null,{"$f":"+IF(AND($V$22=\"Prime de partage de la valeur\",G18=\"Non salarié\"),\"La prime de partage de la valeur n’est pas accessible aux travailleurs non-salariés.\",\"\")","v":""},null,null,null,null,null,null,null,null,null,null,null,null,null,null,null,null,null,null,null,null,null,null,null,null,null,null,null,null,null,null,null,{"$f":"+'Saisie des données + guide'!D38","v":"Le montant que Groupama Épargne Salariale doit investir est le montant net de CSG-CRDS (les prélèvements sociaux étant payés directement par vos soins). Si vous cochez cette case, cela signifie que vous souhaitez par dérogation nous adresser un montant brut de CSG-CRDS et que vous aurez prélevé sur la fiche de paie de chacun des salariés concernés la CSG-CRDS relative à l'opération réalisée. Cette dérogation n'est pas possible si l'abondement est à calculer par Groupama Épargne Salariale."}]
[]
[null,null,"MONTANTS À INVESTIR",null,null,null,null,null,null,null,null,null,null,null,"Origine des versements :",null,null,null,null,null,null,{"$f":"'Saisie des données + guide'!T20","v":"Épargne personnelle"},null,null,null,null,null,null,{"$f":"IF(V22=\"Abondement unilatéral\", \"C =\", \"\")","v":""}]
[null,null,null,null,null,null,null,null,null,null,null,null,null,null,null,null,null,null,null,null,null,null,null,null,null,null,null,null,null,null,null,null,null,null,null,null,null,null,"PEE"]
[null,null,null,null,"PEE",null,null,null,null,null,null,null,null,null,"PERCO",null,null,null,null,null,null,null,"MONTANT TOTAL"]
[null,null,"A =",null,null,null,null,null,null,null,null,null,"B =",null,null,null,null,null,null,null,null,null,"A + B =",null,null,null,{"$f":"E25+O25","v":0},null,null,null,null,null,null,null,null,null,null,null,{"$f":"V22","v":"Épargne personnelle"},null,null,null,null,null,null,null,null,null,null,null,"Taux",null,null,null,null,{"$f":"\"Abondement sur \"&$V$22&\"\"","v":"Abondement sur Épargne personnelle"}]
[null,null,null,null,null,null,null,null,null,null,null,null,null,null,null,null,null,null,null,null,null,null,null,null,null,null,null,null,null,null,null,null,null,null,null,null,null,null,null,null,{"$f":"E25","v":0},null,null,null,null,null,null,"x",null,null,{"$f":"+'Saisie des données + guide'!R29","v":0},null,null,null,null,null,"A' =",{"$f":"IF(ISBLANK(E25),\"\",IF(AND(G18=J94,ISBLANK('Saisie des données + guide'!AF36)),MIN(Plafond_PEE_net,E25*AY26*(1-CSG_CRDS)),MIN(Plafond_PEE,E25*AY26)))","v":""}]
[]
[null,null,null,null,null,null,null,null,null,null,null,null,null,null,null,null,null,null,null,null,null,null,null,null,null,null,null,null,null,null,null,null,null,null,null,null,null,null,null,null,"A",null,null,null,null,null,null,null,null,null,"T",null,null,null,null,null,null,{"$f":"IF(AND(G18=J94,ISBLANK('Saisie des données + guide'!AF36)),\"plafonné à \" &Plafond_PEE_net&\" € pour \"&J94,IF(G18=J94,\"plafonné à \" &Plafond_PEE&\" € pour \"&J94,\"plafonné à \" &Plafond_PEE&\" € pour \"&J95))","v":"plafonné à 3768 € pour Non salarié"}]
[null,null,"RÉPARTITION DE L'ÉPARGNE"]
[null,null,null,"A. Gestion Libre"]
[null,null,null,"valable pour le PEE et/ou le PERCO",null,null,null,null,null,null,null,null,null,null,null,null,null,null,null,null,null,null,null,null,null,null,null,null,null,null,null,null,null,null,null,null,null,null,"PERCO"]
[]
[null,null,"NOM DES FONDS\n\n    N'hésitez pas à consulter l'onglet \"Autres fonds\" pour ajouter d'autres supports de placement présents dans votre contrat.",null,null,null,null,null,null,null,null,null,null,null,"PEE",null,null,null,null,null,null,null,null,null,"PERCO",null,null,null,null,null,null,null,null,null,null,null,null,null,{"$f":"$V$22","v":"Épargne personnelle"},null,null,null,null,null,null,null,null,null,null,null,"Taux",null,null,null,{"$f":"IF($V$22=\"Épargne personnelle\",\"Abondement sur Épargne personnelle\",IF($V$22=\"Intéressement\",\"Abondement sur Intéressement\",IF($V$22=\"Participation\",\"Abondement sur Participation\",IF($V$22=\"Jours de repos non pris / CET\",\"Abondement sur Jours de repos non pris / CET\",IF($V$22=\"Prime de partage de la valeur\",\"Abondement sur Prime de partage de la valeur\",IF($V$22=\"Abondement unilatéral\",\"Abondement unilatéral\"))))))","v":"Abondement sur Épargne personnelle"}]
[null,null,null,null,null,null,null,null,null,null,null,null,null,null,{"$f":"+IF(SUM(R37:X61)>E25,\"ERREUR SAISIE\",IF(R36=0,\"\",\"Reste à répartir sur les fonds suivants\"))","v":""},null,null,null,null,null,null,null,null,null,{"$f":"+IF(SUM(AB37:AI64)>(O25+AE22),\"ERREUR SAISIE\",IF(AB36=0,\"\",\"Reste à répartir sur les fonds suivants\"))","v":""},null,null,null,null,null,null,null,null,null,null,null,null,null,null,null,{"$f":"$O$25","v":0},null,null,null,null,null,null,"x",null,null,{"$f":"+'Saisie des données + guide'!$AJ$29","v":0},null,null,null,null,null,{"$f":"IF(V22=\"abondement unilatéral\", \" C' = \",\"B' = \")","v":"B' = "},{"$f":"IF(AND(ISBLANK(O25),ISBLANK(AE22)),\"\",IF(AND(V22=\"Abondement unilatéral\",G18=J94,ISBLANK('Saisie des données + guide'!AF36)),MIN(Plafond_uni_TS,AE22*0.903),IF(AND(V22=\"Abondement unilatéral\",G18=J95),MIN(Plafond_uni_TNS,AE22),IF(AND(V22<>\"Abondement unilatéral\",G18=J94,ISBLANK('Saisie des données + guide'!AF36)),MIN(Plafond_PERCO_net,(1-CSG_CRDS)*AY34*O25),IF(AND(V22<>\"Abondement unilatéral\",G18=J95,ISBLANK('Saisie des données + guide'!AF36)),MIN(Plafond_PERCO,AY34*O25),IF(AND(V22<>\"Abondement unilatéral\",G18=J94,'Saisie des données + guide'!AF36=\"X\"),MIN(Plafond_PERCO,AY34*O25),IF(AND(V22<>\"Abondement unilatéral\",G18=J95,'Saisie des données + guide'!AF36=\"X\"),MIN(Plafond_PERCO,AY34*O25),IF(AND(V22=\"Abondement unilatéral\",G18=J95,'Saisie des données + guide'!AF36=\"X\"),MIN(Plafond_uni_TNS,AE22),IF(AND(V22=\"Abondement unilatéral\",G18=J94,'Saisie des données + guide'!AF36=\"X\"),MIN(Plafond_uni_TNS,AE22))))))))))","v":""}]
[null,null,null,null,null,null,null,null,null,null,null,null,null,null,null,null,null,null,null,null,null,null,null,null,null,null,null,null,null,null,null,null,null,null,null,null,null,null,null,null,"B",null,null,null,null,null,null,null,null,null,"T'",null,null,null,null,null,null,{"$f":"IF(AND(ISBLANK(O25),ISBLANK(AE22)),\"\",IF(AND(V22=\"Abondement unilatéral\",G18=J94,ISBLANK('Saisie des données + guide'!AF36)),\"plafonné à \"&Plafond_uni_TS&\" € pour \"&J94,IF(AND(V22=\"Abondement unilatéral\",G18=J95),\"plafonné à \"&Plafond_uni_TNS&\" € pour \"&J95,IF(AND(V22<>\"Abondement unilatéral\",G18=J94,ISBLANK('Saisie des données + guide'!AF36)),\"plafonné à \"&Plafond_PERCO_net&\" € pour \"&J94,IF(AND(V22<>\"Abondement unilatéral\",G18=J95,ISBLANK('Saisie des données + guide'!AF36)),\"plafonné à \"&Plafond_PERCO&\" € pour \"&J95,IF(AND(V22<>\"Abondement unilatéral\",G18=J94,'Saisie des données + guide'!AF36=\"X\"),\"plafonné à \"&Plafond_PERCO&\" € pour \"&J94,IF(AND(V22<>\"Abondement unilatéral\",G18=J95,'Saisie des données + guide'!AF36=\"X\"),\"plafonné à \"&Plafond_PERCO&\" € pour \"&J95,IF(AND(V22=\"Abondement unilatéral\",G18=J95,'Saisie des données + guide'!AF36=\"X\"),\"plafonné à \"&Plafond_uni_TNS&\" € pour \"&J95,IF(AND(V22=\"Abondement unilatéral\",G18=J94,'Saisie des données + guide'!AF36=\"X\"),\"plafonné à \"&Plafond_uni_TNS&\" € pour \"&J94)))))))))","v":""}]
[null,null,null,null,null,null,null,null,null,null,null,null,null,null,{"$f":"100-(SUM(O37:P64))","v":100},null,{"$f":"IF(O36>1, \"%\", \"\")","v":"%"},{"$f":"E25-SUM(R37:X61)","v":0},null,null,null,null,null,null,{"$f":"100-(SUM(Y37:Z64))","v":100},null,{"$f":"IF(Y36<>0,\"%\",\" \")","v":"%"},{"$f":"(O25+AE22)-SUM(AB37:AI64)","v":0}]
[null,null,{"$f":"+IF('Saisie des données + guide'!T24=\"Gamme GER\",\"84289 - GER Monétaire\",IF('Saisie des données + guide'!T24=\"Gamme TESORUS\",\"82659 - TESORUS Monétaire\",IF('Saisie des données + guide'!T24=\"Gamme Fonds Directs\",\"15719 - Oblifonds\",IF('Saisie des données + guide'!T24=\"Gamme Finama\",\"\",\"\"))))","v":"84289 - GER Monétaire"},null,null,null,null,null,null,null,null,null,null,null,null,null,"%",{"$f":"IF(O37=\"\",\"--------------\",+E$25*O37/100)","v":"--------------"},null,null,null,null,null,null,null,null,"%",{"$f":"IF(Y37=\"\",\"--------------\",+(O$25+$AE$22)*Y37/100)","v":"--------------"}]
[]
[null,null,{"$f":"+IF('Saisie des données + guide'!T24=\"Gamme GER\",\"84309 - GER Prudence\",IF('Saisie des données + guide'!T24=\"Gamme TESORUS\",\"82719 - TESORUS Prudence\",IF('Saisie des données + guide'!T24=\"Gamme Fonds Directs\",\"4939 - Diversifonds\",\"\")))","v":"84309 - GER Prudence"},null,null,null,null,null,null,null,null,null,null,null,null,null,"%",{"$f":"IF(O39=\"\",\"--------------\",+E$25*O39/100)","v":"--------------"},null,null,null,null,null,null,null,null,"%",{"$f":"IF(Y39=\"\",\"--------------\",+(O$25+$AE$22)*Y39/100)","v":"--------------"},null,null,null,null,null,null,null,null,null,null,"VERSEMENT TOTAL DE L'ENTREPRISE",null,null,null,null,null,null,null,null,null,null,null,null,null,null,{"$f":"IF(V22=\"abondement unilatéral\", \" C' = \",\"A'+ B' = \")","v":"A'+ B' = "},null,null,null,{"$f":"MAX(BF26,0)+MAX(BF34,0)","v":0}]
[null,null,{"$f":"+IF('Saisie des données + guide'!T24=\"Gamme GER\",\"84329 - GER Equilibre\",IF('Saisie des données + guide'!T24=\"Gamme TESORUS\",\"82669 - TESORUS Equilibre\",IF('Saisie des données + guide'!T24=\"Gamme Fonds Directs\",\"2459 - Foncival\",\"\")))","v":"84329 - GER Equilibre"},null,null,null,null,null,null,null,null,null,null,null,null,null,"%",{"$f":"IF(O40=\"\",\"--------------\",+E$25*O40/100)","v":"--------------"},null,null,null,null,null,null,null,null,"%",{"$f":"IF(Y40=\"\",\"--------------\",+(O$25+$AE$22)*Y40/100)","v":"--------------"},null,null,null,null,null,null,null,null,null,null,{"$f":"IF(V20=\"abondement unilatéral\", \"\",\"Le versement de l'abondement s'effectue sur les mêmes fonds que le versement personnel.\")","v":"Le versement de l'abondement s'effectue sur les mêmes fonds que le versement personnel."}]
[]
[]
[null,null,{"$f":"+IF('Saisie des données + guide'!T24=\"Gamme GER\",\"84349 - GER Dynamique\",IF('Saisie des données + guide'!T24=\"Gamme TESORUS\",\"82689 - TESORUS Dynamique\",\"\"))","v":"84349 - GER Dynamique"},null,null,null,null,null,null,null,null,null,null,null,null,null,"%",{"$f":"IF(O43=\"\",\"--------------\",+E$25*O43/100)","v":"--------------"},null,null,null,null,null,null,null,null,"%",{"$f":"IF(Y43=\"\",\"--------------\",+(O$25+$AE$22)*Y43/100)","v":"--------------"},null,null,null,null,null,null,null,null,null,null,"VERSEMENT TOTAL INVESTI",null,null,null,null,null,null,null,null,null,null,null,null,null,null,null,null,null,null,{"$f":"+AA25+BF39","v":0}]
[]
[null,null,{"$f":"+IF('Saisie des données + guide'!T24=\"Gamme GER\",\"84369 - GER Solidaire\",IF('Saisie des données + guide'!T24=\"Gamme TESORUS\",\"87649 - TESORUS Solidaire\",\"\"))","v":"84369 - GER Solidaire"},null,null,null,null,null,null,null,null,null,null,null,null,null,"%",{"$f":"IF(O45=\"\",\"--------------\",+E$25*O45/100)","v":"--------------"},null,null,null,null,null,null,null,null,"%",{"$f":"IF(Y45=\"\",\"--------------\",+(O$25+$AE$22)*Y45/100)","v":"--------------"}]
[null,null,{"$f":"IF($C$37<>\"\",\"110429 - Finama Épargne Court Terme\",\" \")","v":"110429 - Finama Épargne Court Terme"},null,null,null,null,null,null,null,null,null,null,null,null,null,"%",{"$f":"IF(O46=\"\",\"--------------\",+E$25*O46/100)","v":"--------------"},null,null,null,null,null,null,null,null,"%",{"$f":"IF(Y46=\"\",\"--------------\",+(O$25+$AE$22)*Y46/100)","v":"--------------"}]
[null,null,{"$f":"IF($C$37<>\"\",\"79139 - Finama Actions Internationales\",\" \")","v":"79139 - Finama Actions Internationales"},null,null,null,null,null,null,null,null,null,null,null,null,null,"%",{"$f":"IF(O47=\"\",\"--------------\",+E$25*O47/100)","v":"--------------"},null,null,null,null,null,null,null,null,"%",{"$f":"IF(Y47=\"\",\"--------------\",+(O$25+$AE$22)*Y47/100)","v":"--------------"}]
[null,null,{"$f":"IF($C$37<>\"\",\"116119 - Groupama Sélection PME-ETI\",\" \")","v":"116119 - Groupama Sélection PME-ETI"},null,null,null,null,null,null,null,null,null,null,null,null,null,"%",{"$f":"IF(O48=\"\",\"--------------\",+E$25*O48/100)","v":"--------------"},null,null,null,null,null,null,null,null,"%",{"$f":"IF(Y48=\"\",\"--------------\",+(O$25+$AE$22)*Y48/100)","v":"--------------"}]
[null,null,null,null,null,null,null,null,null,null,null,null,null,null,null,null,"%","--------------",null,null,null,null,null,null,null,null,"%","--------------"]
[null,null,null,null,null,null,null,null,null,null,null,null,null,null,null,null,"%","--------------",null,null,null,null,null,null,null,null,"%","--------------"]
[null,null,null,null,null,null,null,null,null,null,null,null,null,null,null,null,"%","--------------",null,null,null,null,null,null,null,null,"%","--------------"]
[null,null,null,null,null,null,null,null,null,null,null,null,null,null,null,null,"%","--------------",null,null,null,null,null,null,null,null,"%","--------------"]
[null,null,null,null,null,null,null,null,null,null,null,null,null,null,null,null,"%","--------------",null,null,null,null,null,null,null,null,"%","--------------"]
[null,null,null,null,null,null,null,null,null,null,null,null,null,null,null,null,"%","--------------",null,null,null,null,null,null,null,null,"%","--------------"]
[null,null,null,null,null,null,null,null,null,null,null,null,null,null,null,null,"%","--------------",null,null,null,null,null,null,null,null,"%","--------------"]
[null,null,null,null,null,null,null,null,null,null,null,null,null,null,null,null,"%","--------------",null,null,null,null,null,null,null,null,"%","--------------"]
[null,null,null,null,null,null,null,null,null,null,null,null,null,null,null,null,"%","--------------",null,null,null,null,null,null,null,null,"%","--------------"]
[null,null,null,null,null,null,null,null,null,null,null,null,null,null,null,null,"%","--------------",null,null,null,null,null,null,null,null,"%","--------------"]
[null,null,null,null,null,null,null,null,null,null,null,null,null,null,null,null,"%","--------------",null,null,null,null,null,null,null,null,"%","--------------"]
[null,null,null,null,null,null,null,null,null,null,null,null,null,null,null,null,"%","--------------",null,null,null,null,null,null,null,null,"%","--------------"]
[null,null,null,null,null,null,null,null,null,null,null,null,null,null,null,null,"%","--------------",null,null,null,null,null,null,null,null,"%","--------------"]
[]
[null,null,null,"B. Gestion Pilotée",null,null,null,null,null,null,null,null,null,null,null,null,null,null,null,null,null,null,null,null,null,null,"%",{"$f":"IF(Y63=\"\",\"--------------\",+(O25+$AE$22)*Y63/100)","v":"--------------"},null,null,null,null,null,null,null,null,null,null,"Tous les chèques sont à libeller à l’ordre de GROUPAMA ÉPARGNE SALARIALE\net à envoyer à l'adresse :"]
[null,null,null,"valable uniquement sur le PERCO",null,null,null,null,null,null,null,{"$f":"IF(L63=\"Oui\",\"Préciser la grille d'allocation\",\"\")","v":""}]
[]
[null,null,null," Pour plus de renseignements sur la gestion pilotée >",null,null,null,null,null,null,null,null,null,null,"cliquez ici",null,null,null,null,null,null,null,null,null,null,null,null,null,null,null,null,null,null,null,null,null,null,null,"GROUPAMA ÉPARGNE SALARIALE\nService Clients\n46 rue Jules Méline\n53098 LAVAL Cedex 9"]
[]
[null,null,"Je déclare avoir pris connaissance du règlement du plan, des documents d'information clés (DIC/KID) des fonds remis par mon entreprise et téléchargeables sur www.groupama-es.fr, ainsi que des modalités de fonctionnement des versements individuels jointes au présent bulletin. \n\nConformément au contrat d’épargne salariale mis en place par votre entreprise, des frais de versements d’un maximum de 4 % peuvent s’appliquer. Nous vous invitons à contacter votre employeur pour obtenir le montant de ces frais."]
[null,null,"En l'absence de choix de fonds, les sommes seront investies sur le fonds par défaut dans le PEE ou selon le mode de gestion pilotée dans le PERCO : soit le profil Prudent s'il s'agit de votre premier versement ou si vous aviez opté pour la gestion libre lors de précédent versement, soit avec le même profil de gestion pilotée précédemment choisi."]
[]
[null,null,"Pour tout versement volontaire à partir de 8 000 €, une copie de votre pièce d'identité devra être fournie, accompagnée du dernier avis d'imposition pour un versement d’un montant de\n15 000 € et plus. "]
[null,null,null,"J’atteste sur l’honneur que mon versement est conforme à la réglementation, notamment qu'il provient bien de mes avoirs personnels et que l’ensemble de mes versements de l’année au PEE/PERCO ne dépasse pas 25 % de ma rémunération annuelle brute.",null,null,null,null,null,null,null,null,null,null,null,null,null,null,null,null,null,null,null,null,null,null,null,null,null,null,null,null,null,null,null,null,null,null,"Le numéro de Sécurité sociale est recueilli pour identifier l’épargnant en cas de risque d’homonymie.\nConformément au règlement général sur la protection des données n°2016/679 du 27 avril 2016, vos données personnelles sont traitées par Groupama Épargne Salariale aux fins de tenue des comptes d'épargne salariale. Elles sont destinées aux membres du personnel dûment habilités de Groupama Épargne Salariale ainsi qu’à ses sous-traitants. Elles sont conservées par Groupama Épargne Salariale pendant une durée maximale de trente ans à compter de la disponibilité des avoirs.Vous pouvez demander l’accès, la rectification, l'effacement et la portabilité de vos données personnelles ainsi que limiter ou vous opposer, pour motif légitime, au traitement en écrivant au Délégué Relais à la Protection des Données de Groupama Épargne Salariale – Service du Contrôle interne – 2 boulevard de Pesaro – 92000 Nanterre ou par email : controleinterne@groupama-es.fr.\n"]
[null,null,null,null,null,null,null,null,null,null,null,null,null,null,null,null,null,null,null,null,"SIGNATURE ÉPARGNANT"]
[null,null,"Fait à :"]
[]
[null,null,"le",null,null,null,null,null,null,null,{"$f":"'Saisie des données + guide'!BC1","v":2025},null,null,null,null,null,null,null,null,null,null,null,null,null,null,null,null,null,null,null,null,null,null,null,null,null,null,null,null,null,null,null,null,null,"Groupama Épargne Salariale - Entreprise d'investissement agréée par l'ACPR, Teneur de compte - conservateur de parts - Société Anonyme au capital de 8.709.015 € - Siège social : 2 boulevard de Pesaro 92000 Nanterre - 428 768 352 RCS Nanterre - Réf. : BIV-01-01-2025"]
[]
[]
[]
[]
[]
[]
[]
[]
[]
[]
[]
[null,null,null,null,"3 options dans ce BIV :"]
[]
[null,null,null,null,null,null,"Ouverture compte :"]
[null,null,null,null,null,null,null,null,null,null,null,null,"X"]
[]
[null,null,null,null,null,null,"Statut :"]
[null,null,null,null,null,null,null,null,null,"Salarié"]
[null,null,null,null,null,null,null,null,null,"Non salarié"]
[]
[null,null,null,null,null,null,"Gestion pilotée :"]
[]
[null,null,null,null,null,null,null,null,null,null,"Grille Prudente"]
[null,null,null,null,null,null,null,null,null,null,"Grille Équilibre"]
[null,null,null,null,null,null,null,null,null,null,"Grille Dynamique"]
[]
[null,null,null,null,null,null,null,null,null,null,null,"Oui"]
[null,null,null,null,null,null,null,null,null,null,null,"Non"]

{"sheet":"Fiche récapitulative","index":11,"n_rows":84,"n_cols":22,"rows_kept":84,"cut":false,"hidden":false,"merged":[[71,12,75,14],[31,14,31,15],[24,13,25,13],[80,6,80,8],[79,10,79,11],[71,2,71,7],[40,1,40,15],[63,1,63,15],[64,7,65,12],[29,5,29,8],[35,14,35,15],[24,11,25,11],[24,1,25,4],[24,5,25,8],[24,9,25,10],[29,9,29,10],[81,6,81,8],[28,9,28,10],[28,1,28,4],[29,1,29,4],[36,9,36,10],[61,9,61,10],[71,9,71,10],[35,1,35,4],[35,5,35,8],[35,9,35,10],[33,1,33,4],[33,5,33,8],[33,9,33,10],[34,1,34,4],[34,5,34,8],[34,9,34,10],[32,14,32,15],[33,14,33,15],[34,14,34,15],[31,1,31,4],[31,5,31,8],[31,9,31,10],[32,1,32,4],[32,5,32,8],[32,9,32,10],[30,1,30,4],[24,14,25,15],[26,14,26,15],[27,14,27,15],[28,14,28,15],[29,14,29,15],[30,14,30,15],[30,5,30,8],[24,12,25,12],[26,9,26,10],[28,5,28,8],[27,9,27,10],[26,1,26,4],[27,1,27,4],[30,9,30,10],[17,4,17,13],[0,0,3,15],[26,5,26,8],[27,5,27,8],[6,1,6,15],[4,1,4,15],[13,4,13,13],[11,4,11,5],[15,4,15,13]]}
["Fiche récapitulative \ndes versements individuels et des abondements 2025"]
[]
[]
[]
[null,"Document exclusivement réservé à l’entreprise"]
[]
[null,"À RETOURNER À GROUPAMA ÉPARGNE SALARIALE"]
[]
[]
[null,"ENTREPRISE"]
[]
[null,"Code entreprise",null,null,{"$f":"'Saisie des données + guide'!J11","v":0}]
[]
[null,"Raison sociale",null,null,{"$f":"+'Saisie des données + guide'!J13","v":0}]
[]
[null,"Contact",null,null,{"$f":"+'Saisie des données + guide'!J15","v":0}]
[]
[null,"E-mail",null,null,{"$f":"+'Saisie des données + guide'!J17","v":0}]
[]
[]
[]
[]
[null,"RÉCAPITULATIF DES VERSEMENTS ET ABONDEMENTS"]
[]
[null,"N° Sécurité sociale",null,null,null,"Nom",null,null,null,"Prénom",null,{"$f":"IF('Saisie des données + guide'!T20=\"Abondement unilatéral\", \"Montant de l'abondement unilatéral sur le PERCOL\",\" Montant de l’épargnant\")","v":" Montant de l’épargnant"},"Rappel du montant d’abondement\nPEE","Rappel du montant d’abondement\nPERCO","Montant total investi sauf si la répartition sur le bulletin n'est pas conforme "]
[null,null,null,null,null,null,null,null,null,null,null,null,null,null,null,null,null,"Abondement brut","Abondement brut","ABT BASE BRUTE"]
[null,{"$f":"+'Bulletin n°1'!$G$8","v":0},null,null,null,{"$f":"+'Bulletin n°1'!$N$6","v":0},null,null,null,{"$f":"+'Bulletin n°1'!$Z$6","v":"00:00:00"},null,{"$f":"IF('Saisie des données + guide'!$T$20=\"Abondement unilatéral\",'Bulletin n°1'!$BF$34,'Bulletin n°1'!$AA$25)","v":0},{"$f":"+'Bulletin n°1'!$BF$26","v":""},{"$f":"IF('Saisie des données + guide'!$T$20=\"Abondement unilatéral\",\"\",'Bulletin n°1'!$BF$34)","v":""},{"$f":"IF(ABS('Bulletin n°1'!$R$36)+ABS('Bulletin n°1'!$AB$36)>0,\"ERREUR de répartition \ndans le bulletin n°1\",+SUM(L27:N27))","v":0},null,{"$f":"IF(AND(ISBLANK('Bulletin n°1'!$Z$18),'Saisie des données + guide'!$T$20=\"Prime de partage de la valeur\"),\"L'information Salaire est à renseigner dans le bulletin n°1\",\"\")","v":""},{"$f":"'Bulletin n°1'!$BF$26","v":""},{"$f":"'Bulletin n°1'!#REF!","v":{"$error":"#REF!"}},{"$f":"IF(ISERROR(R27+S27),\"\",R27+S27)","v":""},{"$f":"'Bulletin n°1'!$J$93","v":0},{"$f":"IF(ISERROR(8%*T27),\"\",8%*T27)","v":""}]
[null,{"$f":"+'Bulletin n°2'!$G$8","v":0},null,null,null,{"$f":"+'Bulletin n°2'!$N$6","v":0},null,null,null,{"$f":"+'Bulletin n°2'!$Z$6","v":"00:00:00"},null,{"$f":"IF('Saisie des données + guide'!$T$20=\"Abondement unilatéral\",'Bulletin n°2'!$BF$34,'Bulletin n°2'!$AA$25)","v":0},{"$f":"+'Bulletin n°2'!$BF$26","v":""},{"$f":"IF('Saisie des données + guide'!$T$20=\"Abondement unilatéral\",\"\",'Bulletin n°2'!$BF$34)","v":""},{"$f":"IF(ABS('Bulletin n°2'!$R$36)+ABS('Bulletin n°2'!$AB$36)>0,\"ERREUR de répartition \ndans le Bulletin n°2\",+SUM(L28:N28))","v":0},null,{"$f":"IF(AND(ISBLANK(#REF!),'Saisie des données + guide'!$T$20=\"Prime de partage de la valeur\"),\"L'information Salaire est à renseigner dans le bulletin n°2\",\"\")","v":""},{"$f":"#REF!","v":{"$error":"#REF!"}},{"$f":"#REF!","v":{"$error":"#REF!"}},{"$f":"IF(ISERROR(R28+S28),\"\",R28+S28)","v":""},{"$f":"#REF!","v":{"$error":"#REF!"}},{"$f":"IF(ISERROR(8%*T28),\"\",8%*T28)","v":""}]
[null,{"$f":"+'Bulletin n°3'!$G$8","v":0},null,null,null,{"$f":"+'Bulletin n°3'!$N$6","v":0},null,null,null,{"$f":"+'Bulletin n°3'!$Z$6","v":"00:00:00"},null,{"$f":"IF('Saisie des données + guide'!$T$20=\"Abondement unilatéral\",'Bulletin n°3'!$BF$34,'Bulletin n°3'!$AA$25)","v":0},{"$f":"+'Bulletin n°3'!$BF$26","v":""},{"$f":"IF('Saisie des données + guide'!$T$20=\"Abondement unilatéral\",\"\",'Bulletin n°3'!$BF$34)","v":""},{"$f":"IF(ABS('Bulletin n°3'!$R$36)+ABS('Bulletin n°3'!$AB$36)>0,\"ERREUR de répartition \ndans le Bulletin n°3\",+SUM(L29:N29))","v":0},null,{"$f":"IF(AND(ISBLANK(#REF!),'Saisie des données + guide'!$T$20=\"Prime de partage de la valeur\"),\"L'information Salaire est à renseigner dans le bulletin n°3\",\"\")","v":""},{"$f":"#REF!","v":{"$error":"#REF!"}},{"$f":"#REF!","v":{"$error":"#REF!"}},{"$f":"IF(ISERROR(R29+S29),\"\",R29+S29)","v":""},{"$f":"#REF!","v":{"$error":"#REF!"}},""]
[null,{"$f":"+'Bulletin n°4'!$G$8","v":0},null,null,null,{"$f":"+'Bulletin n°4'!$N$6","v":0},null,null,null,{"$f":"+'Bulletin n°4'!$Z$6","v":"00:00:00"},null,{"$f":"IF('Saisie des données + guide'!$T$20=\"Abondement unilatéral\",'Bulletin n°4'!$BF$34,'Bulletin n°4'!$AA$25)","v":0},{"$f":"+'Bulletin n°4'!$BF$26","v":""},{"$f":"IF('Saisie des données + guide'!$T$20=\"Abondement unilatéral\",\"\",'Bulletin n°4'!$BF$34)","v":""},{"$f":"IF(ABS('Bulletin n°4'!$R$36)+ABS('Bulletin n°4'!$AB$36)>0,\"ERREUR de répartition \ndans le Bulletin n°4\",+SUM(L30:N30))","v":0},null,{"$f":"IF(AND(ISBLANK(#REF!),'Saisie des données + guide'!$T$20=\"Prime de partage de la valeur\"),\"L'information Salaire est à renseigner dans le bulletin n°1\",\"\")","v":""},{"$f":"#REF!","v":{"$error":"#REF!"}},{"$f":"#REF!","v":{"$error":"#REF!"}},{"$f":"IF(ISERROR(R30+S30),\"\",R30+S30)","v":""},{"$f":"#REF!","v":{"$error":"#REF!"}},""]
[null,{"$f":"+'Bulletin n°5'!$G$8","v":0},null,null,null,{"$f":"+'Bulletin n°5'!$N$6","v":0},null,null,null,{"$f":"+'Bulletin n°5'!$Z$6","v":"00:00:00"},null,{"$f":"IF('Saisie des données + guide'!$T$20=\"Abondement unilatéral\",'Bulletin n°5'!$BF$34,'Bulletin n°5'!$AA$25)","v":0},{"$f":"+'Bulletin n°5'!$BF$26","v":""},{"$f":"IF('Saisie des données + guide'!$T$20=\"Abondement unilatéral\",\"\",'Bulletin n°5'!$BF$34)","v":""},{"$f":"IF(ABS('Bulletin n°5'!$R$36)+ABS('Bulletin n°5'!$AB$36)>0,\"ERREUR de répartition \ndans le Bulletin n°5\",+SUM(L31:N31))","v":0},null,{"$f":"IF(AND(ISBLANK(#REF!),'Saisie des données + guide'!$T$20=\"Prime de partage de la valeur\"),\"L'information Salaire est à renseigner dans le bulletin n°5\",\"\")","v":""},{"$f":"#REF!","v":{"$error":"#REF!"}},{"$f":"#REF!","v":{"$error":"#REF!"}},"",{"$f":"#REF!","v":{"$error":"#REF!"}},""]
[null,{"$f":"+'Bulletin n°6'!$G$8","v":0},null,null,null,{"$f":"+'Bulletin n°6'!$N$6","v":0},null,null,null,{"$f":"+'Bulletin n°6'!$Z$6","v":"00:00:00"},null,{"$f":"IF('Saisie des données + guide'!$T$20=\"Abondement unilatéral\",'Bulletin n°6'!$BF$34,'Bulletin n°6'!$AA$25)","v":0},{"$f":"+'Bulletin n°6'!$BF$26","v":""},{"$f":"IF('Saisie des données + guide'!$T$20=\"Abondement unilatéral\",\"\",'Bulletin n°6'!$BF$34)","v":""},{"$f":"IF(ABS('Bulletin n°6'!$R$36)+ABS('Bulletin n°6'!$AB$36)>0,\"ERREUR de répartition \ndans le Bulletin n°6\",+SUM(L32:N32))","v":0},null,{"$f":"IF(AND(ISBLANK(#REF!),'Saisie des données + guide'!$T$20=\"Prime de partage de la valeur\"),\"L'information Salaire est à renseigner dans le bulletin n°6\",\"\")","v":""},{"$f":"#REF!","v":{"$error":"#REF!"}},{"$f":"#REF!","v":{"$error":"#REF!"}},"",{"$f":"#REF!","v":{"$error":"#REF!"}},""]
[null,{"$f":"+'Bulletin n°7'!$G$8","v":0},null,null,null,{"$f":"+'Bulletin n°7'!$N$6","v":0},null,null,null,{"$f":"+'Bulletin n°7'!$Z$6","v":"00:00:00"},null,{"$f":"IF('Saisie des données + guide'!$T$20=\"Abondement unilatéral\",'Bulletin n°7'!$BF$34,'Bulletin n°7'!$AA$25)","v":0},{"$f":"+'Bulletin n°7'!$BF$26","v":""},{"$f":"IF('Saisie des données + guide'!$T$20=\"Abondement unilatéral\",\"\",'Bulletin n°7'!$BF$34)","v":""},{"$f":"IF(ABS('Bulletin n°7'!$R$36)+ABS('Bulletin n°7'!$AB$36)>0,\"ERREUR de répartition \ndans le Bulletin n°7\",+SUM(L33:N33))","v":0},null,{"$f":"IF(AND(ISBLANK(#REF!),'Saisie des données + guide'!$T$20=\"Prime de partage de la valeur\"),\"L'information Salaire est à renseigner dans le bulletin n°7\",\"\")","v":""},{"$f":"#REF!","v":{"$error":"#REF!"}},{"$f":"#REF!","v":{"$error":"#REF!"}},"",{"$f":"#REF!","v":{"$error":"#REF!"}},""]
[null,{"$f":"+'Bulletin n°8'!$G$8","v":0},null,null,null,{"$f":"+'Bulletin n°8'!$N$6","v":0},null,null,null,{"$f":"+'Bulletin n°8'!$Z$6","v":"00:00:00"},null,{"$f":"IF('Saisie des données + guide'!$T$20=\"Abondement unilatéral\",'Bulletin n°8'!$BF$34,'Bulletin n°8'!$AA$25)","v":0},{"$f":"+'Bulletin n°8'!$BF$26","v":""},{"$f":"IF('Saisie des données + guide'!$T$20=\"Abondement unilatéral\",\"\",'Bulletin n°8'!$BF$34)","v":""},{"$f":"IF(ABS('Bulletin n°8'!$R$36)+ABS('Bulletin n°8'!$AB$36)>0,\"ERREUR de répartition \ndans le Bulletin n°8\",+SUM(L34:N34))","v":0},null,{"$f":"IF(AND(ISBLANK(#REF!),'Saisie des données + guide'!$T$20=\"Prime de partage de la valeur\"),\"L'information Salaire est à renseigner dans le bulletin n°8\",\"\")","v":""},{"$f":"#REF!","v":{"$error":"#REF!"}},{"$f":"#REF!","v":{"$error":"#REF!"}},"",{"$f":"#REF!","v":{"$error":"#REF!"}},""]
[null,{"$f":"+'Bulletin n°9'!$G$8","v":0},null,null,null,{"$f":"+'Bulletin n°9'!$N$6","v":0},null,null,null,{"$f":"+'Bulletin n°9'!$Z$6","v":"00:00:00"},null,{"$f":"IF('Saisie des données + guide'!$T$20=\"Abondement unilatéral\",'Bulletin n°9'!$BF$34,'Bulletin n°9'!$AA$25)","v":0},{"$f":"+'Bulletin n°9'!$BF$26","v":""},{"$f":"IF('Saisie des données + guide'!$T$20=\"Abondement unilatéral\",\"\",'Bulletin n°9'!$BF$34)","v":""},{"$f":"IF(ABS('Bulletin n°9'!$R$36)+ABS('Bulletin n°9'!$AB$36)>0,\"ERREUR de répartition \ndans le Bulletin n°9\",+SUM(L35:N35))","v":0},null,{"$f":"IF(AND(ISBLANK(#REF!),'Saisie des données + guide'!$T$20=\"Prime de partage de la valeur\"),\"L'information Salaire est à renseigner dans le bulletin n°9\",\"\")","v":""},{"$f":"#REF!","v":{"$error":"#REF!"}},{"$f":"#REF!","v":{"$error":"#REF!"}},"",{"$f":"#REF!","v":{"$error":"#REF!"}},""]
[null,{"$f":"+'Bulletin n°10'!$G$8","v":0},null,null,null,{"$f":"+'Bulletin n°10'!$N$6","v":0},null,null,null,{"$f":"+'Bulletin n°10'!$Z$6","v":"00:00:00"},null,{"$f":"IF('Saisie des données + guide'!$T$20=\"Abondement unilatéral\",'Bulletin n°10'!$BF$34,'Bulletin n°10'!$AA$25)","v":0},{"$f":"+'Bulletin n°10'!$BF$26","v":""},{"$f":"IF('Saisie des données + guide'!$T$20=\"Abondement unilatéral\",\"\",'Bulletin n°10'!$BF$34)","v":""},{"$f":"IF(ABS('Bulletin n°10'!$R$36)+ABS('Bulletin n°10'!$AB$36)>0,\"ERREUR de répartition \ndans le Bulletin n°10\",+SUM(L36:N36))","v":0},null,{"$f":"IF(AND(ISBLANK(#REF!),'Saisie des données + guide'!$T$20=\"Prime de partage de la valeur\"),\"L'information Salaire est à renseigner dans le bulletin n°10\",\"\")","v":""},{"$f":"#REF!","v":{"$error":"#REF!"}},{"$f":"#REF!","v":{"$error":"#REF!"}},"",{"$f":"#REF!","v":{"$error":"#REF!"}},""]
[null,null,null,null,null,null,null,null,null,"TOTAUX",null,{"$f":"+SUM(L27:L36)","v":0},{"$f":"+SUM(M27:M36)","v":0},{"$f":"+SUM(N27:N36)","v":0}]
[]
[]
[null,"Si CSG-CRDS non précomptées pour le salarié",null,null,null,null,{"$f":"+'Saisie des données + guide'!AF36","v":0}]
[null,{"$f":"+'Saisie des données + guide'!C37","v":0}]
[]
[null,"DOCUMENTS À FOURNIR"]
[]
[]
[null," Pour les versements des épargnants : "]
[null,"SOIT"]
[]
[null,null,{"$f":"+IF($L$27>0,1,0)+IF($L$28>0,1,0)+IF($L$29>0,1,0)+IF($L$30>0,1,0)+IF($L$31>0,1,0)+IF($L$32>0,1,0)+IF($L$33>0,1,0)+IF($L$34>0,1,0)+IF($L$35>0,1,0)+IF($L$36>0,1,0)","v":0}," chèque(s) établis par chaque épargnant pour leurs versements personnels (titulaire du chèque = personne figurant sur le bulletin de versements)"]
[]
[null,null,"OU"]
[]
[null,null,1,{"$f":"\" chèque global de l'entreprise de \"&SUM(L27:L36)&\" € pour tous les versements personnels des épargnants (la régularisation auprès des salariés est à la charge de l'entreprise).\"","v":" chèque global de l'entreprise de 0 € pour tous les versements personnels des épargnants (la régularisation auprès des salariés est à la charge de l'entreprise)."}]
[]
[null,"Ainsi que les bulletins individuels de versements de chaque épargnant (datés et signés)"]
[]
[]
[null,{"$f":"IF(L25=\"Montant de l'abondement unilatéral sur le PERCOL\",  \"  - Les bulletins de versements datés et signés de chaque épargnant.\", \"\")","v":""}]
[]
[null,"  - Pour le versement de l'entreprise : "]
[]
[null,null,1," chèque global d’abondement, d’un montant de : ",null,null,null,null,null,{"$f":"IF('Saisie des données + guide'!$T$20=\"Abondement unilatéral\",L37,M37+N37)","v":0}]
[]
[null,"Tous les chèques sont à libeller à l'ordre de Groupama Épargne Salariale et à envoyer à l'adresse suivante :"]
[null,null,null,null,null,null,null,"Groupama Épargne Salariale - Service Clients\n46 rue Jules Méline - 53098 LAVAL Cedex 9"]
[]
[]
[]
[null,"SIGNATURE DU CHEF D'ENTREPRISE"]
[]
[]
[null,"Fait à :",null,null,null,null,null,null,"Le : "]
[]
[]
[]
[]
[]
[]
[null,"Estimation des prélèvements sociaux sur l'abondement de l'entreprise :"]
[null,"Pour information, la CSG-CRDS liée à l'abondement est de :",null,null,null,null,null,null,{"$f":"SUM(V27:V36)","v":0},"sur une base de :",{"$f":"SUM(T27:T36)","v":0}]
[null,"et le forfait social de 20% lié à l'abondement du PEI est de :",null,null,null,null,{"$f":"20%*M37","v":0}]
[null,"et le forfait social de 16% lié à l'abondement du PERCOI est de :",null,null,null,null,{"$f":"16%*N37","v":0}]
[]
[null,null,null,null,null,null,null,null,null,null,null,null,null,null,null," "]

{"sheet":"Autres fonds","index":12,"n_rows":42,"n_cols":4,"rows_kept":42,"cut":false,"hidden":false,"merged":[[3,3,10,7]]}
["Code et Nom du Fonds"]
["004939 - Diversifonds"]
["002459 - Fonvical"]
["015719 - Oblifonds",null,null,"Avant de sélectionner un fonds, nous vous invitons à vérifier que celui-ci est bien disponible dans votre contrat, en vous connectant à votre Espace Entreprise sur groupama-es.fr, rubrique \"Supports\"."]
["556517  - Groupama Global Disruption "]
["288332 - Groupama Euro Credit Short Duration"]
["450251 - Groupama Future for Generations"]
["29902 - Groupama Convictions"]
["397882 - Groupama Absolute Return"]
["383734 - Groupama Multistrategies"]
["953497 - Groupama America Active Equity"]
["271528 - Groupama Euro Active Equity"]
["413972 - Groupama Global Bonds"]
["959612 - Groupama Europe Active Equity"]
["722348 - Groupama Global Active Equity"]
["450723 - Groupama Euro Credit"]
["349192 - PICTET - Multi Asset Global Opportunities P EUR"]
["630153 - PICTET - Global Sustainable Credit HP EUR"]
["978776 - PICTET - Health P EUR"]
["554913 - PICTET - Digital P EUR"]
["559557 - PICTET - Timber P EUR"]
["435388 - PICTET - Clean Energy P EUR"]
["631714 - PICTET - Global Environmental Opportunities P EUR"]
["884860 - PICTET - Water P EUR"]
["882277 - PICTET - Global Megatrend Selection P EUR"]
["982283 - M&G (Lux) Conservative Allocation Fund A EUR Acc"]
["724373 - M&G (Lux) Optimal Income Fund A EUR Acc"]
["799617 - M&G (Lux) Sustainable Allocation Fund Euro A Acc"]
["988058 - M&G (Lux) Dynamic Allocation Fund Euro A Acc"]
["107221 - M&G (Lux) Positive Impact A Eur Acc"]
["395634 - BSF Sustainable Euro Bond A2 Eur"]
["383399 - BGF Global Multi-Asset Income Fund A2"]
["795278 - BGF ESG Emerging Markets Bond"]
["283533 - BGF Global Allocation E2"]
["795781 - BGF ESG Emerging Markets Blended Bond Fund A2 Eur H"]
["289902 - BGF Sustainable Energy A2"]
["502762 - BGF Euro-Markets A2"]
["594748 - DNCA Invest Beyond Alterosa A"]
["394235 - DNCA Invest - Eurose A"]
["595398 - DNCA Invest - Beyond Semperosa A"]
["842267 - ODDO BHF Artificial Intelligence CR-EUR"]
["292278 - Magellan (Part C)"]

{"sheet":"Modalités des versements","index":13,"n_rows":0,"n_cols":0,"rows_kept":0,"cut":false,"hidden":false,"merged":[]}